Workbook

Sheet Introduction
B1: 3GPP RAN WG5 status of 5G NR bands and V2X bands, and CA, NR-DC, NR SUL, NE-DC, EN-DC and V2X configurations | G1: ="PRD21 "&INDIRECT("'Revision History'!"&"C2") -> PRD21 v1.5.0
B3: The purpose of this document is to provide RAN5 status for NR bands, NR band CBW extensions, V2X bands and 5G NR CADC configurations (NR CA, NR-DC, NR SUL, NE-DC, EN-DC and V2X) covered by RAN5 work items. The document also indicates the Work Item code(s) to be used when submitting CRs for NR bands, NR band CBW extensions, V2X bands, and 5G NR CADC configurations depending on the target power class. The worksheets "NR bands" and "5G NR CADC Configurations" include lists showing the current status for RAN5 NR bands, NR band CBW extensions and 5G NR CADC configurations for power class 3 (PC3) and applicable additional power classes (e.g. PC1.5 and PC2). The worksheet “5G NR CADC configurations” refers to the configurations specific to NR CA, NR-DC, NR SUL, NE-DC and EN-DC. The list shows for each NR band, NR band CBW extensions and 5G NR CADC configuration the declared interested operator and the company that have been assigned taking responsibility for adding necessary details to 3GPP RAN5 UE conformance test specifications for PC3. Interested operator for other power classes than PC3 is tracked within the specific work plan of the power class. The list also shows the Work Item code (s) to be used when submitting CRs for the different NR bands and 5G NR CADC configurations for the different applicable power classes. The status is updated after each RAN5 meeting. The NR bands and 5G NR CADC configurations worksheets provides tools to select one or more NR bands/5G NR CADC configurations for the purpose to request assignment as interested operator and/or responsible company of NR bands, NR band CBW extensions and 5G NR CADC configuration(s). The worksheets "V2X bands" and "V2X Configurations" include lists showing the current status for RAN5 5G NR V2X bands and 5G NR V2X configurations. For guideline how to use the NR bands and V2X bands, and 5G NR CADC and V2X configurations worksheets see the PRD21 word document.
B4: Overall status of RAN5 NR band, NR band CBW extensions and 5G NR CADC configurations
B5: Selected Release Scope | C5: All Releases
B7: ="Status of NR Bands and CBW extensions for "&$C$5&" in RAN5 scope" -> Status of NR Bands and CBW extensions for All Releases in RAN5 scope
B8: TS and Source Table | C8: Type of NR band / CBW | D8: Number of NR bands / CBW items | E8: Number of completed NR bands / CBW items | G8: Number of assigned and ongoing NR bands / CBW items (not yet completed) | H8: Number of pending NR bands / CBW items (not assigned)
B9: Overall (All TSs and source tables for the selected release scope): | D9: =SUM($D$12:$D$16) -> 132 | E9: =SUM($E$12:$E$16) -> 83 | F9: =IFERROR(E9/D9,"-") -> 0.6287878788 | G9: =SUM($G$12:$G$16) -> 35 | H9: =D9-E9-G9 -> 14
B10: NR Bands
B11: NR FR1 Bands and CBW extensions
B12: 38.101-1:Table 5.3.5-1 | C12: NR FR1 bands | D12: =IF($C$5<>"All Releases",SUMPRODUCT(--(TRIM(NRbandsTblID[[#All],[Release introduced in TS 38.101-x]])<>""),--(NRbandsTblID[[#All],[TS and Source Table]]=$B12),--(NRbandsTblID[[#All],[Release introduced in TS 38.101-x]]=$C$5)),SUMPRODUCT(--(TRIM(NRbandsTblID[[#All],[Release introduced in TS 38.101-x]])<>""),--(NRbandsTblID[[#All],[TS and Source Table]]=Introduction!$B12))) -> 75 | E12: =IF($C$5<>"All Releases",SUMPRODUCT(--(TRIM(NRbandsTblID[[#All],[RAN5 Completion Reference (Note 1)]])<>""),--(NRbandsTblID[[#All],[TS and Source Table]]=Introduction!$B12),--(NRbandsTblID[[#All],[Release introduced in TS 38.101-x]]=$C$5)),SUMPRODUCT(--(TRIM(NRbandsTblID[[#All],[RAN5 Completion Reference (Note 1)]])<>""),--(NRbandsTblID[[#All],[TS and Source Table]]=Introduction!$B12))) -> 59 | F12: =IFERROR(E12/D12,"-") -> 0.7866666667 | G12: =IF($C$5<>"All Releases",SUMPRODUCT(--(TRIM(NRbandsTblID[[#All],[Interested Deployer (Note 2)]])<>""),--(TRIM(NRbandsTblID[[#All],[RAN5 Completion Reference (Note 1)]])=""),--(NRbandsTblID[[#All],[TS and Source Table]]=Introduction!$B12),--(NRbandsTblID[[#All],[Release introduced in TS 38.101-x]]=$C$5)),SUMPRODUCT(--(TRIM(NRbandsTblID[[#All],[Interested Deployer (Note 2)]])<>""),--(TRIM(NRbandsTblID[[#All],[RAN5 Completion Reference (Note 1)]])=""),--(NRbandsTblID[[#All],[TS and Source Table]]=Introduction!$B12))) -> 7 | H12: =D12-E12-G12 -> 9
B13: 38.101-1:Table 5.3.5-1 CBW | C13: NR FR1 CBW extension items (adding one or more CBWs to a NR band) | D13: =IF($C$5<>"All Releases",SUMPRODUCT(--(TRIM(NRbandsTblID[[#All],[Release introduced in TS 38.101-x]])<>""),--(NRbandsTblID[[#All],[TS and Source Table]]=$B13),--(NRbandsTblID[[#All],[Release introduced in TS 38.101-x]]=$C$5)),SUMPRODUCT(--(TRIM(NRbandsTblID[[#All],[Release introduced in TS 38.101-x]])<>""),--(NRbandsTblID[[#All],[TS and Source Table]]=Introduction!$B13))) -> 40 | E13: =IF($C$5<>"All Releases",SUMPRODUCT(--(TRIM(NRbandsTblID[[#All],[RAN5 Completion Reference (Note 1)]])<>""),--(NRbandsTblID[[#All],[TS and Source Table]]=Introduction!$B13),--(NRbandsTblID[[#All],[Release introduced in TS 38.101-x]]=$C$5)),SUMPRODUCT(--(TRIM(NRbandsTblID[[#All],[RAN5 Completion Reference (Note 1)]])<>""),--(NRbandsTblID[[#All],[TS and Source Table]]=Introduction!$B13))) -> 23 | F13: 0.575 | G13: =IF($C$5<>"All Releases",SUMPRODUCT(--(TRIM(NRbandsTblID[[#All],[Interested Deployer (Note 2)]])<>""),--(TRIM(NRbandsTblID[[#All],[RAN5 Completion Reference (Note 1)]])=""),--(NRbandsTblID[[#All],[TS and Source Table]]=Introduction!$B13),--(NRbandsTblID[[#All],[Release introduced in TS 38.101-x]]=$C$5)),SUMPRODUCT(--(TRIM(NRbandsTblID[[#All],[Interested Deployer (Note 2)]])<>""),--(TRIM(NRbandsTblID[[#All],[RAN5 Completion Reference (Note 1)]])=""),--(NRbandsTblID[[#All],[TS and Source Table]]=Introduction!$B13))) -> 13 | H13: 4
B14: NR FR2 Bands and CBW extensions
B15: 38.101-2:Table 5.3.5-1 | C15: NR FR2 bands | D15: =IF($C$5<>"All Releases",SUMPRODUCT(--(TRIM(NRbandsTblID[[#All],[Release introduced in TS 38.101-x]])<>""),--(NRbandsTblID[[#All],[TS and Source Table]]=$B15),--(NRbandsTblID[[#All],[Release introduced in TS 38.101-x]]=$C$5)),SUMPRODUCT(--(TRIM(NRbandsTblID[[#All],[Release introduced in TS 38.101-x]])<>""),--(NRbandsTblID[[#All],[TS and Source Table]]=Introduction!$B15))) -> 17 | E15: =IF($C$5<>"All Releases",SUMPRODUCT(--(TRIM(NRbandsTblID[[#All],[RAN5 Completion Reference (Note 1)]])<>""),--(NRbandsTblID[[#All],[TS and Source Table]]=Introduction!$B15),--(NRbandsTblID[[#All],[Release introduced in TS 38.101-x]]=$C$5)),SUMPRODUCT(--(TRIM(NRbandsTblID[[#All],[RAN5 Completion Reference (Note 1)]])<>""),--(NRbandsTblID[[#All],[TS and Source Table]]=Introduction!$B15))) -> 1 | F15: =IFERROR(E15/D15,"-") -> 0.05882352941 | G15: =IF($C$5<>"All Releases",SUMPRODUCT(--(TRIM(NRbandsTblID[[#All],[Interested Deployer (Note 2)]])<>""),--(TRIM(NRbandsTblID[[#All],[RAN5 Completion Reference (Note 1)]])=""),--(NRbandsTblID[[#All],[TS and Source Table]]=Introduction!$B15),--(NRbandsTblID[[#All],[Release introduced in TS 38.101-x]]=$C$5)),SUMPRODUCT(--(TRIM(NRbandsTblID[[#All],[Interested Deployer (Note 2)]])<>""),--(TRIM(NRbandsTblID[[#All],[RAN5 Completion Reference (Note 1)]])=""),--(NRbandsTblID[[#All],[TS and Source Table]]=Introduction!$B15))) -> 15 | H15: =D15-E15-G15 -> 1
B16: 38.101-2:Table 5.3.5-1 CBW | C16: NR FR2 CBW extension items (adding one or more CBWs to a NR band) | D16: =IF($C$5<>"All Releases",SUMPRODUCT(--(TRIM(NRbandsTblID[[#All],[Release introduced in TS 38.101-x]])<>""),--(NRbandsTblID[[#All],[TS and Source Table]]=$B16),--(NRbandsTblID[[#All],[Release introduced in TS 38.101-x]]=$C$5)),SUMPRODUCT(--(TRIM(NRbandsTblID[[#All],[Release introduced in TS 38.101-x]])<>""),--(NRbandsTblID[[#All],[TS and Source Table]]=Introduction!$B16))) -> 0 | E16: =IF($C$5<>"All Releases",SUMPRODUCT(--(TRIM(NRbandsTblID[[#All],[RAN5 Completion Reference (Note 1)]])<>""),--(NRbandsTblID[[#All],[TS and Source Table]]=Introduction!$B16),--(NRbandsTblID[[#All],[Release introduced in TS 38.101-x]]=$C$5)),SUMPRODUCT(--(TRIM(NRbandsTblID[[#All],[RAN5 Completion Reference (Note 1)]])<>""),--(NRbandsTblID[[#All],[TS and Source Table]]=Introduction!$B16))) -> 0 | F16: - | G16: =IF($C$5<>"All Releases",SUMPRODUCT(--(TRIM(NRbandsTblID[[#All],[Interested Deployer (Note 2)]])<>""),--(TRIM(NRbandsTblID[[#All],[RAN5 Completion Reference (Note 1)]])=""),--(NRbandsTblID[[#All],[TS and Source Table]]=Introduction!$B16),--(NRbandsTblID[[#All],[Release introduced in TS 38.101-x]]=$C$5)),SUMPRODUCT(--(TRIM(NRbandsTblID[[#All],[Interested Deployer (Note 2)]])<>""),--(TRIM(NRbandsTblID[[#All],[RAN5 Completion Reference (Note 1)]])=""),--(NRbandsTblID[[#All],[TS and Source Table]]=Introduction!$B16))) -> 0 | H16: 0
B18: ="Status NR CA, NR-DC, NR SUL, NE-DC and EN-DC configurations for "&$C$5&" in RAN5 scope" -> Status NR CA, NR-DC, NR SUL, NE-DC and EN-DC configurations for All Releases in RAN5 scope
B19: Each DL-UL-configuration-combination is counted as one configuration, i.e. a DL configuration having N valid UL configurations is counted as N configurations.
B20: TS and Source Table | C20: Type of configuration | D20: Number of configurations | E20: Number of completed configurations | G20: Number of assigned and ongoing configurations (not yet completed) | H20: Number of pending configurations (not assigned)
B21: Overall (All TSs and source tables for the selected release scope): | D21: =SUM($D$24:$D$81) -> 62308 | E21: =SUM($E$24:$E$81) -> 871 | F21: =IFERROR(E21/D21,"-") -> 0.01397894331 | G21: =SUM($G$24:$G$81) -> 8800 | H21: =D21-E21-G21 -> 52637
B22: NR CA
B23: NR CA configurations within FR1
B24: 38.101-1:Table 5.5A.1-1 | C24: NR CA configurations for intra-band contiguous CA | D24: =IF($C$5<>"All Releases",SUMPRODUCT(--(TRIM(ConfigTblID[[#All],[Release introduced in TS 38.101-x]])<>""),--(ConfigTblID[[#All],[TS and Source Table]]=Introduction!$B24),--(ConfigTblID[[#All],[Release introduced in TS 38.101-x]]=$C$5)),SUMPRODUCT(--(TRIM(ConfigTblID[[#All],[Release introduced in TS 38.101-x]])<>""),--(ConfigTblID[[#All],[TS and Source Table]]=Introduction!$B24))) -> 72 | E24: =IF($C$5<>"All Releases",SUMPRODUCT(--(TRIM(ConfigTblID[[#All],[Completion Reference]])<>""),--(ConfigTblID[[#All],[TS and Source Table]]=Introduction!$B24),--(ConfigTblID[[#All],[Release introduced in TS 38.101-x]]=$C$5)),SUMPRODUCT(--(TRIM(ConfigTblID[[#All],[Completion Reference]])<>""),--(ConfigTblID[[#All],[TS and Source Table]]=Introduction!$B24))) -> 14 | F24: =IFERROR(E24/D24,"-") -> 0.1944444444 | G24: =IF($C$5<>"All Releases",SUMPRODUCT(--(TRIM(ConfigTblID[[#All],[Interested Deployer(Note 2)]])<>""),--(TRIM(ConfigTblID[[#All],[Completion Reference]])=""),--(ConfigTblID[[#All],[TS and Source Table]]=Introduction!$B24),--(ConfigTblID[[#All],[Release introduced in TS 38.101-x]]=$C$5)),SUMPRODUCT(--(TRIM(ConfigTblID[[#All],[Interested Deployer(Note 2)]])<>""),--(TRIM(ConfigTblID[[#All],[Completion Reference]])=""),--(ConfigTblID[[#All],[TS and Source Table]]=Introduction!$B24))) -> 7 | H24: =D24-E24-G24 -> 51
B25: 38.101-1:Table 5.5A.2-1 | C25: NR CA configurations for intra-band non-contiguous CA | D25: =IF($C$5<>"All Releases",SUMPRODUCT(--(TRIM(ConfigTblID[[#All],[Release introduced in TS 38.101-x]])<>""),--(ConfigTblID[[#All],[TS and Source Table]]=Introduction!$B25),--(ConfigTblID[[#All],[Release introduced in TS 38.101-x]]=$C$5)),SUMPRODUCT(--(TRIM(ConfigTblID[[#All],[Release introduced in TS 38.101-x]])<>""),--(ConfigTblID[[#All],[TS and Source Table]]=Introduction!$B25))) -> 62 | E25: =IF($C$5<>"All Releases",SUMPRODUCT(--(TRIM(ConfigTblID[[#All],[Completion Reference]])<>""),--(ConfigTblID[[#All],[TS and Source Table]]=Introduction!$B25),--(ConfigTblID[[#All],[Release introduced in TS 38.101-x]]=$C$5)),SUMPRODUCT(--(TRIM(ConfigTblID[[#All],[Completion Reference]])<>""),--(ConfigTblID[[#All],[TS and Source Table]]=Introduction!$B25))) -> 4 | F25: 0.06451612903 | G25: =IF($C$5<>"All Releases",SUMPRODUCT(--(TRIM(ConfigTblID[[#All],[Interested Deployer(Note 2)]])<>""),--(TRIM(ConfigTblID[[#All],[Completion Reference]])=""),--(ConfigTblID[[#All],[TS and Source Table]]=Introduction!$B25),--(ConfigTblID[[#All],[Release introduced in TS 38.101-x]]=$C$5)),SUMPRODUCT(--(TRIM(ConfigTblID[[#All],[Interested Deployer(Note 2)]])<>""),--(TRIM(ConfigTblID[[#All],[Completion Reference]])=""),--(ConfigTblID[[#All],[TS and Source Table]]=Introduction!$B25))) -> 7 | H25: 51
B26: 38.101-1:Table 5.5A.2-2 | C26: NR CA configurations for mixed intra-band contiguous and non-contiguous CA | D26: =IF($C$5<>"All Releases",SUMPRODUCT(--(TRIM(ConfigTblID[[#All],[Release introduced in TS 38.101-x]])<>""),--(ConfigTblID[[#All],[TS and Source Table]]=Introduction!$B26),--(ConfigTblID[[#All],[Release introduced in TS 38.101-x]]=$C$5)),SUMPRODUCT(--(TRIM(ConfigTblID[[#All],[Release introduced in TS 38.101-x]])<>""),--(ConfigTblID[[#All],[TS and Source Table]]=Introduction!$B26))) -> 12 | E26: =IF($C$5<>"All Releases",SUMPRODUCT(--(TRIM(ConfigTblID[[#All],[Completion Reference]])<>""),--(ConfigTblID[[#All],[TS and Source Table]]=Introduction!$B26),--(ConfigTblID[[#All],[Release introduced in TS 38.101-x]]=$C$5)),SUMPRODUCT(--(TRIM(ConfigTblID[[#All],[Completion Reference]])<>""),--(ConfigTblID[[#All],[TS and Source Table]]=Introduction!$B26))) -> 0 | F26: 0 | G26: =IF($C$5<>"All Releases",SUMPRODUCT(--(TRIM(ConfigTblID[[#All],[Interested Deployer(Note 2)]])<>""),--(TRIM(ConfigTblID[[#All],[Completion Reference]])=""),--(ConfigTblID[[#All],[TS and Source Table]]=Introduction!$B26),--(ConfigTblID[[#All],[Release introduced in TS 38.101-x]]=$C$5)),SUMPRODUCT(--(TRIM(ConfigTblID[[#All],[Interested Deployer(Note 2)]])<>""),--(TRIM(ConfigTblID[[#All],[Completion Reference]])=""),--(ConfigTblID[[#All],[TS and Source Table]]=Introduction!$B26))) -> 3 | H26: 9
B27: 38.101-1:Table 5.5A.3.1-1a-n | C27: NR CA configurations for inter-band CA (two bands) | D27: =IF($C$5<>"All Releases",SUMPRODUCT(--(TRIM(ConfigTblID[[#All],[Release introduced in TS 38.101-x]])<>""),--(ConfigTblID[[#All],[Type of configuration]]="NR CA FR1 inter-band (2 bands)"),--(ConfigTblID[[#All],[Release introduced in TS 38.101-x]]=$C$5)),SUMPRODUCT(--(TRIM(ConfigTblID[[#All],[Release introduced in TS 38.101-x]])<>""),--(ConfigTblID[[#All],[Type of configuration]]="NR CA FR1 inter-band (2 bands)"))) -> 1705 | E27: =IF($C$5<>"All Releases",SUMPRODUCT(--(TRIM(ConfigTblID[[#All],[Completion Reference]])<>""),--(ConfigTblID[[#All],[Type of configuration]]="NR CA FR1 inter-band (2 bands)"),--(ConfigTblID[[#All],[Release introduced in TS 38.101-x]]=$C$5)),SUMPRODUCT(--(TRIM(ConfigTblID[[#All],[Completion Reference]])<>""),--(ConfigTblID[[#All],[Type of configuration]]="NR CA FR1 inter-band (2 bands)"))) -> 134 | F27: 0.07859237537 | G27: =IF($C$5<>"All Releases",SUMPRODUCT(--(TRIM(ConfigTblID[[#All],[Interested Deployer(Note 2)]])<>""),--(TRIM(ConfigTblID[[#All],[Completion Reference]])=""),--(ConfigTblID[[#All],[Type of configuration]]="NR CA FR1 inter-band (2 bands)"),--(ConfigTblID[[#All],[Release introduced in TS 38.101-x]]=$C$5)),SUMPRODUCT(--(TRIM(ConfigTblID[[#All],[Interested Deployer(Note 2)]])<>""),--(TRIM(ConfigTblID[[#All],[Completion Reference]])=""),--(ConfigTblID[[#All],[Type of configuration]]="NR CA FR1 inter-band (2 bands)"))) -> 266 | H27: 1305
B28: 38.101-1:Table 5.5A.3.2-1 | C28: NR CA configurations for inter-band CA (three bands) | D28: =IF($C$5<>"All Releases",SUMPRODUCT(--(TRIM(ConfigTblID[[#All],[Release introduced in TS 38.101-x]])<>""),--(ConfigTblID[[#All],[TS and Source Table]]=Introduction!$B28),--(ConfigTblID[[#All],[Release introduced in TS 38.101-x]]=$C$5)),SUMPRODUCT(--(TRIM(ConfigTblID[[#All],[Release introduced in TS 38.101-x]])<>""),--(ConfigTblID[[#All],[TS and Source Table]]=Introduction!$B28))) -> 2668 | E28: =IF($C$5<>"All Releases",SUMPRODUCT(--(TRIM(ConfigTblID[[#All],[Completion Reference]])<>""),--(ConfigTblID[[#All],[TS and Source Table]]=Introduction!$B28),--(ConfigTblID[[#All],[Release introduced in TS 38.101-x]]=$C$5)),SUMPRODUCT(--(TRIM(ConfigTblID[[#All],[Completion Reference]])<>""),--(ConfigTblID[[#All],[TS and Source Table]]=Introduction!$B28))) -> 81 | F28: 0.03035982009 | G28: =IF($C$5<>"All Releases",SUMPRODUCT(--(TRIM(ConfigTblID[[#All],[Interested Deployer(Note 2)]])<>""),--(TRIM(ConfigTblID[[#All],[Completion Reference]])=""),--(ConfigTblID[[#All],[TS and Source Table]]=Introduction!$B28),--(ConfigTblID[[#All],[Release introduced in TS 38.101-x]]=$C$5)),SUMPRODUCT(--(TRIM(ConfigTblID[[#All],[Interested Deployer(Note 2)]])<>""),--(TRIM(ConfigTblID[[#All],[Completion Reference]])=""),--(ConfigTblID[[#All],[TS and Source Table]]=Introduction!$B28))) -> 224 | H28: 2363
B29: 38.101-1:Table 5.5A.3.3-1 | C29: NR CA configurations for inter-band CA (four bands) | D29: =IF($C$5<>"All Releases",SUMPRODUCT(--(TRIM(ConfigTblID[[#All],[Release introduced in TS 38.101-x]])<>""),--(ConfigTblID[[#All],[TS and Source Table]]=Introduction!$B29),--(ConfigTblID[[#All],[Release introduced in TS 38.101-x]]=$C$5)),SUMPRODUCT(--(TRIM(ConfigTblID[[#All],[Release introduced in TS 38.101-x]])<>""),--(ConfigTblID[[#All],[TS and Source Table]]=Introduction!$B29))) -> 1509 | E29: =IF($C$5<>"All Releases",SUMPRODUCT(--(TRIM(ConfigTblID[[#All],[Completion Reference]])<>""),--(ConfigTblID[[#All],[TS and Source Table]]=Introduction!$B29),--(ConfigTblID[[#All],[Release introduced in TS 38.101-x]]=$C$5)),SUMPRODUCT(--(TRIM(ConfigTblID[[#All],[Completion Reference]])<>""),--(ConfigTblID[[#All],[TS and Source Table]]=Introduction!$B29))) -> 0 | F29: =IFERROR(E29/D29,"-") -> 0 | G29: =IF($C$5<>"All Releases",SUMPRODUCT(--(TRIM(ConfigTblID[[#All],[Interested Deployer(Note 2)]])<>""),--(TRIM(ConfigTblID[[#All],[Completion Reference]])=""),--(ConfigTblID[[#All],[TS and Source Table]]=Introduction!$B29),--(ConfigTblID[[#All],[Release introduced in TS 38.101-x]]=$C$5)),SUMPRODUCT(--(TRIM(ConfigTblID[[#All],[Interested Deployer(Note 2)]])<>""),--(TRIM(ConfigTblID[[#All],[Completion Reference]])=""),--(ConfigTblID[[#All],[TS and Source Table]]=Introduction!$B29))) -> 56 | H29: =D29-E29-G29 -> 1453
B30: 38.101-1:Table 5.5A.3.4-1 | C30: NR CA configurations for inter-band CA (five bands) | D30: =IF($C$5<>"All Releases",SUMPRODUCT(--(TRIM(ConfigTblID[[#All],[Release introduced in TS 38.101-x]])<>""),--(ConfigTblID[[#All],[TS and Source Table]]=Introduction!$B30),--(ConfigTblID[[#All],[Release introduced in TS 38.101-x]]=$C$5)),SUMPRODUCT(--(TRIM(ConfigTblID[[#All],[Release introduced in TS 38.101-x]])<>""),--(ConfigTblID[[#All],[TS and Source Table]]=Introduction!$B30))) -> 90 | E30: =IF($C$5<>"All Releases",SUMPRODUCT(--(TRIM(ConfigTblID[[#All],[Completion Reference]])<>""),--(ConfigTblID[[#All],[TS and Source Table]]=Introduction!$B30),--(ConfigTblID[[#All],[Release introduced in TS 38.101-x]]=$C$5)),SUMPRODUCT(--(TRIM(ConfigTblID[[#All],[Completion Reference]])<>""),--(ConfigTblID[[#All],[TS and Source Table]]=Introduction!$B30))) -> 0 | F30: 0 | G30: =IF($C$5<>"All Releases",SUMPRODUCT(--(TRIM(ConfigTblID[[#All],[Interested Deployer(Note 2)]])<>""),--(TRIM(ConfigTblID[[#All],[Completion Reference]])=""),--(ConfigTblID[[#All],[TS and Source Table]]=Introduction!$B30),--(ConfigTblID[[#All],[Release introduced in TS 38.101-x]]=$C$5)),SUMPRODUCT(--(TRIM(ConfigTblID[[#All],[Interested Deployer(Note 2)]])<>""),--(TRIM(ConfigTblID[[#All],[Completion Reference]])=""),--(ConfigTblID[[#All],[TS and Source Table]]=Introduction!$B30))) -> 1 | H30: 89
B31: NR CA configurations within FR2
B32: 38.101-2:Table 5.5A.1-1 | C32: NR CA configurations for intra-band contiguous CA | D32: =IF($C$5<>"All Releases",SUMPRODUCT(--(TRIM(ConfigTblID[[#All],[Release introduced in TS 38.101-x]])<>""),--(ConfigTblID[[#All],[TS and Source Table]]=Introduction!$B32),--(ConfigTblID[[#All],[Release introduced in TS 38.101-x]]=$C$5)),SUMPRODUCT(--(TRIM(ConfigTblID[[#All],[Release introduced in TS 38.101-x]])<>""),--(ConfigTblID[[#All],[TS and Source Table]]=Introduction!$B32))) -> 312 | E32: =IF($C$5<>"All Releases",SUMPRODUCT(--(TRIM(ConfigTblID[[#All],[Completion Reference]])<>""),--(ConfigTblID[[#All],[TS and Source Table]]=Introduction!$B32),--(ConfigTblID[[#All],[Release introduced in TS 38.101-x]]=$C$5)),SUMPRODUCT(--(TRIM(ConfigTblID[[#All],[Completion Reference]])<>""),--(ConfigTblID[[#All],[TS and Source Table]]=Introduction!$B32))) -> 0 | F32: =IFERROR(E32/D32,"-") -> 0 | G32: =IF($C$5<>"All Releases",SUMPRODUCT(--(TRIM(ConfigTblID[[#All],[Interested Deployer(Note 2)]])<>""),--(TRIM(ConfigTblID[[#All],[Completion Reference]])=""),--(ConfigTblID[[#All],[TS and Source Table]]=Introduction!$B32),--(ConfigTblID[[#All],[Release introduced in TS 38.101-x]]=$C$5)),SUMPRODUCT(--(TRIM(ConfigTblID[[#All],[Interested Deployer(Note 2)]])<>""),--(TRIM(ConfigTblID[[#All],[Completion Reference]])=""),--(ConfigTblID[[#All],[TS and Source Table]]=Introduction!$B32))) -> 50 | H32: =D32-E32-G32 -> 262
B33: 38.101-2:Table 5.5A.2-1 | C33: NR CA configurations for intra-band non-contiguous CA | D33: =IF($C$5<>"All Releases",SUMPRODUCT(--(TRIM(ConfigTblID[[#All],[Release introduced in TS 38.101-x]])<>""),--(ConfigTblID[[#All],[TS and Source Table]]=Introduction!$B33),--(ConfigTblID[[#All],[Release introduced in TS 38.101-x]]=$C$5)),SUMPRODUCT(--(TRIM(ConfigTblID[[#All],[Release introduced in TS 38.101-x]])<>""),--(ConfigTblID[[#All],[TS and Source Table]]=Introduction!$B33))) -> 60 | E33: =IF($C$5<>"All Releases",SUMPRODUCT(--(TRIM(ConfigTblID[[#All],[Completion Reference]])<>""),--(ConfigTblID[[#All],[TS and Source Table]]=Introduction!$B33),--(ConfigTblID[[#All],[Release introduced in TS 38.101-x]]=$C$5)),SUMPRODUCT(--(TRIM(ConfigTblID[[#All],[Completion Reference]])<>""),--(ConfigTblID[[#All],[TS and Source Table]]=Introduction!$B33))) -> 0 | F33: 0 | G33: =IF($C$5<>"All Releases",SUMPRODUCT(--(TRIM(ConfigTblID[[#All],[Interested Deployer(Note 2)]])<>""),--(TRIM(ConfigTblID[[#All],[Completion Reference]])=""),--(ConfigTblID[[#All],[TS and Source Table]]=Introduction!$B33),--(ConfigTblID[[#All],[Release introduced in TS 38.101-x]]=$C$5)),SUMPRODUCT(--(TRIM(ConfigTblID[[#All],[Interested Deployer(Note 2)]])<>""),--(TRIM(ConfigTblID[[#All],[Completion Reference]])=""),--(ConfigTblID[[#All],[TS and Source Table]]=Introduction!$B33))) -> 4 | H33: 56
B34: 38.101-2:Table 5.5A.2-2 | C34: NR CA configurations for intra-band non-contiguous CA | D34: =IF($C$5<>"All Releases",SUMPRODUCT(--(TRIM(ConfigTblID[[#All],[Release introduced in TS 38.101-x]])<>""),--(ConfigTblID[[#All],[TS and Source Table]]=Introduction!$B34),--(ConfigTblID[[#All],[Release introduced in TS 38.101-x]]=$C$5)),SUMPRODUCT(--(TRIM(ConfigTblID[[#All],[Release introduced in TS 38.101-x]])<>""),--(ConfigTblID[[#All],[TS and Source Table]]=Introduction!$B34))) -> 390 | E34: =IF($C$5<>"All Releases",SUMPRODUCT(--(TRIM(ConfigTblID[[#All],[Completion Reference]])<>""),--(ConfigTblID[[#All],[TS and Source Table]]=Introduction!$B34),--(ConfigTblID[[#All],[Release introduced in TS 38.101-x]]=$C$5)),SUMPRODUCT(--(TRIM(ConfigTblID[[#All],[Completion Reference]])<>""),--(ConfigTblID[[#All],[TS and Source Table]]=Introduction!$B34))) -> 0 | F34: 0 | G34: =IF($C$5<>"All Releases",SUMPRODUCT(--(TRIM(ConfigTblID[[#All],[Interested Deployer(Note 2)]])<>""),--(TRIM(ConfigTblID[[#All],[Completion Reference]])=""),--(ConfigTblID[[#All],[TS and Source Table]]=Introduction!$B34),--(ConfigTblID[[#All],[Release introduced in TS 38.101-x]]=$C$5)),SUMPRODUCT(--(TRIM(ConfigTblID[[#All],[Interested Deployer(Note 2)]])<>""),--(TRIM(ConfigTblID[[#All],[Completion Reference]])=""),--(ConfigTblID[[#All],[TS and Source Table]]=Introduction!$B34))) -> 4 | H34: 386
B35: 38.101-2:Table 5.5A.3-1 | C35: NR CA configurations for inter-band CA | D35: =IF($C$5<>"All Releases",SUMPRODUCT(--(TRIM(ConfigTblID[[#All],[Release introduced in TS 38.101-x]])<>""),--(ConfigTblID[[#All],[TS and Source Table]]=Introduction!$B35),--(ConfigTblID[[#All],[Release introduced in TS 38.101-x]]=$C$5)),SUMPRODUCT(--(TRIM(ConfigTblID[[#All],[Release introduced in TS 38.101-x]])<>""),--(ConfigTblID[[#All],[TS and Source Table]]=Introduction!$B35))) -> 169 | E35: =IF($C$5<>"All Releases",SUMPRODUCT(--(TRIM(ConfigTblID[[#All],[Completion Reference]])<>""),--(ConfigTblID[[#All],[TS and Source Table]]=Introduction!$B35),--(ConfigTblID[[#All],[Release introduced in TS 38.101-x]]=$C$5)),SUMPRODUCT(--(TRIM(ConfigTblID[[#All],[Completion Reference]])<>""),--(ConfigTblID[[#All],[TS and Source Table]]=Introduction!$B35))) -> 0 | F35: 0 | G35: =IF($C$5<>"All Releases",SUMPRODUCT(--(TRIM(ConfigTblID[[#All],[Interested Deployer(Note 2)]])<>""),--(TRIM(ConfigTblID[[#All],[Completion Reference]])=""),--(ConfigTblID[[#All],[TS and Source Table]]=Introduction!$B35),--(ConfigTblID[[#All],[Release introduced in TS 38.101-x]]=$C$5)),SUMPRODUCT(--(TRIM(ConfigTblID[[#All],[Interested Deployer(Note 2)]])<>""),--(TRIM(ConfigTblID[[#All],[Completion Reference]])=""),--(ConfigTblID[[#All],[TS and Source Table]]=Introduction!$B35))) -> 1 | H35: 168
B36: NR CA configurations including FR1 with FR2
B37: 38.101-3:Table 5.5A.1-1a-o | C37: Inter-band CA configurations between FR1 and FR2 (two bands) | D37: =IF($C$5<>"All Releases",SUMPRODUCT(--(TRIM(ConfigTblID[[#All],[Release introduced in TS 38.101-x]])<>""),--(ConfigTblID[[#All],[TS and Source Table]]=Introduction!$B37),--(ConfigTblID[[#All],[Release introduced in TS 38.101-x]]=$C$5)),SUMPRODUCT(--(TRIM(ConfigTblID[[#All],[Release introduced in TS 38.101-x]])<>""),--(ConfigTblID[[#All],[TS and Source Table]]=Introduction!$B37))) -> 0 | E37: =IF($C$5<>"All Releases",SUMPRODUCT(--(TRIM(ConfigTblID[[#All],[Completion Reference]])<>""),--(ConfigTblID[[#All],[TS and Source Table]]=Introduction!$B37),--(ConfigTblID[[#All],[Release introduced in TS 38.101-x]]=$C$5)),SUMPRODUCT(--(TRIM(ConfigTblID[[#All],[Completion Reference]])<>""),--(ConfigTblID[[#All],[TS and Source Table]]=Introduction!$B37))) -> 0 | F37: =IFERROR(E37/D37,"-") -> - | G37: =IF($C$5<>"All Releases",SUMPRODUCT(--(TRIM(ConfigTblID[[#All],[Interested Deployer(Note 2)]])<>""),--(TRIM(ConfigTblID[[#All],[Completion Reference]])=""),--(ConfigTblID[[#All],[TS and Source Table]]=Introduction!$B37),--(ConfigTblID[[#All],[Release introduced in TS 38.101-x]]=$C$5)),SUMPRODUCT(--(TRIM(ConfigTblID[[#All],[Interested Deployer(Note 2)]])<>""),--(TRIM(ConfigTblID[[#All],[Completion Reference]])=""),--(ConfigTblID[[#All],[TS and Source Table]]=Introduction!$B37))) -> 0 | H37: =D37-E37-G37 -> 0
B38: 38.101-3:Table 5.5A.1-2 | C38: Inter-band CA configurations between FR1 and FR2 (three bands) | D38: =IF($C$5<>"All Releases",SUMPRODUCT(--(TRIM(ConfigTblID[[#All],[Release introduced in TS 38.101-x]])<>""),--(ConfigTblID[[#All],[TS and Source Table]]=Introduction!$B38),--(ConfigTblID[[#All],[Release introduced in TS 38.101-x]]=$C$5)),SUMPRODUCT(--(TRIM(ConfigTblID[[#All],[Release introduced in TS 38.101-x]])<>""),--(ConfigTblID[[#All],[TS and Source Table]]=Introduction!$B38))) -> 5016 | E38: =IF($C$5<>"All Releases",SUMPRODUCT(--(TRIM(ConfigTblID[[#All],[Completion Reference]])<>""),--(ConfigTblID[[#All],[TS and Source Table]]=Introduction!$B38),--(ConfigTblID[[#All],[Release introduced in TS 38.101-x]]=$C$5)),SUMPRODUCT(--(TRIM(ConfigTblID[[#All],[Completion Reference]])<>""),--(ConfigTblID[[#All],[TS and Source Table]]=Introduction!$B38))) -> 0 | F38: =IFERROR(E38/D38,"-") -> 0 | G38: =IF($C$5<>"All Releases",SUMPRODUCT(--(TRIM(ConfigTblID[[#All],[Interested Deployer(Note 2)]])<>""),--(TRIM(ConfigTblID[[#All],[Completion Reference]])=""),--(ConfigTblID[[#All],[TS and Source Table]]=Introduction!$B38),--(ConfigTblID[[#All],[Release introduced in TS 38.101-x]]=$C$5)),SUMPRODUCT(--(TRIM(ConfigTblID[[#All],[Interested Deployer(Note 2)]])<>""),--(TRIM(ConfigTblID[[#All],[Completion Reference]])=""),--(ConfigTblID[[#All],[TS and Source Table]]=Introduction!$B38))) -> 192 | H38: =D38-E38-G38 -> 4824
B39: 38.101-3:Table 5.5A.1-3 | C39: Inter-band CA configurations between FR1 and FR2 (four bands) | D39: =IF($C$5<>"All Releases",SUMPRODUCT(--(TRIM(ConfigTblID[[#All],[Release introduced in TS 38.101-x]])<>""),--(ConfigTblID[[#All],[TS and Source Table]]=Introduction!$B39),--(ConfigTblID[[#All],[Release introduced in TS 38.101-x]]=$C$5)),SUMPRODUCT(--(TRIM(ConfigTblID[[#All],[Release introduced in TS 38.101-x]])<>""),--(ConfigTblID[[#All],[TS and Source Table]]=Introduction!$B39))) -> 1171 | E39: =IF($C$5<>"All Releases",SUMPRODUCT(--(TRIM(ConfigTblID[[#All],[Completion Reference]])<>""),--(ConfigTblID[[#All],[TS and Source Table]]=Introduction!$B39),--(ConfigTblID[[#All],[Release introduced in TS 38.101-x]]=$C$5)),SUMPRODUCT(--(TRIM(ConfigTblID[[#All],[Completion Reference]])<>""),--(ConfigTblID[[#All],[TS and Source Table]]=Introduction!$B39))) -> 0 | F39: =IFERROR(E39/D39,"-") -> 0 | G39: =IF($C$5<>"All Releases",SUMPRODUCT(--(TRIM(ConfigTblID[[#All],[Interested Deployer(Note 2)]])<>""),--(TRIM(ConfigTblID[[#All],[Completion Reference]])=""),--(ConfigTblID[[#All],[TS and Source Table]]=Introduction!$B39),--(ConfigTblID[[#All],[Release introduced in TS 38.101-x]]=$C$5)),SUMPRODUCT(--(TRIM(ConfigTblID[[#All],[Interested Deployer(Note 2)]])<>""),--(TRIM(ConfigTblID[[#All],[Completion Reference]])=""),--(ConfigTblID[[#All],[TS and Source Table]]=Introduction!$B39))) -> 0 | H39: =D39-E39-G39 -> 1171
B40: 38.101-3:Table 5.5A.1-4 | C40: Inter-band CA configurations between FR1 and FR2 (five bands) | D40: =IF($C$5<>"All Releases",SUMPRODUCT(--(TRIM(ConfigTblID[[#All],[Release introduced in TS 38.101-x]])<>""),--(ConfigTblID[[#All],[TS and Source Table]]=Introduction!$B40),--(ConfigTblID[[#All],[Release introduced in TS 38.101-x]]=$C$5)),SUMPRODUCT(--(TRIM(ConfigTblID[[#All],[Release introduced in TS 38.101-x]])<>""),--(ConfigTblID[[#All],[TS and Source Table]]=Introduction!$B40))) -> 152 | E40: =IF($C$5<>"All Releases",SUMPRODUCT(--(TRIM(ConfigTblID[[#All],[Completion Reference]])<>""),--(ConfigTblID[[#All],[TS and Source Table]]=Introduction!$B40),--(ConfigTblID[[#All],[Release introduced in TS 38.101-x]]=$C$5)),SUMPRODUCT(--(TRIM(ConfigTblID[[#All],[Completion Reference]])<>""),--(ConfigTblID[[#All],[TS and Source Table]]=Introduction!$B40))) -> 0 | F40: =IFERROR(E40/D40,"-") -> 0 | G40: =IF($C$5<>"All Releases",SUMPRODUCT(--(TRIM(ConfigTblID[[#All],[Interested Deployer(Note 2)]])<>""),--(TRIM(ConfigTblID[[#All],[Completion Reference]])=""),--(ConfigTblID[[#All],[TS and Source Table]]=Introduction!$B40),--(ConfigTblID[[#All],[Release introduced in TS 38.101-x]]=$C$5)),SUMPRODUCT(--(TRIM(ConfigTblID[[#All],[Interested Deployer(Note 2)]])<>""),--(TRIM(ConfigTblID[[#All],[Completion Reference]])=""),--(ConfigTblID[[#All],[TS and Source Table]]=Introduction!$B40))) -> 0 | H40: =D40-E40-G40 -> 152
B41: NR-DC
B42: NR-DC configurations within FR1
B43: 38.101-1:Table 5.5B.1-1 | C43: Inter-band NR DC configurations (two bands) | D43: =IF($C$5<>"All Releases",SUMPRODUCT(--(TRIM(ConfigTblID[[#All],[Release introduced in TS 38.101-x]])<>""),--(ConfigTblID[[#All],[TS and Source Table]]=Introduction!$B43),--(ConfigTblID[[#All],[Release introduced in TS 38.101-x]]=$C$5)),SUMPRODUCT(--(TRIM(ConfigTblID[[#All],[Release introduced in TS 38.101-x]])<>""),--(ConfigTblID[[#All],[TS and Source Table]]=Introduction!$B43))) -> 140 | E43: =IF($C$5<>"All Releases",SUMPRODUCT(--(TRIM(ConfigTblID[[#All],[Completion Reference]])<>""),--(ConfigTblID[[#All],[TS and Source Table]]=Introduction!$B43),--(ConfigTblID[[#All],[Release introduced in TS 38.101-x]]=$C$5)),SUMPRODUCT(--(TRIM(ConfigTblID[[#All],[Completion Reference]])<>""),--(ConfigTblID[[#All],[TS and Source Table]]=Introduction!$B43))) -> 1 | F43: 0.007142857143 | G43: =IF($C$5<>"All Releases",SUMPRODUCT(--(TRIM(ConfigTblID[[#All],[Interested Deployer(Note 2)]])<>""),--(TRIM(ConfigTblID[[#All],[Completion Reference]])=""),--(ConfigTblID[[#All],[TS and Source Table]]=Introduction!$B43),--(ConfigTblID[[#All],[Release introduced in TS 38.101-x]]=$C$5)),SUMPRODUCT(--(TRIM(ConfigTblID[[#All],[Interested Deployer(Note 2)]])<>""),--(TRIM(ConfigTblID[[#All],[Completion Reference]])=""),--(ConfigTblID[[#All],[TS and Source Table]]=Introduction!$B43))) -> 14 | H43: 125
B44: 38.101-1:Table 5.5B.1-2 | C44: Inter-band NR DC configurations (three bands) | D44: =IF($C$5<>"All Releases",SUMPRODUCT(--(TRIM(ConfigTblID[[#All],[Release introduced in TS 38.101-x]])<>""),--(ConfigTblID[[#All],[TS and Source Table]]=Introduction!$B44),--(ConfigTblID[[#All],[Release introduced in TS 38.101-x]]=$C$5)),SUMPRODUCT(--(TRIM(ConfigTblID[[#All],[Release introduced in TS 38.101-x]])<>""),--(ConfigTblID[[#All],[TS and Source Table]]=Introduction!$B44))) -> 87 | E44: =IF($C$5<>"All Releases",SUMPRODUCT(--(TRIM(ConfigTblID[[#All],[Completion Reference]])<>""),--(ConfigTblID[[#All],[TS and Source Table]]=Introduction!$B44),--(ConfigTblID[[#All],[Release introduced in TS 38.101-x]]=$C$5)),SUMPRODUCT(--(TRIM(ConfigTblID[[#All],[Completion Reference]])<>""),--(ConfigTblID[[#All],[TS and Source Table]]=Introduction!$B44))) -> 0 | F44: =IFERROR(E44/D44,"-") -> 0 | G44: =IF($C$5<>"All Releases",SUMPRODUCT(--(TRIM(ConfigTblID[[#All],[Interested Deployer(Note 2)]])<>""),--(TRIM(ConfigTblID[[#All],[Completion Reference]])=""),--(ConfigTblID[[#All],[TS and Source Table]]=Introduction!$B44),--(ConfigTblID[[#All],[Release introduced in TS 38.101-x]]=$C$5)),SUMPRODUCT(--(TRIM(ConfigTblID[[#All],[Interested Deployer(Note 2)]])<>""),--(TRIM(ConfigTblID[[#All],[Completion Reference]])=""),--(ConfigTblID[[#All],[TS and Source Table]]=Introduction!$B44))) -> 0 | H44: =D44-E44-G44 -> 87
B45: 38.101-1:Table 5.5B.1-3 | C45: Inter-band NR DC configurations (four bands) | D45: =IF($C$5<>"All Releases",SUMPRODUCT(--(TRIM(ConfigTblID[[#All],[Release introduced in TS 38.101-x]])<>""),--(ConfigTblID[[#All],[TS and Source Table]]=Introduction!$B45),--(ConfigTblID[[#All],[Release introduced in TS 38.101-x]]=$C$5)),SUMPRODUCT(--(TRIM(ConfigTblID[[#All],[Release introduced in TS 38.101-x]])<>""),--(ConfigTblID[[#All],[TS and Source Table]]=Introduction!$B45))) -> 42 | E45: =IF($C$5<>"All Releases",SUMPRODUCT(--(TRIM(ConfigTblID[[#All],[Completion Reference]])<>""),--(ConfigTblID[[#All],[TS and Source Table]]=Introduction!$B45),--(ConfigTblID[[#All],[Release introduced in TS 38.101-x]]=$C$5)),SUMPRODUCT(--(TRIM(ConfigTblID[[#All],[Completion Reference]])<>""),--(ConfigTblID[[#All],[TS and Source Table]]=Introduction!$B45))) -> 0 | F45: =IFERROR(E45/D45,"-") -> 0 | G45: =IF($C$5<>"All Releases",SUMPRODUCT(--(TRIM(ConfigTblID[[#All],[Interested Deployer(Note 2)]])<>""),--(TRIM(ConfigTblID[[#All],[Completion Reference]])=""),--(ConfigTblID[[#All],[TS and Source Table]]=Introduction!$B45),--(ConfigTblID[[#All],[Release introduced in TS 38.101-x]]=$C$5)),SUMPRODUCT(--(TRIM(ConfigTblID[[#All],[Interested Deployer(Note 2)]])<>""),--(TRIM(ConfigTblID[[#All],[Completion Reference]])=""),--(ConfigTblID[[#All],[TS and Source Table]]=Introduction!$B45))) -> 0 | H45: =D45-E45-G45 -> 42
B46: NR-DC configurations including FR1 and FR2
B47: 38.101-3:Table 5.5B.7-1 | C47: Inter-band NR-DC configurations between FR1 and FR2 (two bands) | D47: =IF($C$5<>"All Releases",SUMPRODUCT(--(TRIM(ConfigTblID[[#All],[Release introduced in TS 38.101-x]])<>""),--(ConfigTblID[[#All],[TS and Source Table]]=Introduction!$B47),--(ConfigTblID[[#All],[Release introduced in TS 38.101-x]]=$C$5)),SUMPRODUCT(--(TRIM(ConfigTblID[[#All],[Release introduced in TS 38.101-x]])<>""),--(ConfigTblID[[#All],[TS and Source Table]]=Introduction!$B47))) -> 2039 | E47: =IF($C$5<>"All Releases",SUMPRODUCT(--(TRIM(ConfigTblID[[#All],[Completion Reference]])<>""),--(ConfigTblID[[#All],[TS and Source Table]]=Introduction!$B47),--(ConfigTblID[[#All],[Release introduced in TS 38.101-x]]=$C$5)),SUMPRODUCT(--(TRIM(ConfigTblID[[#All],[Completion Reference]])<>""),--(ConfigTblID[[#All],[TS and Source Table]]=Introduction!$B47))) -> 6 | F47: =IFERROR(E47/D47,"-") -> 0.002942618931 | G47: =IF($C$5<>"All Releases",SUMPRODUCT(--(TRIM(ConfigTblID[[#All],[Interested Deployer(Note 2)]])<>""),--(TRIM(ConfigTblID[[#All],[Completion Reference]])=""),--(ConfigTblID[[#All],[TS and Source Table]]=Introduction!$B47),--(ConfigTblID[[#All],[Release introduced in TS 38.101-x]]=$C$5)),SUMPRODUCT(--(TRIM(ConfigTblID[[#All],[Interested Deployer(Note 2)]])<>""),--(TRIM(ConfigTblID[[#All],[Completion Reference]])=""),--(ConfigTblID[[#All],[TS and Source Table]]=Introduction!$B47))) -> 260 | H47: =D47-E47-G47 -> 1773
B48: 38.101-3:Table 5.5B.7-2 | C48: Inter-band NR-DC configurations between FR1 and FR2 (three bands) | D48: =IF($C$5<>"All Releases",SUMPRODUCT(--(TRIM(ConfigTblID[[#All],[Release introduced in TS 38.101-x]])<>""),--(ConfigTblID[[#All],[TS and Source Table]]=Introduction!$B48),--(ConfigTblID[[#All],[Release introduced in TS 38.101-x]]=$C$5)),SUMPRODUCT(--(TRIM(ConfigTblID[[#All],[Release introduced in TS 38.101-x]])<>""),--(ConfigTblID[[#All],[TS and Source Table]]=Introduction!$B48))) -> 3314 | E48: =IF($C$5<>"All Releases",SUMPRODUCT(--(TRIM(ConfigTblID[[#All],[Completion Reference]])<>""),--(ConfigTblID[[#All],[TS and Source Table]]=Introduction!$B48),--(ConfigTblID[[#All],[Release introduced in TS 38.101-x]]=$C$5)),SUMPRODUCT(--(TRIM(ConfigTblID[[#All],[Completion Reference]])<>""),--(ConfigTblID[[#All],[TS and Source Table]]=Introduction!$B48))) -> 0 | F48: =IFERROR(E48/D48,"-") -> 0 | G48: =IF($C$5<>"All Releases",SUMPRODUCT(--(TRIM(ConfigTblID[[#All],[Interested Deployer(Note 2)]])<>""),--(TRIM(ConfigTblID[[#All],[Completion Reference]])=""),--(ConfigTblID[[#All],[TS and Source Table]]=Introduction!$B48),--(ConfigTblID[[#All],[Release introduced in TS 38.101-x]]=$C$5)),SUMPRODUCT(--(TRIM(ConfigTblID[[#All],[Interested Deployer(Note 2)]])<>""),--(TRIM(ConfigTblID[[#All],[Completion Reference]])=""),--(ConfigTblID[[#All],[TS and Source Table]]=Introduction!$B48))) -> 253 | H48: =D48-E48-G48 -> 3061
B49: 38.101-3:Table 5.5B.7-3 | C49: Inter-band NR-DC configurations between FR1 and FR2 (four bands) | D49: =IF($C$5<>"All Releases",SUMPRODUCT(--(TRIM(ConfigTblID[[#All],[Release introduced in TS 38.101-x]])<>""),--(ConfigTblID[[#All],[TS and Source Table]]=Introduction!$B49),--(ConfigTblID[[#All],[Release introduced in TS 38.101-x]]=$C$5)),SUMPRODUCT(--(TRIM(ConfigTblID[[#All],[Release introduced in TS 38.101-x]])<>""),--(ConfigTblID[[#All],[TS and Source Table]]=Introduction!$B49))) -> 654 | E49: =IF($C$5<>"All Releases",SUMPRODUCT(--(TRIM(ConfigTblID[[#All],[Completion Reference]])<>""),--(ConfigTblID[[#All],[TS and Source Table]]=Introduction!$B49),--(ConfigTblID[[#All],[Release introduced in TS 38.101-x]]=$C$5)),SUMPRODUCT(--(TRIM(ConfigTblID[[#All],[Completion Reference]])<>""),--(ConfigTblID[[#All],[TS and Source Table]]=Introduction!$B49))) -> 0 | F49: =IFERROR(E49/D49,"-") -> 0 | G49: =IF($C$5<>"All Releases",SUMPRODUCT(--(TRIM(ConfigTblID[[#All],[Interested Deployer(Note 2)]])<>""),--(TRIM(ConfigTblID[[#All],[Completion Reference]])=""),--(ConfigTblID[[#All],[TS and Source Table]]=Introduction!$B49),--(ConfigTblID[[#All],[Release introduced in TS 38.101-x]]=$C$5)),SUMPRODUCT(--(TRIM(ConfigTblID[[#All],[Interested Deployer(Note 2)]])<>""),--(TRIM(ConfigTblID[[#All],[Completion Reference]])=""),--(ConfigTblID[[#All],[TS and Source Table]]=Introduction!$B49))) -> 0 | H49: =D49-E49-G49 -> 654
B50: NR SUL
B51: NR SUL configurations within FR1
B52: 38.101-1:Table 5.5C-1 | C52: SUL band combination | D52: =IF($C$5<>"All Releases",SUMPRODUCT(--(TRIM(ConfigTblID[[#All],[Release introduced in TS 38.101-x]])<>""),--(ConfigTblID[[#All],[TS and Source Table]]=Introduction!$B52),--(ConfigTblID[[#All],[Release introduced in TS 38.101-x]]=$C$5)),SUMPRODUCT(--(TRIM(ConfigTblID[[#All],[Release introduced in TS 38.101-x]])<>""),--(ConfigTblID[[#All],[TS and Source Table]]=Introduction!$B52))) -> 33 | E52: =IF($C$5<>"All Releases",SUMPRODUCT(--(TRIM(ConfigTblID[[#All],[Completion Reference]])<>""),--(ConfigTblID[[#All],[TS and Source Table]]=Introduction!$B52),--(ConfigTblID[[#All],[Release introduced in TS 38.101-x]]=$C$5)),SUMPRODUCT(--(TRIM(ConfigTblID[[#All],[Completion Reference]])<>""),--(ConfigTblID[[#All],[TS and Source Table]]=Introduction!$B52))) -> 2 | F52: 0.06060606061 | G52: =IF($C$5<>"All Releases",SUMPRODUCT(--(TRIM(ConfigTblID[[#All],[Interested Deployer(Note 2)]])<>""),--(TRIM(ConfigTblID[[#All],[Completion Reference]])=""),--(ConfigTblID[[#All],[TS and Source Table]]=Introduction!$B52),--(ConfigTblID[[#All],[Release introduced in TS 38.101-x]]=$C$5)),SUMPRODUCT(--(TRIM(ConfigTblID[[#All],[Interested Deployer(Note 2)]])<>""),--(TRIM(ConfigTblID[[#All],[Completion Reference]])=""),--(ConfigTblID[[#All],[TS and Source Table]]=Introduction!$B52))) -> 6 | H52: 25
B53: 38.101-1:Table 5.5C-2 | C53: SUL band combination with intra-band non-contiguous CA | D53: =IF($C$5<>"All Releases",SUMPRODUCT(--(TRIM(ConfigTblID[[#All],[Release introduced in TS 38.101-x]])<>""),--(ConfigTblID[[#All],[TS and Source Table]]=Introduction!$B53),--(ConfigTblID[[#All],[Release introduced in TS 38.101-x]]=$C$5)),SUMPRODUCT(--(TRIM(ConfigTblID[[#All],[Release introduced in TS 38.101-x]])<>""),--(ConfigTblID[[#All],[TS and Source Table]]=Introduction!$B53))) -> 5 | E53: =IF($C$5<>"All Releases",SUMPRODUCT(--(TRIM(ConfigTblID[[#All],[Completion Reference]])<>""),--(ConfigTblID[[#All],[TS and Source Table]]=Introduction!$B53),--(ConfigTblID[[#All],[Release introduced in TS 38.101-x]]=$C$5)),SUMPRODUCT(--(TRIM(ConfigTblID[[#All],[Completion Reference]])<>""),--(ConfigTblID[[#All],[TS and Source Table]]=Introduction!$B53))) -> 0 | F53: 0 | G53: =IF($C$5<>"All Releases",SUMPRODUCT(--(TRIM(ConfigTblID[[#All],[Interested Deployer(Note 2)]])<>""),--(TRIM(ConfigTblID[[#All],[Completion Reference]])=""),--(ConfigTblID[[#All],[TS and Source Table]]=Introduction!$B53),--(ConfigTblID[[#All],[Release introduced in TS 38.101-x]]=$C$5)),SUMPRODUCT(--(TRIM(ConfigTblID[[#All],[Interested Deployer(Note 2)]])<>""),--(TRIM(ConfigTblID[[#All],[Completion Reference]])=""),--(ConfigTblID[[#All],[TS and Source Table]]=Introduction!$B53))) -> 3 | H53: 2
B54: 38.101-1:Table 5.5C-3 | C54: SUL band combination with intra-band contiguous CA | D54: =IF($C$5<>"All Releases",SUMPRODUCT(--(TRIM(ConfigTblID[[#All],[Release introduced in TS 38.101-x]])<>""),--(ConfigTblID[[#All],[TS and Source Table]]=Introduction!$B54),--(ConfigTblID[[#All],[Release introduced in TS 38.101-x]]=$C$5)),SUMPRODUCT(--(TRIM(ConfigTblID[[#All],[Release introduced in TS 38.101-x]])<>""),--(ConfigTblID[[#All],[TS and Source Table]]=Introduction!$B54))) -> 17 | E54: =IF($C$5<>"All Releases",SUMPRODUCT(--(TRIM(ConfigTblID[[#All],[Completion Reference]])<>""),--(ConfigTblID[[#All],[TS and Source Table]]=Introduction!$B54),--(ConfigTblID[[#All],[Release introduced in TS 38.101-x]]=$C$5)),SUMPRODUCT(--(TRIM(ConfigTblID[[#All],[Completion Reference]])<>""),--(ConfigTblID[[#All],[TS and Source Table]]=Introduction!$B54))) -> 4 | F54: 0.2352941176 | G54: =IF($C$5<>"All Releases",SUMPRODUCT(--(TRIM(ConfigTblID[[#All],[Interested Deployer(Note 2)]])<>""),--(TRIM(ConfigTblID[[#All],[Completion Reference]])=""),--(ConfigTblID[[#All],[TS and Source Table]]=Introduction!$B54),--(ConfigTblID[[#All],[Release introduced in TS 38.101-x]]=$C$5)),SUMPRODUCT(--(TRIM(ConfigTblID[[#All],[Interested Deployer(Note 2)]])<>""),--(TRIM(ConfigTblID[[#All],[Completion Reference]])=""),--(ConfigTblID[[#All],[TS and Source Table]]=Introduction!$B54))) -> 0 | H54: 13
B55: 38.101-1:Table 5.5C-4 | C55: SUL band combination with inter-band CA | D55: =IF($C$5<>"All Releases",SUMPRODUCT(--(TRIM(ConfigTblID[[#All],[Release introduced in TS 38.101-x]])<>""),--(ConfigTblID[[#All],[TS and Source Table]]=Introduction!$B55),--(ConfigTblID[[#All],[Release introduced in TS 38.101-x]]=$C$5)),SUMPRODUCT(--(TRIM(ConfigTblID[[#All],[Release introduced in TS 38.101-x]])<>""),--(ConfigTblID[[#All],[TS and Source Table]]=Introduction!$B55))) -> 26 | E55: =IF($C$5<>"All Releases",SUMPRODUCT(--(TRIM(ConfigTblID[[#All],[Completion Reference]])<>""),--(ConfigTblID[[#All],[TS and Source Table]]=Introduction!$B55),--(ConfigTblID[[#All],[Release introduced in TS 38.101-x]]=$C$5)),SUMPRODUCT(--(TRIM(ConfigTblID[[#All],[Completion Reference]])<>""),--(ConfigTblID[[#All],[TS and Source Table]]=Introduction!$B55))) -> 5 | F55: 0.1923076923 | G55: =IF($C$5<>"All Releases",SUMPRODUCT(--(TRIM(ConfigTblID[[#All],[Interested Deployer(Note 2)]])<>""),--(TRIM(ConfigTblID[[#All],[Completion Reference]])=""),--(ConfigTblID[[#All],[TS and Source Table]]=Introduction!$B55),--(ConfigTblID[[#All],[Release introduced in TS 38.101-x]]=$C$5)),SUMPRODUCT(--(TRIM(ConfigTblID[[#All],[Interested Deployer(Note 2)]])<>""),--(TRIM(ConfigTblID[[#All],[Completion Reference]])=""),--(ConfigTblID[[#All],[TS and Source Table]]=Introduction!$B55))) -> 0 | H55: 21
B56: NE-DC
B57: NE-DC configurations within FR1
B58: 38.101-3:Table 5.5B.4a.1-1 | C58: Inter-band NE-DC configurations within FR1 (two bands) | D58: =IF($C$5<>"All Releases",SUMPRODUCT(--(TRIM(ConfigTblID[[#All],[Release introduced in TS 38.101-x]])<>""),--(ConfigTblID[[#All],[TS and Source Table]]=Introduction!$B58),--(ConfigTblID[[#All],[Release introduced in TS 38.101-x]]=$C$5)),SUMPRODUCT(--(TRIM(ConfigTblID[[#All],[Release introduced in TS 38.101-x]])<>""),--(ConfigTblID[[#All],[TS and Source Table]]=Introduction!$B58))) -> 42 | E58: =IF($C$5<>"All Releases",SUMPRODUCT(--(TRIM(ConfigTblID[[#All],[Completion Reference]])<>""),--(ConfigTblID[[#All],[TS and Source Table]]=Introduction!$B58),--(ConfigTblID[[#All],[Release introduced in TS 38.101-x]]=$C$5)),SUMPRODUCT(--(TRIM(ConfigTblID[[#All],[Completion Reference]])<>""),--(ConfigTblID[[#All],[TS and Source Table]]=Introduction!$B58))) -> 0 | F58: =IFERROR(E58/D58,"-") -> 0 | G58: =IF($C$5<>"All Releases",SUMPRODUCT(--(TRIM(ConfigTblID[[#All],[Interested Deployer(Note 2)]])<>""),--(TRIM(ConfigTblID[[#All],[Completion Reference]])=""),--(ConfigTblID[[#All],[TS and Source Table]]=Introduction!$B58),--(ConfigTblID[[#All],[Release introduced in TS 38.101-x]]=$C$5)),SUMPRODUCT(--(TRIM(ConfigTblID[[#All],[Interested Deployer(Note 2)]])<>""),--(TRIM(ConfigTblID[[#All],[Completion Reference]])=""),--(ConfigTblID[[#All],[TS and Source Table]]=Introduction!$B58))) -> 0 | H58: =D58-E58-G58 -> 42
B59: 38.101-3:Table 5.5B.4a.2-1 | C59: Inter-band NE-DC configurations within FR1 (three bands) | D59: =IF($C$5<>"All Releases",SUMPRODUCT(--(TRIM(ConfigTblID[[#All],[Release introduced in TS 38.101-x]])<>""),--(ConfigTblID[[#All],[TS and Source Table]]=Introduction!$B59),--(ConfigTblID[[#All],[Release introduced in TS 38.101-x]]=$C$5)),SUMPRODUCT(--(TRIM(ConfigTblID[[#All],[Release introduced in TS 38.101-x]])<>""),--(ConfigTblID[[#All],[TS and Source Table]]=Introduction!$B59))) -> 42 | E59: =IF($C$5<>"All Releases",SUMPRODUCT(--(TRIM(ConfigTblID[[#All],[Completion Reference]])<>""),--(ConfigTblID[[#All],[TS and Source Table]]=Introduction!$B59),--(ConfigTblID[[#All],[Release introduced in TS 38.101-x]]=$C$5)),SUMPRODUCT(--(TRIM(ConfigTblID[[#All],[Completion Reference]])<>""),--(ConfigTblID[[#All],[TS and Source Table]]=Introduction!$B59))) -> 0 | F59: =IFERROR(E59/D59,"-") -> 0 | G59: =IF($C$5<>"All Releases",SUMPRODUCT(--(TRIM(ConfigTblID[[#All],[Interested Deployer(Note 2)]])<>""),--(TRIM(ConfigTblID[[#All],[Completion Reference]])=""),--(ConfigTblID[[#All],[TS and Source Table]]=Introduction!$B59),--(ConfigTblID[[#All],[Release introduced in TS 38.101-x]]=$C$5)),SUMPRODUCT(--(TRIM(ConfigTblID[[#All],[Interested Deployer(Note 2)]])<>""),--(TRIM(ConfigTblID[[#All],[Completion Reference]])=""),--(ConfigTblID[[#All],[TS and Source Table]]=Introduction!$B59))) -> 0 | H59: =D59-E59-G59 -> 42
B60: 38.101-3:Table 5.5B.4a.3-1 | C60: Inter-band NE-DC configurations within FR1 (four bands) | D60: =IF($C$5<>"All Releases",SUMPRODUCT(--(TRIM(ConfigTblID[[#All],[Release introduced in TS 38.101-x]])<>""),--(ConfigTblID[[#All],[TS and Source Table]]=Introduction!$B60),--(ConfigTblID[[#All],[Release introduced in TS 38.101-x]]=$C$5)),SUMPRODUCT(--(TRIM(ConfigTblID[[#All],[Release introduced in TS 38.101-x]])<>""),--(ConfigTblID[[#All],[TS and Source Table]]=Introduction!$B60))) -> 33 | E60: =IF($C$5<>"All Releases",SUMPRODUCT(--(TRIM(ConfigTblID[[#All],[Completion Reference]])<>""),--(ConfigTblID[[#All],[TS and Source Table]]=Introduction!$B60),--(ConfigTblID[[#All],[Release introduced in TS 38.101-x]]=$C$5)),SUMPRODUCT(--(TRIM(ConfigTblID[[#All],[Completion Reference]])<>""),--(ConfigTblID[[#All],[TS and Source Table]]=Introduction!$B60))) -> 0 | F60: =IFERROR(E60/D60,"-") -> 0 | G60: =IF($C$5<>"All Releases",SUMPRODUCT(--(TRIM(ConfigTblID[[#All],[Interested Deployer(Note 2)]])<>""),--(TRIM(ConfigTblID[[#All],[Completion Reference]])=""),--(ConfigTblID[[#All],[TS and Source Table]]=Introduction!$B60),--(ConfigTblID[[#All],[Release introduced in TS 38.101-x]]=$C$5)),SUMPRODUCT(--(TRIM(ConfigTblID[[#All],[Interested Deployer(Note 2)]])<>""),--(TRIM(ConfigTblID[[#All],[Completion Reference]])=""),--(ConfigTblID[[#All],[TS and Source Table]]=Introduction!$B60))) -> 0 | H60: =D60-E60-G60 -> 33
B61: 38.101-3:Table 5.5B.4a.4-1 | C61: Inter-band NE-DC configurations within FR1 (five bands) | D61: =IF($C$5<>"All Releases",SUMPRODUCT(--(TRIM(ConfigTblID[[#All],[Release introduced in TS 38.101-x]])<>""),--(ConfigTblID[[#All],[TS and Source Table]]=Introduction!$B61),--(ConfigTblID[[#All],[Release introduced in TS 38.101-x]]=$C$5)),SUMPRODUCT(--(TRIM(ConfigTblID[[#All],[Release introduced in TS 38.101-x]])<>""),--(ConfigTblID[[#All],[TS and Source Table]]=Introduction!$B61))) -> 8 | E61: =IF($C$5<>"All Releases",SUMPRODUCT(--(TRIM(ConfigTblID[[#All],[Completion Reference]])<>""),--(ConfigTblID[[#All],[TS and Source Table]]=Introduction!$B61),--(ConfigTblID[[#All],[Release introduced in TS 38.101-x]]=$C$5)),SUMPRODUCT(--(TRIM(ConfigTblID[[#All],[Completion Reference]])<>""),--(ConfigTblID[[#All],[TS and Source Table]]=Introduction!$B61))) -> 0 | F61: =IFERROR(E61/D61,"-") -> 0 | G61: =IF($C$5<>"All Releases",SUMPRODUCT(--(TRIM(ConfigTblID[[#All],[Interested Deployer(Note 2)]])<>""),--(TRIM(ConfigTblID[[#All],[Completion Reference]])=""),--(ConfigTblID[[#All],[TS and Source Table]]=Introduction!$B61),--(ConfigTblID[[#All],[Release introduced in TS 38.101-x]]=$C$5)),SUMPRODUCT(--(TRIM(ConfigTblID[[#All],[Interested Deployer(Note 2)]])<>""),--(TRIM(ConfigTblID[[#All],[Completion Reference]])=""),--(ConfigTblID[[#All],[TS and Source Table]]=Introduction!$B61))) -> 0 | H61: =D61-E61-G61 -> 8
B62: NE-DC configurations within FR2
B63: 38.101-3:Table 5.5B.5a.1-1 | C63: Inter-band NE-DC configurations including FR2 (two bands) | D63: =IF($C$5<>"All Releases",SUMPRODUCT(--(TRIM(ConfigTblID[[#All],[Release introduced in TS 38.101-x]])<>""),--(ConfigTblID[[#All],[TS and Source Table]]=Introduction!$B63),--(ConfigTblID[[#All],[Release introduced in TS 38.101-x]]=$C$5)),SUMPRODUCT(--(TRIM(ConfigTblID[[#All],[Release introduced in TS 38.101-x]])<>""),--(ConfigTblID[[#All],[TS and Source Table]]=Introduction!$B63))) -> 177 | E63: =IF($C$5<>"All Releases",SUMPRODUCT(--(TRIM(ConfigTblID[[#All],[Completion Reference]])<>""),--(ConfigTblID[[#All],[TS and Source Table]]=Introduction!$B63),--(ConfigTblID[[#All],[Release introduced in TS 38.101-x]]=$C$5)),SUMPRODUCT(--(TRIM(ConfigTblID[[#All],[Completion Reference]])<>""),--(ConfigTblID[[#All],[TS and Source Table]]=Introduction!$B63))) -> 0 | F63: =IFERROR(E63/D63,"-") -> 0 | G63: =IF($C$5<>"All Releases",SUMPRODUCT(--(TRIM(ConfigTblID[[#All],[Interested Deployer(Note 2)]])<>""),--(TRIM(ConfigTblID[[#All],[Completion Reference]])=""),--(ConfigTblID[[#All],[TS and Source Table]]=Introduction!$B63),--(ConfigTblID[[#All],[Release introduced in TS 38.101-x]]=$C$5)),SUMPRODUCT(--(TRIM(ConfigTblID[[#All],[Interested Deployer(Note 2)]])<>""),--(TRIM(ConfigTblID[[#All],[Completion Reference]])=""),--(ConfigTblID[[#All],[TS and Source Table]]=Introduction!$B63))) -> 0 | H63: =D63-E63-G63 -> 177
B64: 38.101-3:Table 5.5B.5a.2-1 | C64: Inter-band NE-DC configurations including FR2 (three bands) | D64: =IF($C$5<>"All Releases",SUMPRODUCT(--(TRIM(ConfigTblID[[#All],[Release introduced in TS 38.101-x]])<>""),--(ConfigTblID[[#All],[TS and Source Table]]=Introduction!$B64),--(ConfigTblID[[#All],[Release introduced in TS 38.101-x]]=$C$5)),SUMPRODUCT(--(TRIM(ConfigTblID[[#All],[Release introduced in TS 38.101-x]])<>""),--(ConfigTblID[[#All],[TS and Source Table]]=Introduction!$B64))) -> 329 | E64: =IF($C$5<>"All Releases",SUMPRODUCT(--(TRIM(ConfigTblID[[#All],[Completion Reference]])<>""),--(ConfigTblID[[#All],[TS and Source Table]]=Introduction!$B64),--(ConfigTblID[[#All],[Release introduced in TS 38.101-x]]=$C$5)),SUMPRODUCT(--(TRIM(ConfigTblID[[#All],[Completion Reference]])<>""),--(ConfigTblID[[#All],[TS and Source Table]]=Introduction!$B64))) -> 0 | F64: =IFERROR(E64/D64,"-") -> 0 | G64: =IF($C$5<>"All Releases",SUMPRODUCT(--(TRIM(ConfigTblID[[#All],[Interested Deployer(Note 2)]])<>""),--(TRIM(ConfigTblID[[#All],[Completion Reference]])=""),--(ConfigTblID[[#All],[TS and Source Table]]=Introduction!$B64),--(ConfigTblID[[#All],[Release introduced in TS 38.101-x]]=$C$5)),SUMPRODUCT(--(TRIM(ConfigTblID[[#All],[Interested Deployer(Note 2)]])<>""),--(TRIM(ConfigTblID[[#All],[Completion Reference]])=""),--(ConfigTblID[[#All],[TS and Source Table]]=Introduction!$B64))) -> 0 | H64: =D64-E64-G64 -> 329
B65: 38.101-3:Table 5.5B.5a.3-1 | C65: Inter-band NE-DC configurations including FR2 (four bands) | D65: =IF($C$5<>"All Releases",SUMPRODUCT(--(TRIM(ConfigTblID[[#All],[Release introduced in TS 38.101-x]])<>""),--(ConfigTblID[[#All],[TS and Source Table]]=Introduction!$B65),--(ConfigTblID[[#All],[Release introduced in TS 38.101-x]]=$C$5)),SUMPRODUCT(--(TRIM(ConfigTblID[[#All],[Release introduced in TS 38.101-x]])<>""),--(ConfigTblID[[#All],[TS and Source Table]]=Introduction!$B65))) -> 280 | E65: =IF($C$5<>"All Releases",SUMPRODUCT(--(TRIM(ConfigTblID[[#All],[Completion Reference]])<>""),--(ConfigTblID[[#All],[TS and Source Table]]=Introduction!$B65),--(ConfigTblID[[#All],[Release introduced in TS 38.101-x]]=$C$5)),SUMPRODUCT(--(TRIM(ConfigTblID[[#All],[Completion Reference]])<>""),--(ConfigTblID[[#All],[TS and Source Table]]=Introduction!$B65))) -> 0 | F65: =IFERROR(E65/D65,"-") -> 0 | G65: =IF($C$5<>"All Releases",SUMPRODUCT(--(TRIM(ConfigTblID[[#All],[Interested Deployer(Note 2)]])<>""),--(TRIM(ConfigTblID[[#All],[Completion Reference]])=""),--(ConfigTblID[[#All],[TS and Source Table]]=Introduction!$B65),--(ConfigTblID[[#All],[Release introduced in TS 38.101-x]]=$C$5)),SUMPRODUCT(--(TRIM(ConfigTblID[[#All],[Interested Deployer(Note 2)]])<>""),--(TRIM(ConfigTblID[[#All],[Completion Reference]])=""),--(ConfigTblID[[#All],[TS and Source Table]]=Introduction!$B65))) -> 0 | H65: =D65-E65-G65 -> 280
B66: 38.101-3:Table 5.5B.5a.4-1 | C66: Inter-band NE-DC configurations including FR2 (five bands) | D66: =IF($C$5<>"All Releases",SUMPRODUCT(--(TRIM(ConfigTblID[[#All],[Release introduced in TS 38.101-x]])<>""),--(ConfigTblID[[#All],[TS and Source Table]]=Introduction!$B66),--(ConfigTblID[[#All],[Release introduced in TS 38.101-x]]=$C$5)),SUMPRODUCT(--(TRIM(ConfigTblID[[#All],[Release introduced in TS 38.101-x]])<>""),--(ConfigTblID[[#All],[TS and Source Table]]=Introduction!$B66))) -> 64 | E66: =IF($C$5<>"All Releases",SUMPRODUCT(--(TRIM(ConfigTblID[[#All],[Completion Reference]])<>""),--(ConfigTblID[[#All],[TS and Source Table]]=Introduction!$B66),--(ConfigTblID[[#All],[Release introduced in TS 38.101-x]]=$C$5)),SUMPRODUCT(--(TRIM(ConfigTblID[[#All],[Completion Reference]])<>""),--(ConfigTblID[[#All],[TS and Source Table]]=Introduction!$B66))) -> 0 | F66: =IFERROR(E66/D66,"-") -> 0 | G66: =IF($C$5<>"All Releases",SUMPRODUCT(--(TRIM(ConfigTblID[[#All],[Interested Deployer(Note 2)]])<>""),--(TRIM(ConfigTblID[[#All],[Completion Reference]])=""),--(ConfigTblID[[#All],[TS and Source Table]]=Introduction!$B66),--(ConfigTblID[[#All],[Release introduced in TS 38.101-x]]=$C$5)),SUMPRODUCT(--(TRIM(ConfigTblID[[#All],[Interested Deployer(Note 2)]])<>""),--(TRIM(ConfigTblID[[#All],[Completion Reference]])=""),--(ConfigTblID[[#All],[TS and Source Table]]=Introduction!$B66))) -> 0 | H66: =D66-E66-G66 -> 64
B67: EN-DC
B68: EN-DC configurations within FR1
B69: 38.101-3:Table 5.3B.1.2-1 | C69: EN-DC configurations for intra-band contiguous EN-DC | D69: =IF($C$5<>"All Releases",SUMPRODUCT(--(TRIM(ConfigTblID[[#All],[Release introduced in TS 38.101-x]])<>""),--(ConfigTblID[[#All],[TS and Source Table]]=Introduction!$B69),--(ConfigTblID[[#All],[Release introduced in TS 38.101-x]]=$C$5)),SUMPRODUCT(--(TRIM(ConfigTblID[[#All],[Release introduced in TS 38.101-x]])<>""),--(ConfigTblID[[#All],[TS and Source Table]]=Introduction!$B69))) -> 32 | E69: =IF($C$5<>"All Releases",SUMPRODUCT(--(TRIM(ConfigTblID[[#All],[Completion Reference]])<>""),--(ConfigTblID[[#All],[TS and Source Table]]=Introduction!$B69),--(ConfigTblID[[#All],[Release introduced in TS 38.101-x]]=$C$5)),SUMPRODUCT(--(TRIM(ConfigTblID[[#All],[Completion Reference]])<>""),--(ConfigTblID[[#All],[TS and Source Table]]=Introduction!$B69))) -> 1 | F69: =IFERROR(E69/D69,"-") -> 0.03125 | G69: =IF($C$5<>"All Releases",SUMPRODUCT(--(TRIM(ConfigTblID[[#All],[Interested Deployer(Note 2)]])<>""),--(TRIM(ConfigTblID[[#All],[Completion Reference]])=""),--(ConfigTblID[[#All],[TS and Source Table]]=Introduction!$B69),--(ConfigTblID[[#All],[Release introduced in TS 38.101-x]]=$C$5)),SUMPRODUCT(--(TRIM(ConfigTblID[[#All],[Interested Deployer(Note 2)]])<>""),--(TRIM(ConfigTblID[[#All],[Completion Reference]])=""),--(ConfigTblID[[#All],[TS and Source Table]]=Introduction!$B69))) -> 8 | H69: =D69-E69-G69 -> 23
B70: 38.101-3:Table 5.3B.1.3-1 | C70: EN-DC configurations for intra-band non-contiguous EN-DC | D70: =IF($C$5<>"All Releases",SUMPRODUCT(--(TRIM(ConfigTblID[[#All],[Release introduced in TS 38.101-x]])<>""),--(ConfigTblID[[#All],[TS and Source Table]]=Introduction!$B70),--(ConfigTblID[[#All],[Release introduced in TS 38.101-x]]=$C$5)),SUMPRODUCT(--(TRIM(ConfigTblID[[#All],[Release introduced in TS 38.101-x]])<>""),--(ConfigTblID[[#All],[TS and Source Table]]=Introduction!$B70))) -> 23 | E70: =IF($C$5<>"All Releases",SUMPRODUCT(--(TRIM(ConfigTblID[[#All],[Completion Reference]])<>""),--(ConfigTblID[[#All],[TS and Source Table]]=Introduction!$B70),--(ConfigTblID[[#All],[Release introduced in TS 38.101-x]]=$C$5)),SUMPRODUCT(--(TRIM(ConfigTblID[[#All],[Completion Reference]])<>""),--(ConfigTblID[[#All],[TS and Source Table]]=Introduction!$B70))) -> 2 | F70: 0.08695652174 | G70: =IF($C$5<>"All Releases",SUMPRODUCT(--(TRIM(ConfigTblID[[#All],[Interested Deployer(Note 2)]])<>""),--(TRIM(ConfigTblID[[#All],[Completion Reference]])=""),--(ConfigTblID[[#All],[TS and Source Table]]=Introduction!$B70),--(ConfigTblID[[#All],[Release introduced in TS 38.101-x]]=$C$5)),SUMPRODUCT(--(TRIM(ConfigTblID[[#All],[Interested Deployer(Note 2)]])<>""),--(TRIM(ConfigTblID[[#All],[Completion Reference]])=""),--(ConfigTblID[[#All],[TS and Source Table]]=Introduction!$B70))) -> 2 | H70: 19
B71: 38.101-3:Table 5.3B.1.3-2 | C71: EN-DC configurations and bandwidth combination sets defined for intra-band EN-DC mixed intra-band contiguous and non-contiguous EN-DC | D71: =IF($C$5<>"All Releases",SUMPRODUCT(--(TRIM(ConfigTblID[[#All],[Release introduced in TS 38.101-x]])<>""),--(ConfigTblID[[#All],[TS and Source Table]]=Introduction!$B71),--(ConfigTblID[[#All],[Release introduced in TS 38.101-x]]=$C$5)),SUMPRODUCT(--(TRIM(ConfigTblID[[#All],[Release introduced in TS 38.101-x]])<>""),--(ConfigTblID[[#All],[TS and Source Table]]=Introduction!$B71))) -> 2 | E71: =IF($C$5<>"All Releases",SUMPRODUCT(--(TRIM(ConfigTblID[[#All],[Completion Reference]])<>""),--(ConfigTblID[[#All],[TS and Source Table]]=Introduction!$B71),--(ConfigTblID[[#All],[Release introduced in TS 38.101-x]]=$C$5)),SUMPRODUCT(--(TRIM(ConfigTblID[[#All],[Completion Reference]])<>""),--(ConfigTblID[[#All],[TS and Source Table]]=Introduction!$B71))) -> 0 | F71: =IFERROR(E71/D71,"-") -> 0 | G71: =IF($C$5<>"All Releases",SUMPRODUCT(--(TRIM(ConfigTblID[[#All],[Interested Deployer(Note 2)]])<>""),--(TRIM(ConfigTblID[[#All],[Completion Reference]])=""),--(ConfigTblID[[#All],[TS and Source Table]]=Introduction!$B71),--(ConfigTblID[[#All],[Release introduced in TS 38.101-x]]=$C$5)),SUMPRODUCT(--(TRIM(ConfigTblID[[#All],[Interested Deployer(Note 2)]])<>""),--(TRIM(ConfigTblID[[#All],[Completion Reference]])=""),--(ConfigTblID[[#All],[TS and Source Table]]=Introduction!$B71))) -> 0 | H71: =D71-E71-G71 -> 2
B72: 38.101-3:Table 5.5B.4.1-1 | C72: Inter-band EN-DC configurations within FR1 (two bands) | D72: =IF($C$5<>"All Releases",SUMPRODUCT(--(TRIM(ConfigTblID[[#All],[Release introduced in TS 38.101-x]])<>""),--(ConfigTblID[[#All],[TS and Source Table]]=Introduction!$B72),--(ConfigTblID[[#All],[Release introduced in TS 38.101-x]]=$C$5)),SUMPRODUCT(--(TRIM(ConfigTblID[[#All],[Release introduced in TS 38.101-x]])<>""),--(ConfigTblID[[#All],[TS and Source Table]]=Introduction!$B72))) -> 606 | E72: =IF($C$5<>"All Releases",SUMPRODUCT(--(TRIM(ConfigTblID[[#All],[Completion Reference]])<>""),--(ConfigTblID[[#All],[TS and Source Table]]=Introduction!$B72),--(ConfigTblID[[#All],[Release introduced in TS 38.101-x]]=$C$5)),SUMPRODUCT(--(TRIM(ConfigTblID[[#All],[Completion Reference]])<>""),--(ConfigTblID[[#All],[TS and Source Table]]=Introduction!$B72))) -> 113 | F72: 0.1864686469 | G72: =IF($C$5<>"All Releases",SUMPRODUCT(--(TRIM(ConfigTblID[[#All],[Interested Deployer(Note 2)]])<>""),--(TRIM(ConfigTblID[[#All],[Completion Reference]])=""),--(ConfigTblID[[#All],[TS and Source Table]]=Introduction!$B72),--(ConfigTblID[[#All],[Release introduced in TS 38.101-x]]=$C$5)),SUMPRODUCT(--(TRIM(ConfigTblID[[#All],[Interested Deployer(Note 2)]])<>""),--(TRIM(ConfigTblID[[#All],[Completion Reference]])=""),--(ConfigTblID[[#All],[TS and Source Table]]=Introduction!$B72))) -> 85 | H72: 408
B73: 38.101-3:Table 5.5B.4.2-1 | C73: Inter-band EN-DC configurations within FR1 (three bands) | D73: =IF($C$5<>"All Releases",SUMPRODUCT(--(TRIM(ConfigTblID[[#All],[Release introduced in TS 38.101-x]])<>""),--(ConfigTblID[[#All],[TS and Source Table]]=Introduction!$B73),--(ConfigTblID[[#All],[Release introduced in TS 38.101-x]]=$C$5)),SUMPRODUCT(--(TRIM(ConfigTblID[[#All],[Release introduced in TS 38.101-x]])<>""),--(ConfigTblID[[#All],[TS and Source Table]]=Introduction!$B73))) -> 3107 | E73: =IF($C$5<>"All Releases",SUMPRODUCT(--(TRIM(ConfigTblID[[#All],[Completion Reference]])<>""),--(ConfigTblID[[#All],[TS and Source Table]]=Introduction!$B73),--(ConfigTblID[[#All],[Release introduced in TS 38.101-x]]=$C$5)),SUMPRODUCT(--(TRIM(ConfigTblID[[#All],[Completion Reference]])<>""),--(ConfigTblID[[#All],[TS and Source Table]]=Introduction!$B73))) -> 187 | F73: 0.06018667525 | G73: =IF($C$5<>"All Releases",SUMPRODUCT(--(TRIM(ConfigTblID[[#All],[Interested Deployer(Note 2)]])<>""),--(TRIM(ConfigTblID[[#All],[Completion Reference]])=""),--(ConfigTblID[[#All],[TS and Source Table]]=Introduction!$B73),--(ConfigTblID[[#All],[Release introduced in TS 38.101-x]]=$C$5)),SUMPRODUCT(--(TRIM(ConfigTblID[[#All],[Interested Deployer(Note 2)]])<>""),--(TRIM(ConfigTblID[[#All],[Completion Reference]])=""),--(ConfigTblID[[#All],[TS and Source Table]]=Introduction!$B73))) -> 520 | H73: 2400
B74: 38.101-3:Table 5.5B.4.3-1 | C74: Inter-band EN-DC configurations within FR1 (four bands) | D74: =IF($C$5<>"All Releases",SUMPRODUCT(--(TRIM(ConfigTblID[[#All],[Release introduced in TS 38.101-x]])<>""),--(ConfigTblID[[#All],[TS and Source Table]]=Introduction!$B74),--(ConfigTblID[[#All],[Release introduced in TS 38.101-x]]=$C$5)),SUMPRODUCT(--(TRIM(ConfigTblID[[#All],[Release introduced in TS 38.101-x]])<>""),--(ConfigTblID[[#All],[TS and Source Table]]=Introduction!$B74))) -> 4529 | E74: =IF($C$5<>"All Releases",SUMPRODUCT(--(TRIM(ConfigTblID[[#All],[Completion Reference]])<>""),--(ConfigTblID[[#All],[TS and Source Table]]=Introduction!$B74),--(ConfigTblID[[#All],[Release introduced in TS 38.101-x]]=$C$5)),SUMPRODUCT(--(TRIM(ConfigTblID[[#All],[Completion Reference]])<>""),--(ConfigTblID[[#All],[TS and Source Table]]=Introduction!$B74))) -> 174 | F74: 0.03841907706 | G74: =IF($C$5<>"All Releases",SUMPRODUCT(--(TRIM(ConfigTblID[[#All],[Interested Deployer(Note 2)]])<>""),--(TRIM(ConfigTblID[[#All],[Completion Reference]])=""),--(ConfigTblID[[#All],[TS and Source Table]]=Introduction!$B74),--(ConfigTblID[[#All],[Release introduced in TS 38.101-x]]=$C$5)),SUMPRODUCT(--(TRIM(ConfigTblID[[#All],[Interested Deployer(Note 2)]])<>""),--(TRIM(ConfigTblID[[#All],[Completion Reference]])=""),--(ConfigTblID[[#All],[TS and Source Table]]=Introduction!$B74))) -> 737 | H74: 3618
B75: 38.101-3:Table 5.5B.4.4-1 | C75: Inter-band EN-DC configurations within FR1 (five bands) | D75: =IF($C$5<>"All Releases",SUMPRODUCT(--(TRIM(ConfigTblID[[#All],[Release introduced in TS 38.101-x]])<>""),--(ConfigTblID[[#All],[TS and Source Table]]=Introduction!$B75),--(ConfigTblID[[#All],[Release introduced in TS 38.101-x]]=$C$5)),SUMPRODUCT(--(TRIM(ConfigTblID[[#All],[Release introduced in TS 38.101-x]])<>""),--(ConfigTblID[[#All],[TS and Source Table]]=Introduction!$B75))) -> 2138 | E75: =IF($C$5<>"All Releases",SUMPRODUCT(--(TRIM(ConfigTblID[[#All],[Completion Reference]])<>""),--(ConfigTblID[[#All],[TS and Source Table]]=Introduction!$B75),--(ConfigTblID[[#All],[Release introduced in TS 38.101-x]]=$C$5)),SUMPRODUCT(--(TRIM(ConfigTblID[[#All],[Completion Reference]])<>""),--(ConfigTblID[[#All],[TS and Source Table]]=Introduction!$B75))) -> 68 | F75: 0.03180542563 | G75: =IF($C$5<>"All Releases",SUMPRODUCT(--(TRIM(ConfigTblID[[#All],[Interested Deployer(Note 2)]])<>""),--(TRIM(ConfigTblID[[#All],[Completion Reference]])=""),--(ConfigTblID[[#All],[TS and Source Table]]=Introduction!$B75),--(ConfigTblID[[#All],[Release introduced in TS 38.101-x]]=$C$5)),SUMPRODUCT(--(TRIM(ConfigTblID[[#All],[Interested Deployer(Note 2)]])<>""),--(TRIM(ConfigTblID[[#All],[Completion Reference]])=""),--(ConfigTblID[[#All],[TS and Source Table]]=Introduction!$B75))) -> 258 | H75: 1812
B76: 38.101-3:Table 5.5B.4.5-1 | C76: Inter-band EN-DC configurations within FR1 (six bands) | D76: =IF($C$5<>"All Releases",SUMPRODUCT(--(TRIM(ConfigTblID[[#All],[Release introduced in TS 38.101-x]])<>""),--(ConfigTblID[[#All],[TS and Source Table]]=Introduction!$B76),--(ConfigTblID[[#All],[Release introduced in TS 38.101-x]]=$C$5)),SUMPRODUCT(--(TRIM(ConfigTblID[[#All],[Release introduced in TS 38.101-x]])<>""),--(ConfigTblID[[#All],[TS and Source Table]]=Introduction!$B76))) -> 252 | E76: =IF($C$5<>"All Releases",SUMPRODUCT(--(TRIM(ConfigTblID[[#All],[Completion Reference]])<>""),--(ConfigTblID[[#All],[TS and Source Table]]=Introduction!$B76),--(ConfigTblID[[#All],[Release introduced in TS 38.101-x]]=$C$5)),SUMPRODUCT(--(TRIM(ConfigTblID[[#All],[Completion Reference]])<>""),--(ConfigTblID[[#All],[TS and Source Table]]=Introduction!$B76))) -> 8 | F76: 0.03174603175 | G76: =IF($C$5<>"All Releases",SUMPRODUCT(--(TRIM(ConfigTblID[[#All],[Interested Deployer(Note 2)]])<>""),--(TRIM(ConfigTblID[[#All],[Completion Reference]])=""),--(ConfigTblID[[#All],[TS and Source Table]]=Introduction!$B76),--(ConfigTblID[[#All],[Release introduced in TS 38.101-x]]=$C$5)),SUMPRODUCT(--(TRIM(ConfigTblID[[#All],[Interested Deployer(Note 2)]])<>""),--(TRIM(ConfigTblID[[#All],[Completion Reference]])=""),--(ConfigTblID[[#All],[TS and Source Table]]=Introduction!$B76))) -> 0 | H76: 244
B77: EN-DC configurations within FR2
B78: 38.101-3:Table 5.5B.5.1-1 | C78: Inter-band EN-DC configurations including FR2 (two bands) | D78: =IF($C$5<>"All Releases",SUMPRODUCT(--(TRIM(ConfigTblID[[#All],[Release introduced in TS 38.101-x]])<>""),--(ConfigTblID[[#All],[TS and Source Table]]=Introduction!$B78),--(ConfigTblID[[#All],[Release introduced in TS 38.101-x]]=$C$5)),SUMPRODUCT(--(TRIM(ConfigTblID[[#All],[Release introduced in TS 38.101-x]])<>""),--(ConfigTblID[[#All],[TS and Source Table]]=Introduction!$B78))) -> 5048 | E78: =IF($C$5<>"All Releases",SUMPRODUCT(--(TRIM(ConfigTblID[[#All],[Completion Reference]])<>""),--(ConfigTblID[[#All],[TS and Source Table]]=Introduction!$B78),--(ConfigTblID[[#All],[Release introduced in TS 38.101-x]]=$C$5)),SUMPRODUCT(--(TRIM(ConfigTblID[[#All],[Completion Reference]])<>""),--(ConfigTblID[[#All],[TS and Source Table]]=Introduction!$B78))) -> 11 | F78: 0.002179080824 | G78: =IF($C$5<>"All Releases",SUMPRODUCT(--(TRIM(ConfigTblID[[#All],[Interested Deployer(Note 2)]])<>""),--(TRIM(ConfigTblID[[#All],[Completion Reference]])=""),--(ConfigTblID[[#All],[TS and Source Table]]=Introduction!$B78),--(ConfigTblID[[#All],[Release introduced in TS 38.101-x]]=$C$5)),SUMPRODUCT(--(TRIM(ConfigTblID[[#All],[Interested Deployer(Note 2)]])<>""),--(TRIM(ConfigTblID[[#All],[Completion Reference]])=""),--(ConfigTblID[[#All],[TS and Source Table]]=Introduction!$B78))) -> 523 | H78: 4514
B79: 38.101-3:Table 5.5B.5.2-1 | C79: Inter-band EN-DC configurations including FR2 (three bands) | D79: =IF($C$5<>"All Releases",SUMPRODUCT(--(TRIM(ConfigTblID[[#All],[Release introduced in TS 38.101-x]])<>""),--(ConfigTblID[[#All],[TS and Source Table]]=Introduction!$B79),--(ConfigTblID[[#All],[Release introduced in TS 38.101-x]]=$C$5)),SUMPRODUCT(--(TRIM(ConfigTblID[[#All],[Release introduced in TS 38.101-x]])<>""),--(ConfigTblID[[#All],[TS and Source Table]]=Introduction!$B79))) -> 10660 | E79: =IF($C$5<>"All Releases",SUMPRODUCT(--(TRIM(ConfigTblID[[#All],[Completion Reference]])<>""),--(ConfigTblID[[#All],[TS and Source Table]]=Introduction!$B79),--(ConfigTblID[[#All],[Release introduced in TS 38.101-x]]=$C$5)),SUMPRODUCT(--(TRIM(ConfigTblID[[#All],[Completion Reference]])<>""),--(ConfigTblID[[#All],[TS and Source Table]]=Introduction!$B79))) -> 34 | F79: 0.003189493433 | G79: =IF($C$5<>"All Releases",SUMPRODUCT(--(TRIM(ConfigTblID[[#All],[Interested Deployer(Note 2)]])<>""),--(TRIM(ConfigTblID[[#All],[Completion Reference]])=""),--(ConfigTblID[[#All],[TS and Source Table]]=Introduction!$B79),--(ConfigTblID[[#All],[Release introduced in TS 38.101-x]]=$C$5)),SUMPRODUCT(--(TRIM(ConfigTblID[[#All],[Interested Deployer(Note 2)]])<>""),--(TRIM(ConfigTblID[[#All],[Completion Reference]])=""),--(ConfigTblID[[#All],[TS and Source Table]]=Introduction!$B79))) -> 2426 | H79: 8200
B80: 38.101-3:Table 5.5B.5.3-1 | C80: Inter-band EN-DC configurations including FR2 (four bands) | D80: =IF($C$5<>"All Releases",SUMPRODUCT(--(TRIM(ConfigTblID[[#All],[Release introduced in TS 38.101-x]])<>""),--(ConfigTblID[[#All],[TS and Source Table]]=Introduction!$B80),--(ConfigTblID[[#All],[Release introduced in TS 38.101-x]]=$C$5)),SUMPRODUCT(--(TRIM(ConfigTblID[[#All],[Release introduced in TS 38.101-x]])<>""),--(ConfigTblID[[#All],[TS and Source Table]]=Introduction!$B80))) -> 10718 | E80: =IF($C$5<>"All Releases",SUMPRODUCT(--(TRIM(ConfigTblID[[#All],[Completion Reference]])<>""),--(ConfigTblID[[#All],[TS and Source Table]]=Introduction!$B80),--(ConfigTblID[[#All],[Release introduced in TS 38.101-x]]=$C$5)),SUMPRODUCT(--(TRIM(ConfigTblID[[#All],[Completion Reference]])<>""),--(ConfigTblID[[#All],[TS and Source Table]]=Introduction!$B80))) -> 18 | F80: 0.001679417802 | G80: =IF($C$5<>"All Releases",SUMPRODUCT(--(TRIM(ConfigTblID[[#All],[Interested Deployer(Note 2)]])<>""),--(TRIM(ConfigTblID[[#All],[Completion Reference]])=""),--(ConfigTblID[[#All],[TS and Source Table]]=Introduction!$B80),--(ConfigTblID[[#All],[Release introduced in TS 38.101-x]]=$C$5)),SUMPRODUCT(--(TRIM(ConfigTblID[[#All],[Interested Deployer(Note 2)]])<>""),--(TRIM(ConfigTblID[[#All],[Completion Reference]])=""),--(ConfigTblID[[#All],[TS and Source Table]]=Introduction!$B80))) -> 2340 | H80: 8360
B81: 38.101-3:Table 5.5B.5.4-1 | C81: Inter-band EN-DC configurations including FR2 (five bands) | D81: =IF($C$5<>"All Releases",SUMPRODUCT(--(TRIM(ConfigTblID[[#All],[Release introduced in TS 38.101-x]])<>""),--(ConfigTblID[[#All],[TS and Source Table]]=Introduction!$B81),--(ConfigTblID[[#All],[Release introduced in TS 38.101-x]]=$C$5)),SUMPRODUCT(--(TRIM(ConfigTblID[[#All],[Release introduced in TS 38.101-x]])<>""),--(ConfigTblID[[#All],[TS and Source Table]]=Introduction!$B81))) -> 4473 | E81: =IF($C$5<>"All Releases",SUMPRODUCT(--(TRIM(ConfigTblID[[#All],[Completion Reference]])<>""),--(ConfigTblID[[#All],[TS and Source Table]]=Introduction!$B81),--(ConfigTblID[[#All],[Release introduced in TS 38.101-x]]=$C$5)),SUMPRODUCT(--(TRIM(ConfigTblID[[#All],[Completion Reference]])<>""),--(ConfigTblID[[#All],[TS and Source Table]]=Introduction!$B81))) -> 4 | F81: 0.0008942544154 | G81: =IF($C$5<>"All Releases",SUMPRODUCT(--(TRIM(ConfigTblID[[#All],[Interested Deployer(Note 2)]])<>""),--(TRIM(ConfigTblID[[#All],[Completion Reference]])=""),--(ConfigTblID[[#All],[TS and Source Table]]=Introduction!$B81),--(ConfigTblID[[#All],[Release introduced in TS 38.101-x]]=$C$5)),SUMPRODUCT(--(TRIM(ConfigTblID[[#All],[Interested Deployer(Note 2)]])<>""),--(TRIM(ConfigTblID[[#All],[Completion Reference]])=""),--(ConfigTblID[[#All],[TS and Source Table]]=Introduction!$B81))) -> 550 | H81: 3919
B82: EN-DC configurations including FR1 and FR2
B83: 38.101-3:Table 5.5B.6.2-1 | C83: Inter-band EN-DC configurations including FR1 and FR2 (three bands) | D83: Inter-band EN-DC with NR FR1+FR2 is not testable
B84: 38.101-3:Table 5.5B.6.3-1 | C84: Inter-band EN-DC configurations including FR1 and FR2 (four bands)
B85: 38.101-3:Table 5.5B.6.4-1 | C85: Inter-band EN-DC configurations including FR1 and FR2 (five bands)
B86: 38.101-3:Table 5.5B.6.5-1 | C86: Inter-band EN-DC configurations including FR1 and FR2 (six bands)
B88: ="Status of V2X Bands and CBW extensions for "&$C$5&" in RAN5 scope for Power Class 3" -> Status of V2X Bands and CBW extensions for All Releases in RAN5 scope for Power Class 3
B89: TS and Source Table | C89: Type of configuration | D89: Number of V2X bands | E89: Number of completed V2X bands | G89: Number of assigned and ongoing V2X bands (not yet completed) | H89: Number of pending V2X bands (not assigned)
B90: Overall (All TSs and source tables for the selected release scope): | D90: =SUM($D$93) -> 6 | E90: =IFERROR(SUM($E$93),"-") -> 0 | F90: =IFERROR(E90/D90,"-") -> 0 | G90: =IFERROR(SUM($G$93),"-") -> 0 | H90: =IFERROR(D90-E90-G90,"-") -> 6
B91: NR Bands
B92: NR FR1 Bands and CBW extensions
B93: 38.101-1:Table 5.2E.1-1 | C93: V2X operating bands in FR1 | D93: =IF($C$5<>"All Releases",SUMPRODUCT(--(TRIM(V2XbandsTblID[[#All],[Release introduced in TS 38.101-x]])<>""),--(V2XbandsTblID[[#All],[TS and Source Table]]=$B93),--(V2XbandsTblID[[#All],[Release introduced in TS 38.101-x]]=$C$5)),SUMPRODUCT(--(TRIM(V2XbandsTblID[[#All],[Release introduced in TS 38.101-x]])<>""),--(V2XbandsTblID[[#All],[TS and Source Table]]=Introduction!$B93))) -> 6 | E93: =IF($C$5<>"All Releases",SUMPRODUCT(--(TRIM(V2XbandsTblID[[#All],[RAN5 Completion Reference (Note 1)]])<>""),--(V2XbandsTblID[[#All],[TS and Source Table]]=Introduction!$B93),--(V2XbandsTblID[[#All],[Release introduced in TS 38.101-x]]=$C$5)),SUMPRODUCT(--(TRIM(V2XbandsTblID[[#All],[RAN5 Completion Reference (Note 1)]])<>""),--(V2XbandsTblID[[#All],[TS and Source Table]]=Introduction!$B93))) -> 0 | F93: =IFERROR(E93/D93,"-") -> 0 | G93: =IF($C$5<>"All Releases",SUMPRODUCT(--(TRIM(V2XbandsTblID[[#All],[Interested Deployer]])<>""),--(TRIM(V2XbandsTblID[[#All],[RAN5 Completion Reference (Note 1)]])=""),--(V2XbandsTblID[[#All],[TS and Source Table]]=Introduction!$B93),--(V2XbandsTblID[[#All],[Release introduced in TS 38.101-x]]=$C$5)),SUMPRODUCT(--(TRIM(V2XbandsTblID[[#All],[Interested Deployer]])<>""),--(TRIM(V2XbandsTblID[[#All],[RAN5 Completion Reference (Note 1)]])=""),--(V2XbandsTblID[[#All],[TS and Source Table]]=Introduction!$B93))) -> 0 | H93: =D93-E93-G93 -> 6
B95: ="Status of V2X configurations for "&$C$5&" in RAN5 scope for Power Class 3" -> Status of V2X configurations for All Releases in RAN5 scope for Power Class 3
B96: TS and Source Table | C96: Type of configuration | D96: Number of V2X Configurations | E96: Number of completed V2X Configurations | G96: Number of assigned and ongoing V2X Configurations (not yet completed) | H96: Number of pending V2X Configurations (not assigned)
B97: Overall (All TSs and source tables for the selected release scope): | D97: =IFERROR(SUM($D$100:$D$104),"-") -> 30 | E97: =IFERROR(SUM($E$100:$E$104),"-") -> 0 | F97: =IFERROR(E97/D97,"-") -> 0 | G97: =SUM(G100:G104) -> 0 | H97: =IFERROR(D97-E97-G97,"-") -> 30
B98: V2X configurations
B99: FR1 V2X Configurations
B100: 38.101-1:Table 5.3E.2-2 | C100: Intra-band con-current operation configurations | D100: =IF($C$5<>"All Releases",SUMPRODUCT(--(TRIM(V2XconfigTblID[[#All],[Release introduced in TS 38.101-x]])<>""),--(V2XconfigTblID[[#All],[TS and Source Table]]=$B100),--(V2XconfigTblID[[#All],[Release introduced in TS 38.101-x]]=$C$5)),SUMPRODUCT(--(TRIM(V2XconfigTblID[[#All],[Release introduced in TS 38.101-x]])<>""),--(V2XconfigTblID[[#All],[TS and Source Table]]=Introduction!$B100))) -> 2 | E100: =IF($C$5<>"All Releases",SUMPRODUCT(--(TRIM(V2XconfigTblID[[#All],[RAN5 Completion Reference (Note 1)]])<>""),--(V2XconfigTblID[[#All],[TS and Source Table]]=Introduction!$B100),--(V2XconfigTblID[[#All],[Release introduced in TS 38.101-x]]=$C$5)),SUMPRODUCT(--(TRIM(V2XconfigTblID[[#All],[RAN5 Completion Reference (Note 1)]])<>""),--(V2XconfigTblID[[#All],[TS and Source Table]]=Introduction!$B100))) -> 0 | F100: =IFERROR(E100/D100,"-") -> 0 | G100: =IF($C$5<>"All Releases",SUMPRODUCT(--(TRIM(V2XconfigTblID[[#All],[Interested Deployer]])<>""),--(TRIM(V2XconfigTblID[[#All],[RAN5 Completion Reference (Note 1)]])=""),--(V2XconfigTblID[[#All],[TS and Source Table]]=Introduction!$B100),--(V2XconfigTblID[[#All],[Release introduced in TS 38.101-x]]=$C$5)),SUMPRODUCT(--(TRIM(V2XconfigTblID[[#All],[Interested Deployer]])<>""),--(TRIM(V2XconfigTblID[[#All],[RAN5 Completion Reference (Note 1)]])=""),--(V2XconfigTblID[[#All],[TS and Source Table]]=Introduction!$B100))) -> 0 | H100: =D100-E100-G100 -> 2
B101: 38.101-1:Table 5.3E.2-1 | C101: Intra-band contiguous V2X configurations | D101: =IF($C$5<>"All Releases",SUMPRODUCT(--(TRIM(V2XconfigTblID[[#All],[Release introduced in TS 38.101-x]])<>""),--(V2XconfigTblID[[#All],[TS and Source Table]]=$B101),--(V2XconfigTblID[[#All],[Release introduced in TS 38.101-x]]=$C$5)),SUMPRODUCT(--(TRIM(V2XconfigTblID[[#All],[Release introduced in TS 38.101-x]])<>""),--(V2XconfigTblID[[#All],[TS and Source Table]]=Introduction!$B101))) -> 9 | E101: =IF($C$5<>"All Releases",SUMPRODUCT(--(TRIM(V2XconfigTblID[[#All],[RAN5 Completion Reference (Note 1)]])<>""),--(V2XconfigTblID[[#All],[TS and Source Table]]=Introduction!$B101),--(V2XconfigTblID[[#All],[Release introduced in TS 38.101-x]]=$C$5)),SUMPRODUCT(--(TRIM(V2XconfigTblID[[#All],[RAN5 Completion Reference (Note 1)]])<>""),--(V2XconfigTblID[[#All],[TS and Source Table]]=Introduction!$B101))) -> 0 | F101: =IFERROR(E101/D101,"-") -> 0 | G101: =IF($C$5<>"All Releases",SUMPRODUCT(--(TRIM(V2XconfigTblID[[#All],[Interested Deployer]])<>""),--(TRIM(V2XconfigTblID[[#All],[RAN5 Completion Reference (Note 1)]])=""),--(V2XconfigTblID[[#All],[TS and Source Table]]=Introduction!$B101),--(V2XconfigTblID[[#All],[Release introduced in TS 38.101-x]]=$C$5)),SUMPRODUCT(--(TRIM(V2XconfigTblID[[#All],[Interested Deployer]])<>""),--(TRIM(V2XconfigTblID[[#All],[RAN5 Completion Reference (Note 1)]])=""),--(V2XconfigTblID[[#All],[TS and Source Table]]=Introduction!$B101))) -> 0 | H101: =D101-E101-G101 -> 9
B102: 38.101-3:Table 5.5E.2-1 | C102: Intra-band contiguous V2X configurations | D102: =IF($C$5<>"All Releases",SUMPRODUCT(--(TRIM(V2XconfigTblID[[#All],[Release introduced in TS 38.101-x]])<>""),--(V2XconfigTblID[[#All],[TS and Source Table]]=$B102),--(V2XconfigTblID[[#All],[Release introduced in TS 38.101-x]]=$C$5)),SUMPRODUCT(--(TRIM(V2XconfigTblID[[#All],[Release introduced in TS 38.101-x]])<>""),--(V2XconfigTblID[[#All],[TS and Source Table]]=Introduction!$B102))) -> 1 | E102: =IF($C$5<>"All Releases",SUMPRODUCT(--(TRIM(V2XconfigTblID[[#All],[RAN5 Completion Reference (Note 1)]])<>""),--(V2XconfigTblID[[#All],[TS and Source Table]]=Introduction!$B102),--(V2XconfigTblID[[#All],[Release introduced in TS 38.101-x]]=$C$5)),SUMPRODUCT(--(TRIM(V2XconfigTblID[[#All],[RAN5 Completion Reference (Note 1)]])<>""),--(V2XconfigTblID[[#All],[TS and Source Table]]=Introduction!$B102))) -> 0 | F102: =IFERROR(E102/D102,"-") -> 0 | G102: =IF($C$5<>"All Releases",SUMPRODUCT(--(TRIM(V2XconfigTblID[[#All],[Interested Deployer]])<>""),--(TRIM(V2XconfigTblID[[#All],[RAN5 Completion Reference (Note 1)]])=""),--(V2XconfigTblID[[#All],[TS and Source Table]]=Introduction!$B102),--(V2XconfigTblID[[#All],[Release introduced in TS 38.101-x]]=$C$5)),SUMPRODUCT(--(TRIM(V2XconfigTblID[[#All],[Interested Deployer]])<>""),--(TRIM(V2XconfigTblID[[#All],[RAN5 Completion Reference (Note 1)]])=""),--(V2XconfigTblID[[#All],[TS and Source Table]]=Introduction!$B102))) -> 0 | H102: =D102-E102-G102 -> 1
B103: 38.101-3:Table 5.5E.3-1 | C103: Intra-band non-contiguous V2X configurations | D103: =IF($C$5<>"All Releases",SUMPRODUCT(--(TRIM(V2XconfigTblID[[#All],[Release introduced in TS 38.101-x]])<>""),--(V2XconfigTblID[[#All],[TS and Source Table]]=$B103),--(V2XconfigTblID[[#All],[Release introduced in TS 38.101-x]]=$C$5)),SUMPRODUCT(--(TRIM(V2XconfigTblID[[#All],[Release introduced in TS 38.101-x]])<>""),--(V2XconfigTblID[[#All],[TS and Source Table]]=Introduction!$B103))) -> 1 | E103: =IF($C$5<>"All Releases",SUMPRODUCT(--(TRIM(V2XconfigTblID[[#All],[RAN5 Completion Reference (Note 1)]])<>""),--(V2XconfigTblID[[#All],[TS and Source Table]]=Introduction!$B103),--(V2XconfigTblID[[#All],[Release introduced in TS 38.101-x]]=$C$5)),SUMPRODUCT(--(TRIM(V2XconfigTblID[[#All],[RAN5 Completion Reference (Note 1)]])<>""),--(V2XconfigTblID[[#All],[TS and Source Table]]=Introduction!$B103))) -> 0 | F103: =IFERROR(E103/D103,"-") -> 0 | G103: =IF($C$5<>"All Releases",SUMPRODUCT(--(TRIM(V2XconfigTblID[[#All],[Interested Deployer]])<>""),--(TRIM(V2XconfigTblID[[#All],[RAN5 Completion Reference (Note 1)]])=""),--(V2XconfigTblID[[#All],[TS and Source Table]]=Introduction!$B103),--(V2XconfigTblID[[#All],[Release introduced in TS 38.101-x]]=$C$5)),SUMPRODUCT(--(TRIM(V2XconfigTblID[[#All],[Interested Deployer]])<>""),--(TRIM(V2XconfigTblID[[#All],[RAN5 Completion Reference (Note 1)]])=""),--(V2XconfigTblID[[#All],[TS and Source Table]]=Introduction!$B103))) -> 0 | H103: =D103-E103-G103 -> 1
B104: 38.101-3:Table 5.5E.4.1-1 | C104: Inter-band V2X configurations | D104: =IF($C$5<>"All Releases",SUMPRODUCT(--(TRIM(V2XconfigTblID[[#All],[Release introduced in TS 38.101-x]])<>""),--(V2XconfigTblID[[#All],[TS and Source Table]]=$B104),--(V2XconfigTblID[[#All],[Release introduced in TS 38.101-x]]=$C$5)),SUMPRODUCT(--(TRIM(V2XconfigTblID[[#All],[Release introduced in TS 38.101-x]])<>""),--(V2XconfigTblID[[#All],[TS and Source Table]]=Introduction!$B104))) -> 17 | E104: =IF($C$5<>"All Releases",SUMPRODUCT(--(TRIM(V2XconfigTblID[[#All],[RAN5 Completion Reference (Note 1)]])<>""),--(V2XconfigTblID[[#All],[TS and Source Table]]=Introduction!$B104),--(V2XconfigTblID[[#All],[Release introduced in TS 38.101-x]]=$C$5)),SUMPRODUCT(--(TRIM(V2XconfigTblID[[#All],[RAN5 Completion Reference (Note 1)]])<>""),--(V2XconfigTblID[[#All],[TS and Source Table]]=Introduction!$B104))) -> 0 | F104: =IFERROR(E104/D104,"-") -> 0 | G104: =IF($C$5<>"All Releases",SUMPRODUCT(--(TRIM(V2XconfigTblID[[#All],[Interested Deployer]])<>""),--(TRIM(V2XconfigTblID[[#All],[RAN5 Completion Reference (Note 1)]])=""),--(V2XconfigTblID[[#All],[TS and Source Table]]=Introduction!$B104),--(V2XconfigTblID[[#All],[Release introduced in TS 38.101-x]]=$C$5)),SUMPRODUCT(--(TRIM(V2XconfigTblID[[#All],[Interested Deployer]])<>""),--(TRIM(V2XconfigTblID[[#All],[RAN5 Completion Reference (Note 1)]])=""),--(V2XconfigTblID[[#All],[TS and Source Table]]=Introduction!$B104))) -> 0 | H104: =D104-E104-G104 -> 17

Sheet NR bands
A1: =COUNTA(NRbandsTblID[Marked config])&" band items marked" -> 0 band items marked | C1: 3GPP RAN WG5 status for NR bands and CBW extensions | N1: =PRD21version -> PRD21 v1.5.0
C2: Based on: TS 38.101-1 v17.8.0, TS 38.101-2 v17.8.0 (Dec 2022)
C4: Completed: Green row indicates that the 5G NR band / NR band CBW Extension item is complete in the RAN5 test specifications. Available for testing.
C5: Ongoing: Yellow row indicates that the 5G NR band / NR band CBW Extension item is ongoing and assigned to at least one "Interested Deployer" and at least one "Responsible Company assignment". CRs can be submitted to RAN5 test specifications.
C6: Ongoing: White row with black text indicates that the 5G NR band / NR band CBW Extension item is ongoing but pending assignment to a "Responsible Company". No CRs shall be submitted to the RAN5 specifications unless the company volunteers to be assigned as "Responsible Company".
C7: Pending: White row with red text indicates that the 5G NR band / NR band CBW Extension item is pending assignment to an "Interested Deployer". No CRs shall be submitted to the RAN5 specifications.
C8: Note 1: Power classes beyond PC3 applies to all CBWs of the NR band and are indicated by a "PCx" suffix in the NR band column and in the power class column, where x is the power class e.g. "PC2" for power class 2. Note 2: The interested deployer column can be an interested mobile network operator (MNO) or any other interested deployers as defined in PRD21, clause 3.1. For the case the type of deployer is not an MNO the type of deployer is described in the comments column.
A9: Marked config | B9: Release introduced in TS 38.101-x | C9: Type of band | D9: TS and Source Table | E9: NR band / NR band CBW Extension (Note 1) | F9: CBWs SCS[kHz]:[MHz]+...+[MHz] (Note 1) | G9: Status | H9: Power Class (Note 1) | I9: RAN5 Completion Meeting (Note 1) | J9: RAN5 Completion Reference (Note 1) | K9: Interested Deployer (Note 2) | L9: Responsible Company (contact) | M9: Assignment [RAN5 meeting] | N9: Applicable RAN5 WI code(s) for CRs | O9: Band Sort Key | P9: Comments | Q9: Introduced in PRD version
B10: Rel-15 | C10: FDD FR1 | D10: 38.101-1:Table 5.3.5-1 | E10: n1 | F10: SCS15:5+10+15+20 SCS30:10+15+20 SCS60:10+15+20 | G10: Completed | H10: PC3 | I10: <=RAN5#93-e | J10: R5-216625 | K10: Legacy | L10: Huawei (Yuxin Hao) | M10: <RAN5#93-e | N10: TEI15_Test, 5GS_NR_LTE-UEConTest | O10: =SortKey(NRbandsTblID[[#This Row],[NR band / NR band CBW Extension (Note 1)]]) -> n001 | Q10: v1.0.0
B11: Rel-16 | C11: FDD FR1 | D11: 38.101-1:Table 5.3.5-1 CBW | E11: n1 CBW (25,50) | F11: SCS15:+25+50 SCS30:+25+50 SCS60:+25+50 | G11: Completed | H11: PC3 | I11: RAN5#89 | J11: R5-216629 | K11: China Unicom | L11: China Unicom (Yu Shi) | M11: <RAN5#93-e | N11: NR_bands_BW_R16-UEConTest | O11: =SortKey(NRbandsTblID[[#This Row],[NR band / NR band CBW Extension (Note 1)]]) -> n001 CBW z25,50z | Q11: v1.0.0
B12: Rel-16 | C12: FDD FR1 | D12: 38.101-1:Table 5.3.5-1 CBW | E12: n1 CBW (30,40) | F12: SCS15:+30+40 SCS30:+30+40 SCS60:+30+40 | G12: Completed | H12: PC3 | I12: RAN5#89 | J12: R5-216629 | K12: China Unicom | L12: China Unicom (Yu Shi) | M12: <RAN5#93-e | N12: NR_bands_BW_R16-UEConTest | O12: =SortKey(NRbandsTblID[[#This Row],[NR band / NR band CBW Extension (Note 1)]]) -> n001 CBW z30,40z | Q12: v1.0.0
B13: Rel-17 | C13: FDD FR1 | D13: 38.101-1:Table 5.3.5-1 CBW | E13: n1 CBW (45) | F13: SCS15:+45 SCS30:+45 SCS60:+45 | G13: Completed | H13: PC3 | I13: RAN5#97 | J13: R5-226871 | K13: Legacy | L13: Huawei (Yuxin Hao) | M13: RAN5#93-e | N13: NR_lic_bands_BW_R17-UEConTest | O13: =SortKey(NRbandsTblID[[#This Row],[NR band / NR band CBW Extension (Note 1)]]) -> n001 CBW z45z | Q13: v1.0.0
B14: Rel-17 | C14: FDD FR1 | D14: 38.101-1:Table 5.3.5-1 | E14: n1 PC2 | G14: Completed | H14: PC2 | I14: RAN5#97 | J14: R5-227635 | K14: China Unicom | L14: China Unicom (Yu Shi), MediaTek | M14: RAN#96e | N14: TEI17_Test, NR_PC2_UE_FDD-UEConTest | O14: =SortKey(NRbandsTblID[[#This Row],[NR band / NR band CBW Extension (Note 1)]]) -> n001 PC002 | Q14: v1.2.0
B15: Rel-15 | C15: FDD FR1 | D15: 38.101-1:Table 5.3.5-1 | E15: n2 | F15: SCS15:5+10+15+20 SCS30:10+15+20 SCS60:10+15+20 | G15: Completed | H15: PC3 | I15: <=RAN5#93-e | J15: R5-216625 | K15: Legacy | L15: Bureau Veritas (Amy Tao) | M15: <RAN5#93-e | N15: TEI15_Test, 5GS_NR_LTE-UEConTest | O15: =SortKey(NRbandsTblID[[#This Row],[NR band / NR band CBW Extension (Note 1)]]) -> n002 | Q15: v1.0.0
B16: Rel-17 | C16: FDD FR1 | D16: 38.101-1:Table 5.3.5-1 CBW | E16: n2 CBW (25,30,40) | F16: SCS15:+25+30+40 SCS30:+25+30+40 SCS60:+25+30+40 | G16: Completed | H16: PC3 | I16: RAN5#95-e | J16: R5-222357 | K16: Legacy | L16: Ericsson (Leif Mattisson) | M16: <RAN5#93-e | N16: NR_lic_bands_BW_R17-UEConTest | O16: =SortKey(NRbandsTblID[[#This Row],[NR band / NR band CBW Extension (Note 1)]]) -> n002 CBW z25,30,40z | Q16: v1.0.0
B17: Rel-17 | C17: FDD FR1 | D17: 38.101-1:Table 5.3.5-1 CBW | E17: n2 CBW (35) | F17: SCS15:+35 SCS30:+35 SCS60:+35 | G17: Ongoing | H17: PC3 | K17: T-Mobile USA | L17: T-Mobile USA (Scott Probasco) | N17: NR_lic_bands_BW_R17-UEConTest | O17: =SortKey(NRbandsTblID[[#This Row],[NR band / NR band CBW Extension (Note 1)]]) -> n002 CBW z35z | Q17: v1.0.0
B18: Rel-15 | C18: FDD FR1 | D18: 38.101-1:Table 5.3.5-1 | E18: n3 | F18: SCS15:5+10+15+20+25+30 SCS30:10+15+20+25+30 SCS60:10+15+20+25+30 | G18: Completed | H18: PC3 | I18: <=RAN5#93-e | J18: R5-216625 | K18: China Telecom | L18: China Telecom (Jing Zhao) | M18: <RAN5#93-e | N18: TEI15_Test, 5GS_NR_LTE-UEConTest | O18: =SortKey(NRbandsTblID[[#This Row],[NR band / NR band CBW Extension (Note 1)]]) -> n003 | Q18: v1.0.0
B19: Rel-17 | C19: FDD FR1 | D19: 38.101-1:Table 5.3.5-1 CBW | E19: n3 CBW (35,45) | F19: SCS15:+35+45 SCS30:+35+45 SCS60:+35+45 | G19: Completed | H19: PC3 | I19: RAN5#98 | J19: R5-230665 | K19: China Unicom | L19: China Unicom (Huifang Sun) | M19: RAN5#96-e | N19: NR_lic_bands_BW_R17-UEConTest | O19: =SortKey(NRbandsTblID[[#This Row],[NR band / NR band CBW Extension (Note 1)]]) -> n003 CBW z35,45z | Q19: v1.0.0
B20: Rel-16 | C20: FDD FR1 | D20: 38.101-1:Table 5.3.5-1 CBW | E20: n3 CBW (40) | F20: SCS15:+40 SCS30:+40 SCS60:+40 | G20: Completed | H20: PC3 | I20: RAN5#91 | J20: R5-216629 | K20: China Telecom | L20: China Telecom (Jing Zhao) | M20: <RAN5#93-e | N20: NR_bands_BW_R16-UEConTest | O20: =SortKey(NRbandsTblID[[#This Row],[NR band / NR band CBW Extension (Note 1)]]) -> n003 CBW z40z | Q20: v1.0.0
B21: Rel-17 | C21: FDD FR1 | D21: 38.101-1:Table 5.3.5-1 CBW | E21: n3 CBWs (50) | F21: SCS15:+50 SCS30:+50 SCS60:+50 | G21: Completed | H21: PC3 | I21: RAN5#97 | J21: R5-227115 | K21: China Unicom | L21: China Unicom (Yu Shi) | M21: <RAN5#93-e | N21: NR_lic_bands_BW_R17-UEConTest | O21: =SortKey(NRbandsTblID[[#This Row],[NR band / NR band CBW Extension (Note 1)]]) -> n003 CBWs z50z | Q21: v1.0.0
B22: Rel-15 | C22: FDD FR1 | D22: 38.101-1:Table 5.3.5-1 | E22: n3 PC2 | G22: Completed | H22: PC2 | I22: RAN5#97 | J22: R5-227636 | K22: China Unicom | L22: China Unicom (Yu Shi), MediaTek | M22: RAN#96e | N22: TEI17_Test, NR_PC2_UE_FDD-UEConTest | O22: =SortKey(NRbandsTblID[[#This Row],[NR band / NR band CBW Extension (Note 1)]]) -> n003 PC002 | Q22: v1.2.0
B23: Rel-15 | C23: FDD FR1 | D23: 38.101-1:Table 5.3.5-1 | E23: n5 | F23: SCS15:5+10+15+20 SCS30:10+15+20 SCS60:- | G23: Completed | H23: PC3 | I23: <=RAN5#93-e | J23: R5-216625 | K23: Legacy | L23: Bureau Veritas (Amy Tao) | M23: <RAN5#93-e | N23: TEI15_Test, 5GS_NR_LTE-UEConTest | O23: =SortKey(NRbandsTblID[[#This Row],[NR band / NR band CBW Extension (Note 1)]]) -> n005 | Q23: v1.0.0
B24: Rel-17 | C24: FDD FR1 | D24: 38.101-1:Table 5.3.5-1 CBW | E24: n5 CBW (25) | F24: SCS15:+25 SCS30:+25 SCS60:+25 | G24: Completed | H24: PC3 | I24: RAN5#95-e | J24: R5-222358 | K24: Legacy | L24: Ericsson (Leif Mattisson) | M24: <RAN5#93-e | N24: NR_lic_bands_BW_R17-UEConTest | O24: =SortKey(NRbandsTblID[[#This Row],[NR band / NR band CBW Extension (Note 1)]]) -> n005 CBW z25z | Q24: v1.0.0
B25: Rel-15 | C25: FDD FR1 | D25: 38.101-1:Table 5.3.5-1 | E25: n7 | F25: SCS15:5+10+15+20 SCS30:10+15+20 SCS60:10+15+20 | G25: Completed | H25: PC3 | I25: <=RAN5#93-e | J25: R5-216625 | K25: Legacy | L25: Huawei (Yuxin Hao) | M25: <RAN5#93-e | N25: TEI15_Test, 5GS_NR_LTE-UEConTest | O25: =SortKey(NRbandsTblID[[#This Row],[NR band / NR band CBW Extension (Note 1)]]) -> n007 | Q25: v1.0.0
B26: Rel-16 | C26: FDD FR1 | D26: 38.101-1:Table 5.3.5-1 CBW | E26: n7 CBW (25,30,40,50) | F26: SCS15:+25+30+40+50 SCS30:+25+30+40+50 SCS60:+25+30+40+50 | G26: Ongoing | H26: PC3 | K26: Orange | L26: Orange (Hajer Khanfir) | M26: RAN5#94-e | N26: NR_bands_BW_R16-UEConTest | O26: =SortKey(NRbandsTblID[[#This Row],[NR band / NR band CBW Extension (Note 1)]]) -> n007 CBW z25,30,40,50z | Q26: v1.0.0
B27: Rel-17 | C27: FDD FR1 | D27: 38.101-1:Table 5.3.5-1 CBW | E27: n7 CBW (35) | F27: SCS15:+35 SCS30:+35 SCS60:+35 | G27: Ongoing (CBW) | H27: PC3 | K27: - | N27: NR_lic_bands_BW_R17-UEConTest | O27: =SortKey(NRbandsTblID[[#This Row],[NR band / NR band CBW Extension (Note 1)]]) -> n007 CBW z35z | Q27: v1.0.0
B28: Rel-15 | C28: FDD FR1 | D28: 38.101-1:Table 5.3.5-1 | E28: n8 | F28: SCS15:5+10+15+20 SCS30:10+15+20 SCS60:- | G28: Completed | H28: PC3 | I28: <=RAN5#93-e | J28: R5-216625 | K28: Legacy | L28: Huawei (Yuxin Hao) | M28: <RAN5#93-e | N28: TEI15_Test, 5GS_NR_LTE-UEConTest | O28: =SortKey(NRbandsTblID[[#This Row],[NR band / NR band CBW Extension (Note 1)]]) -> n008 | Q28: v1.0.0
B29: Rel-17 | C29: FDD FR1 | D29: 38.101-1:Table 5.3.5-1 CBW | E29: n8 CBW (35) | F29: SCS15:+35 SCS30:+35 SCS60:- | G29: Completed | H29: PC3 | I29: RAN5#98 | J29: R5-230665 | L29: China Unicom (Huifang Sun) | M29: RAN5#96-e | N29: NR_lic_bands_BW_R17-UEConTest | O29: =SortKey(NRbandsTblID[[#This Row],[NR band / NR band CBW Extension (Note 1)]]) -> n008 CBW z35z | Q29: v1.0.0
B30: Rel-15 | C30: FDD FR1 | D30: 38.101-1:Table 5.3.5-1 | E30: n12 | F30: SCS15:5+10+15 SCS30:10+15 SCS60:- | G30: Completed | H30: PC3 | I30: <=RAN5#93-e | J30: R5-216625 | K30: U.S. Cellular | L30: Ericsson (Leif Mattisson) | M30: <RAN5#93-e | N30: TEI15_Test, 5GS_NR_LTE-UEConTest | O30: =SortKey(NRbandsTblID[[#This Row],[NR band / NR band CBW Extension (Note 1)]]) -> n012 | Q30: v1.0.0
B31: Rel-17 | C31: FDD FR1 | D31: 38.101-1:Table 5.3.5-1 | E31: n13 | F31: SCS15:5+10 SCS30:10 SCS60:- | G31: Pending | H31: PC3 | N31: NR_lic_bands_BW_R17-UEConTest | O31: =SortKey(NRbandsTblID[[#This Row],[NR band / NR band CBW Extension (Note 1)]]) -> n013 | Q31: v1.0.0
B32: Rel-16 | C32: FDD FR1 | D32: 38.101-1:Table 5.3.5-1 | E32: n14 | F32: SCS15:5+10 SCS30:10 SCS60:- | G32: Completed | H32: PC3 | I32: RAN5#90 | J32: R5-216629 | K32: AT&T | L32: AT&T (Ron Borsato) | M32: <RAN5#93-e | N32: NR_bands_BW_R16-UEConTest | O32: =SortKey(NRbandsTblID[[#This Row],[NR band / NR band CBW Extension (Note 1)]]) -> n014 | P32: n14 CBWs 5 and 10 MHz are also used for V2X operation (see "V2X bands" worksheet for V2X status) | Q32: v1.0.0
B33: Rel-16 | C33: FDD FR1 | D33: 38.101-1:Table 5.3.5-1 | E33: n18 | F33: SCS15:5+10 SCS30:10 SCS60:- | G33: Ongoing | H33: PC3 | K33: KDDI | L33: KDDI (Taiki Matsuyoshi) | M33: RAN5#94-e | N33: NR_bands_BW_R16-UEConTest | O33: =SortKey(NRbandsTblID[[#This Row],[NR band / NR band CBW Extension (Note 1)]]) -> n018 | Q33: v1.0.0
B34: Rel-15 | C34: FDD FR1 | D34: 38.101-1:Table 5.3.5-1 | E34: n20 | F34: SCS15:5+10+15+20 SCS30:10+15+20 SCS60:- | G34: Completed | H34: PC3 | I34: <=RAN5#93-e | J34: R5-216625 | K34: Legacy | L34: Huawei (Yuxin Hao) | M34: <RAN5#93-e | N34: TEI15_Test, 5GS_NR_LTE-UEConTest | O34: =SortKey(NRbandsTblID[[#This Row],[NR band / NR band CBW Extension (Note 1)]]) -> n020 | Q34: v1.0.0
B35: Rel-17 | C35: FDD FR1 | D35: 38.101-1:Table 5.3.5-1 | E35: n24 | F35: SCS15:5+10 SCS30:10 SCS60:10 | G35: Completed | H35: PC3 | I35: RAN5#93-e | J35: R5-217494 | K35: Ligado Networks | L35: Ligado Networks (Ojas Choksi) | M35: <RAN5#93-e | N35: NR_lic_bands_BW_R17-UEConTest | O35: =SortKey(NRbandsTblID[[#This Row],[NR band / NR band CBW Extension (Note 1)]]) -> n024 | Q35: v1.0.0
B36: Rel-15 | C36: FDD FR1 | D36: 38.101-1:Table 5.3.5-1 | E36: n25 | F36: SCS15:5+10+15+20 SCS30:10+15+20 SCS60:10+15+20 | G36: Completed | H36: PC3 | I36: <=RAN5#93-e | J36: R5-216625 | K36: Legacy | L36: Huawei (Yuxin Hao) | M36: <RAN5#93-e | N36: TEI15_Test, 5GS_NR_LTE-UEConTest | O36: =SortKey(NRbandsTblID[[#This Row],[NR band / NR band CBW Extension (Note 1)]]) -> n025 | Q36: v1.0.0
B37: Rel-16 | C37: FDD FR1 | D37: 38.101-1:Table 5.3.5-1 CBW | E37: n25 CBW (25,30,40) | F37: SCS15:+25+30+40 SCS30:+25+30+40 SCS60:+25+30+40 | G37: Completed | H37: PC3 | I37: RAN5#94-e | J37: R5-220443 | K37: T-Mobile USA | L37: T-Mobile (Scott Prather),Ericsson (Leif Mattisson),Rhode&Schwarz (Edwin Menzel) | M37: RAN5#94-e | N37: NR_bands_BW_R16-UEConTest | O37: =SortKey(NRbandsTblID[[#This Row],[NR band / NR band CBW Extension (Note 1)]]) -> n025 CBW z25,30,40z | Q37: v1.0.0
B38: Rel-17 | C38: FDD FR1 | D38: 38.101-1:Table 5.3.5-1 CBW | E38: n25 CBW (35,45) | F38: SCS15:+35+45 SCS30:+35+45 SCS60:+35+45 | G38: Ongoing | H38: PC3 | K38: T-Mobile USA | L38: T-Mobile USA (Scott Probasco) | N38: NR_lic_bands_BW_R17-UEConTest | O38: =SortKey(NRbandsTblID[[#This Row],[NR band / NR band CBW Extension (Note 1)]]) -> n025 CBW z35,45z | Q38: v1.0.0
B39: Rel-16 | C39: FDD FR1 | D39: 38.101-1:Table 5.3.5-1 | E39: n26 | F39: SCS15:5+10+15+20 SCS30:10+15 SCS60:- | G39: Completed | H39: PC3 | I39: RAN5#89 | J39: R5-216629 | K39: Dish Network | L39: DISH Network (Jussi Kuusisto) | M39: <RAN5#93-e | N39: NR_bands_BW_R16-UEConTest | O39: =SortKey(NRbandsTblID[[#This Row],[NR band / NR band CBW Extension (Note 1)]]) -> n026 | Q39: v1.0.0
B40: Rel-17 | C40: FDD FR1 | D40: 38.101-1:Table 5.3.5-1 | E40: n26 CBW (25,30) | F40: TBD (Not yet in 38.101-1) | G40: Pending | H40: PC3 | N40: NR_lic_bands_BW_R17-UEConTest | O40: =SortKey(NRbandsTblID[[#This Row],[NR band / NR band CBW Extension (Note 1)]]) -> n026 CBW z25,30z | Q40: v1.1.0
B41: Rel-15 | C41: FDD FR1 | D41: 38.101-1:Table 5.3.5-1 | E41: n28 | F41: SCS15:5+10+15+20 SCS30:10+15+20 SCS60:- | G41: Completed | H41: PC3 | I41: <=RAN5#93-e | J41: R5-216625 | K41: Orange | L41: Orange (Hajer Khanfir) | M41: <RAN5#93-e | N41: TEI15_Test, 5GS_NR_LTE-UEConTest | O41: =SortKey(NRbandsTblID[[#This Row],[NR band / NR band CBW Extension (Note 1)]]) -> n028 | Q41: v1.0.0
B42: Rel-17 | C42: FDD FR1 | D42: 38.101-1:Table 5.3.5-1 | E42: n28 CBW (25) | F42: TBD (Not yet in 38.101-1) | G42: Pending | H42: PC3 | N42: NR_lic_bands_BW_R17-UEConTest | O42: =SortKey(NRbandsTblID[[#This Row],[NR band / NR band CBW Extension (Note 1)]]) -> n028 CBW z25z | Q42: v1.1.0
B43: Rel-16 | C43: FDD FR1 | D43: 38.101-1:Table 5.3.5-1 CBW | E43: n28 CBW (30) | F43: SCS15:+30 SCS30:+30 SCS60:- | G43: Completed | H43: PC3 | I43: RAN5#88 | J43: R5-216629 | K43: CMCC, CBN | L43: CMCC (Danni Song) | M43: <RAN5#93-e | N43: NR_bands_BW_R16-UEConTest | O43: =SortKey(NRbandsTblID[[#This Row],[NR band / NR band CBW Extension (Note 1)]]) -> n028 CBW z30z | Q43: v1.0.0
B44: Rel-16 | C44: SDL FR1 | D44: 38.101-1:Table 5.3.5-1 | E44: n29 | F44: SCS15:5+10 SCS30:10 SCS60:- | G44: Completed | H44: PC3 | I44: RAN5#87 | J44: R5-216629 | K44: Dish Network | L44: DISH Network (Jussi Kuusisto) | M44: <RAN5#93-e | N44: NR_bands_BW_R16-UEConTest | O44: =SortKey(NRbandsTblID[[#This Row],[NR band / NR band CBW Extension (Note 1)]]) -> n029 | Q44: v1.0.0
B45: Rel-16 | C45: FDD FR1 | D45: 38.101-1:Table 5.3.5-1 | E45: n30 | F45: SCS15:5+10 SCS30:10 SCS60:- | G45: Ongoing | H45: PC3 | K45: AT&T | L45: AT&T (Ron Borsato) | M45: <RAN5#93-e | N45: NR_bands_BW_R16-UEConTest | O45: =SortKey(NRbandsTblID[[#This Row],[NR band / NR band CBW Extension (Note 1)]]) -> n030 | Q45: v1.0.0
B46: Rel-15 | C46: TDD FR1 | D46: 38.101-1:Table 5.3.5-1 | E46: n34 | F46: SCS15:5+10+15 SCS30:10+15 SCS60:10+15 | G46: Completed | H46: PC3 | I46: <=RAN5#93-e | J46: R5-216625 | K46: CMCC | L46: CMCC (Danni Song) | M46: <RAN5#93-e | N46: TEI15_Test, 5GS_NR_LTE-UEConTest | O46: =SortKey(NRbandsTblID[[#This Row],[NR band / NR band CBW Extension (Note 1)]]) -> n034 | Q46: v1.0.0
B47: Rel-15 | C47: TDD FR1 | D47: 38.101-1:Table 5.3.5-1 | E47: n34 PC2 | G47: Completed | H47: PC2 | I47: RAN5#95-e | J47: R5-223502 | K47: CMCC | L47: CMCC (Danni Song) | M47: <RAN5#93-e | N47: NR_UE_PC2_n34-UEConTest | O47: =SortKey(NRbandsTblID[[#This Row],[NR band / NR band CBW Extension (Note 1)]]) -> n034 PC002 | Q47: v1.0.0
B48: Rel-15 | C48: TDD FR1 | D48: 38.101-1:Table 5.3.5-1 | E48: n38 | F48: SCS15:5+10+15+20 SCS30:10+15+20 SCS60:10+15+20 | G48: Completed | H48: PC3 | I48: <=RAN5#93-e | J48: R5-216625 | K48: Legacy | L48: Ericsson (Leif Mattisson) | M48: <RAN5#93-e | N48: TEI15_Test, 5GS_NR_LTE-UEConTest | O48: =SortKey(NRbandsTblID[[#This Row],[NR band / NR band CBW Extension (Note 1)]]) -> n038 | P48: n38 CBWs 10, 20, and 30 MHz are also used for V2X operation (see "V2X bands" worksheet for V2X status) | Q48: v1.0.0
B49: Rel-16 | C49: TDD FR1 | D49: 38.101-1:Table 5.3.5-1 CBW | E49: n38 CBW (25,30) | F49: SCS15:+25+30 SCS30:+25+30 SCS60:+25+30 | G49: Completed | H49: PC3 | I49: RAN5#94-e | J49: R5-220443 | K49: Anritsu | L49: Anritsu (Setsu Masafumi) | M49: <RAN5#93-e | N49: NR_bands_BW_R16-UEConTest | O49: =SortKey(NRbandsTblID[[#This Row],[NR band / NR band CBW Extension (Note 1)]]) -> n038 CBW z25,30z | Q49: v1.0.0
B50: Rel-16 | C50: TDD FR1 | D50: 38.101-1:Table 5.3.5-1 CBW | E50: n38 CBW (40) | F50: SCS15:+40 SCS30:+40 SCS60:+40 | G50: Completed | H50: PC3 | I50: RAN5#89 | J50: R5-216629 | K50: Legacy | L50: Huawei (Yuxin Hao) | M50: <RAN5#93-e | N50: NR_bands_BW_R16-UEConTest | O50: =SortKey(NRbandsTblID[[#This Row],[NR band / NR band CBW Extension (Note 1)]]) -> n038 CBW z40z | P50: n38 CBW=40 MHz is also used for V2X operation (see "V2X bands" worksheet for V2X status) | Q50: v1.0.0
B51: Rel-15 | C51: TDD FR1 | D51: 38.101-1:Table 5.3.5-1 | E51: n39 | F51: SCS15:5+10+15+20+25+30+40 SCS30:10+15+20+25+30+40 SCS60:10+15+20+25+30+40 | G51: Completed | H51: PC3 | I51: <=RAN5#93-e | J51: R5-216625 | K51: CMCC | L51: CMCC (Danni Song) | M51: <RAN5#93-e | N51: TEI15_Test, 5GS_NR_LTE-UEConTest | O51: =SortKey(NRbandsTblID[[#This Row],[NR band / NR band CBW Extension (Note 1)]]) -> n039 | Q51: v1.0.0
B52: Rel-15 | C52: TDD FR1 | D52: 38.101-1:Table 5.3.5-1 | E52: n39 PC2 | G52: Completed | H52: PC2 | I52: <=RAN5#93-e | J52: R5-216625 | K52: CMCC | L52: CMCC (Danni Song) | M52: <RAN5#93-e | N52: NR_UE_PC2_n39-UEConTest | O52: =SortKey(NRbandsTblID[[#This Row],[NR band / NR band CBW Extension (Note 1)]]) -> n039 PC002 | Q52: v1.0.0
B53: Rel-15 | C53: TDD FR1 | D53: 38.101-1:Table 5.3.5-1 | E53: n40 | F53: SCS15:5+10+15+20+25+30+40+50 SCS30:10+15+20+25+30+40+50+60+80 SCS60:10+15+20+25+30+40+50+60+80 | G53: Completed | H53: PC3 | I53: <=RAN5#93-e | J53: R5-216625 | K53: CMCC | L53: CMCC (Danni Song) | M53: <RAN5#93-e | N53: TEI15_Test, 5GS_NR_LTE-UEConTest | O53: =SortKey(NRbandsTblID[[#This Row],[NR band / NR band CBW Extension (Note 1)]]) -> n040 | Q53: v1.0.0
B54: Rel-17 | C54: FDD FR1 | D54: 38.101-1:Table 5.3.5-1 CBW | E54: n40 CBW (70) | F54: SCS15:- SCS30:+70 SCS60:+70 | G54: Ongoing (CBW) | H54: PC3 | K54: - | N54: NR_lic_bands_BW_R17-UEConTest | O54: =SortKey(NRbandsTblID[[#This Row],[NR band / NR band CBW Extension (Note 1)]]) -> n040 CBW z70z | Q54: v1.0.0
B55: Rel-17 | C55: FDD FR1 | D55: 38.101-1:Table 5.3.5-1 CBW | E55: n40 CBW (90,100) | F55: SCS15:- SCS30:+90+100 SCS60:+90+100 | G55: Ongoing (CBW) | H55: PC3 | K55: - | N55: NR_lic_bands_BW_R17-UEConTest | O55: =SortKey(NRbandsTblID[[#This Row],[NR band / NR band CBW Extension (Note 1)]]) -> n040 CBW z90,100z | Q55: v1.0.0
B56: Rel-15 | C56: TDD FR1 | D56: 38.101-1:Table 5.3.5-1 | E56: n41 | F56: SCS15:10+15+20+40+50 SCS30:10+15+20+40+50+60+80+90+100 SCS60:10+15+20+40+50+60+80+90+100 | G56: Completed | H56: PC3 | I56: <=RAN5#88-e | J56: R5-216625 | K56: T-Mobile USA | L56: T-mobil (Scott Probasco) | M56: <RAN5#93-e | N56: TEI15_Test, 5GS_NR_LTE-UEConTest | O56: =SortKey(NRbandsTblID[[#This Row],[NR band / NR band CBW Extension (Note 1)]]) -> n041 | Q56: v1.0.0
B57: Rel-16 | C57: TDD FR1 | D57: 38.101-1:Table 5.3.5-1 CBW | E57: n41 CBW (30) | F57: SCS15:+30 SCS30:+30 SCS60:+30 | G57: Completed | H57: PC3 | I57: RAN5#89 | J57: R5-216629 | K57: Softbank | L57: Ericsson (Leif Mattisson) | M57: <RAN5#93-e | N57: NR_bands_BW_R16-UEConTest | O57: =SortKey(NRbandsTblID[[#This Row],[NR band / NR band CBW Extension (Note 1)]]) -> n041 CBW z30z | Q57: v1.0.0
B58: Rel-17 | C58: FDD FR1 | D58: 38.101-1:Table 5.3.5-1 | E58: n41 CBW (5) | F58: TBD (Not yet in 38.101-1) | G58: Pending | H58: PC3 | N58: NR_lic_bands_BW_R17-UEConTest | O58: =SortKey(NRbandsTblID[[#This Row],[NR band / NR band CBW Extension (Note 1)]]) -> n041 CBW z5z | Q58: v1.1.0
B59: Rel-17 | C59: FDD FR1 | D59: 38.101-1:Table 5.3.5-1 CBW | E59: n41 CBW (70) | F59: SCS15:- SCS30:+70 SCS60:+70 | G59: Completed | H59: PC3 | I59: RAN5#96-e | J59: R5-224021 | K59: Legacy | L59: Ericsson (Leif Mattisson) | M59: <RAN5#93-e | N59: NR_lic_bands_BW_R17-UEConTest | O59: =SortKey(NRbandsTblID[[#This Row],[NR band / NR band CBW Extension (Note 1)]]) -> n041 CBW z70z | Q59: v1.0.0
B60: Rel-17 | C60: FDD FR1 | D60: 38.101-1:Table 5.3.5-1 CBW | E60: n41 CBW(25,35,45) | F60: TBD (Not yet in 38.101-1) | G60: Pending | H60: PC3 | N60: NR_lic_bands_BW_R17-UEConTest | O60: =SortKey(NRbandsTblID[[#This Row],[NR band / NR band CBW Extension (Note 1)]]) -> n041 CBWz25,35,45z | Q60: v1.0.0
B61: Rel-15 | C61: TDD FR1 | D61: 38.101-1:Table 5.3.5-1 | E61: n41 PC1.5 | G61: Completed | H61: PC1.5 | I61: RAN5#97 | J61: R5-227633 | K61: CMCC, T-Mobile USA | L61: CMCC, T-mobil (Danni Song,Scott Probasco) | M61: <RAN5#93-e | N61: TEI16_Test, LTE_NR_B41_Bn41_PC29dBm-UEConTest | O61: =SortKey(NRbandsTblID[[#This Row],[NR band / NR band CBW Extension (Note 1)]]) -> n041 PC001.005 | Q61: v1.0.0
B62: Rel-15 | C62: TDD FR1 | D62: 38.101-1:Table 5.3.5-1 | E62: n41 PC2 | F62: SCS15:10+15+20+40+50 SCS30:10+15+20+40+50+60+80+90+100 SCS60:10+15+20+40+50+60+80+90+100 | G62: Completed | H62: PC2 | I62: PC2: RAN5#88 | J62: R5-203332 | K62: T-Mobile USA | L62: T-mobil (Scott Probasco) | M62: <RAN5#93-e | N62: TEI16_Test, ENDC_UE_PC2_TDD_TDD-UEConTest | O62: =SortKey(NRbandsTblID[[#This Row],[NR band / NR band CBW Extension (Note 1)]]) -> n041 PC002 | Q62: v1.0.0
B63: Rel-16 | C63: TDD FR1 | D63: 38.101-1:Table 5.3.5-1 | E63: n46 | F63: SCS15:10+20+40 SCS30:10+20+40+60+80 SCS60:10+20+40+60+80 | G63: Ongoing | H63: PC3 | K63: Charter Communications | M63: RAN5#97 | N63: NR_unlic-UEConTest | O63: =SortKey(NRbandsTblID[[#This Row],[NR band / NR band CBW Extension (Note 1)]]) -> n046 | Q63: v1.1.0
B64: Rel-17 | C64: FDD FR1 | D64: 38.101-1:Table 5.3.5-1 CBW | E64: n46 CBW (100) | F64: TBD (Not yet in 38.101-1) | G64: Pending | H64: PC3 | N64: NR_lic_bands_BW_R17-UEConTest | O64: =SortKey(NRbandsTblID[[#This Row],[NR band / NR band CBW Extension (Note 1)]]) -> n046 CBW z100z | Q64: v1.0.0
B65: Rel-16 | C65: TDD FR1 | D65: 38.101-1:Table 5.3.5-1 | E65: n48 | F65: SCS15:5+10+15+20+40+50 SCS30:10+15+20+40+50+60+80+90+100 SCS60:10+15+20+40+50+60+80+90+100 | G65: Completed | H65: PC3 | I65: RAN5#88 | J65: R5-216629 | K65: Legacy | L65: Ericsson (Leif Mattisson) | M65: <RAN5#93-e | N65: NR_bands_BW_R16-UEConTest | O65: =SortKey(NRbandsTblID[[#This Row],[NR band / NR band CBW Extension (Note 1)]]) -> n048 | Q65: v1.0.0
B66: Rel-17 | C66: FDD FR1 | D66: 38.101-1:Table 5.3.5-1 CBW | E66: n48 CBW (30) | F66: SCS15:+30 SCS30:+30 SCS60:+30 | G66: Completed | H66: PC3 | I66: RAN5#96-e | J66: R5-224022 | K66: Legacy | L66: Ericsson (Leif Mattisson) | M66: <RAN5#93-e | N66: NR_lic_bands_BW_R17-UEConTest | O66: =SortKey(NRbandsTblID[[#This Row],[NR band / NR band CBW Extension (Note 1)]]) -> n048 CBW z30z | Q66: v1.0.0
B67: Rel-17 | C67: FDD FR1 | D67: 38.101-1:Table 5.3.5-1 CBW | E67: n48 CBW (70) | F67: SCS15:- SCS30:+70 SCS60:+70 | G67: Completed | H67: PC3 | I67: RAN5#96-e | J67: R5-224022 | K67: Legacy | L67: Ericsson (Leif Mattisson) | M67: <RAN5#93-e | N67: NR_lic_bands_BW_R17-UEConTest | O67: =SortKey(NRbandsTblID[[#This Row],[NR band / NR band CBW Extension (Note 1)]]) -> n048 CBW z70z | Q67: v1.0.0
B68: Rel-15 | C68: TDD FR1 | D68: 38.101-1:Table 5.3.5-1 | E68: n50 | F68: SCS15:5+10+15+20+40+50 SCS30:10+15+20+40+50+60+80 SCS60:10+15+20+40+50+60+80 | G68: Completed | H68: PC3 | I68: RAN5#97 | J68: R5-226274 | K68: Legacy | L68: CAICT (Yufeng Zhang) | N68: TEI15_Test, 5GS_NR_LTE-UEConTest | O68: =SortKey(NRbandsTblID[[#This Row],[NR band / NR band CBW Extension (Note 1)]]) -> n050 | Q68: v1.0.0
B69: Rel-16 | C69: TDD FR1 | D69: 38.101-1:Table 5.3.5-1 CBW | E69: n50 CBW (30) | F69: SCS15:+30 SCS30:+30 SCS60:+30 | G69: Pending | H69: PC3 | N69: NR_bands_BW_R16-UEConTest | O69: =SortKey(NRbandsTblID[[#This Row],[NR band / NR band CBW Extension (Note 1)]]) -> n050 CBW z30z | Q69: v1.0.0
B70: Rel-15 | C70: TDD FR1 | D70: 38.101-1:Table 5.3.5-1 | E70: n51 | F70: SCS15:5 SCS30:- SCS60:- | G70: Completed | H70: PC3 | I70: <=RAN5#93-e | J70: R5-216625 | K70: Legacy | L70: Ericsson (Leif Mattisson) | M70: <RAN5#93-e | N70: TEI15_Test, 5GS_NR_LTE-UEConTest | O70: =SortKey(NRbandsTblID[[#This Row],[NR band / NR band CBW Extension (Note 1)]]) -> n051 | Q70: v1.0.0
B71: Rel-16 | C71: TDD FR1 | D71: 38.101-1:Table 5.3.5-1 | E71: n53 | F71: SCS15:5+10 SCS30:10 SCS60:10 | G71: Completed | H71: PC3 | I71: RAN5#90 | J71: R5-216629 | K71: Globalstar | L71: Nokia (Tuomo Saynajakangas) | M71: <RAN5#93-e | N71: NR_bands_BW_R16-UEConTest | O71: =SortKey(NRbandsTblID[[#This Row],[NR band / NR band CBW Extension (Note 1)]]) -> n053 | Q71: v1.0.0
B72: Rel-16 | C72: FDD FR1 | D72: 38.101-1:Table 5.3.5-1 | E72: n65 | F72: SCS15:5+10+15+20 SCS30:10+15+20 SCS60:10+15+20 | G72: Completed | H72: PC3 | I72: RAN5#87 | J72: R5-216629 | K72: Dish Network | L72: DISH Network (Jussi Kuusisto) | M72: <RAN5#93-e | N72: NR_bands_BW_R16-UEConTest | O72: =SortKey(NRbandsTblID[[#This Row],[NR band / NR band CBW Extension (Note 1)]]) -> n065 | Q72: v1.0.0
B73: Rel-16 | C73: FDD FR1 | D73: 38.101-1:Table 5.3.5-1 CBW | E73: n65 CBW (50) | F73: SCS15:+50 SCS30:+50 SCS60:+50 | G73: Ongoing (CBW) | H73: PC3 | K73: - | N73: NR_bands_BW_R16-UEConTest | O73: =SortKey(NRbandsTblID[[#This Row],[NR band / NR band CBW Extension (Note 1)]]) -> n065 CBW z50z | Q73: v1.0.0
B74: Rel-15 | C74: FDD FR1 | D74: 38.101-1:Table 5.3.5-1 | E74: n66 | F74: SCS15:5+10+15+20+40 SCS30:10+15+20+40 SCS60:10+15+20+40 | G74: Completed | H74: PC3 | I74: <=RAN5#93-e | J74: R5-216625 | K74: Dish Network | L74: DISH Network (Jussi Kuusisto) | M74: <RAN5#93-e | N74: TEI15_Test, 5GS_NR_LTE-UEConTest | O74: =SortKey(NRbandsTblID[[#This Row],[NR band / NR band CBW Extension (Note 1)]]) -> n066 | Q74: v1.0.0
B75: Rel-16 | C75: FDD FR1 | D75: 38.101-1:Table 5.3.5-1 CBW | E75: n66 CBW (25,30) | F75: SCS15:+25+30 SCS30:+25+30 SCS60:+25+30 +asymmetric BCS1 | G75: Completed | H75: PC3 | I75: RAN5#87 | J75: R5-216629 | K75: Legacy | L75: Huawei (Yuxin Hao) | M75: <RAN5#93-e | N75: NR_bands_BW_R16-UEConTest | O75: =SortKey(NRbandsTblID[[#This Row],[NR band / NR band CBW Extension (Note 1)]]) -> n066 CBW z25,30z | Q75: v1.0.0
B76: Rel-17 | C76: FDD FR1 | D76: 38.101-1:Table 5.3.5-1 CBW | E76: n66 CBW (35,45) | F76: SCS15:+35+45 SCS30:+35+45 SCS60:+35+45 | G76: Ongoing | H76: PC3 | K76: T-Mobile USA | L76: T-Mobile USA (Scott Probasco) | M76: <RAN5#93-e | N76: NR_lic_bands_BW_R17-UEConTest | O76: =SortKey(NRbandsTblID[[#This Row],[NR band / NR band CBW Extension (Note 1)]]) -> n066 CBW z35,45z | Q76: v1.0.0
B77: Rel-17 | C77: SDL FR1 | D77: 38.101-1:Table 5.3.5-1 | E77: n67 | F77: SCS15:5+10+15+20 SCS30:10+15+20 | G77: Pending | H77: PC3 | N77: NR_lic_bands_BW_R17-UEConTest | O77: =SortKey(NRbandsTblID[[#This Row],[NR band / NR band CBW Extension (Note 1)]]) -> n067 | Q77: v1.3.0
B78: Rel-15 | C78: FDD FR1 | D78: 38.101-1:Table 5.3.5-1 | E78: n70 | F78: SCS15:5+10+15+20+25 SCS30:10+15+20+25 SCS60:10+15+20+25 | G78: Completed | H78: PC3 | I78: <=RAN5#93-e | J78: R5-216625 | K78: Dish Network | L78: DISH Network (Jussi Kuusisto) | M78: <RAN5#93-e | N78: TEI15_Test, 5GS_NR_LTE-UEConTest | O78: =SortKey(NRbandsTblID[[#This Row],[NR band / NR band CBW Extension (Note 1)]]) -> n070 | Q78: v1.0.0
B79: Rel-15 | C79: FDD FR1 | D79: 38.101-1:Table 5.3.5-1 | E79: n71 | F79: SCS15:5+10+15+20 SCS30:10+15+20 SCS60:- | G79: Completed | H79: PC3 | I79: <=RAN5#93-e | J79: R5-216625 | K79: Dish Network | L79: DISH Network (Jussi Kuusisto) | M79: <RAN5#93-e | N79: TEI15_Test, 5GS_NR_LTE-UEConTest | O79: =SortKey(NRbandsTblID[[#This Row],[NR band / NR band CBW Extension (Note 1)]]) -> n071 | Q79: v1.0.0
B80: Rel-17 | C80: FDD FR1 | D80: 38.101-1:Table 5.3.5-1 CBW | E80: n71 CBW (25,30) | F80: SCS15:+25+30 SCS30:+25+30 SCS60:- | G80: Ongoing (CBW) | H80: PC3 | K80: - | N80: NR_lic_bands_BW_R17-UEConTest | O80: =SortKey(NRbandsTblID[[#This Row],[NR band / NR band CBW Extension (Note 1)]]) -> n071 CBW z25,30z | Q80: v1.0.0
B81: Rel-17 | C81: FDD FR1 | D81: 38.101-1:Table 5.3.5-1 CBW | E81: n71 CBW (35) | F81: SCS15:+35 SCS30:+35 SCS60:- | G81: Ongoing (CBW) | H81: PC3 | K81: - | N81: NR_lic_bands_BW_R17-UEConTest | O81: =SortKey(NRbandsTblID[[#This Row],[NR band / NR band CBW Extension (Note 1)]]) -> n071 CBW z35z | Q81: v1.0.0
B82: Rel-15 | C82: FDD FR1 | D82: 38.101-1:Table 5.3.5-1 | E82: n74 | F82: SCS15:5+10+15+20 SCS30:10+15+20 SCS60:10+15+20 | G82: Completed | H82: PC3 | I82: <=RAN5#93-e | J82: R5-216625 | K82: NTT DOCOMO | L82: NTT DOCOMO (Takashi Akao) | M82: <RAN5#93-e | N82: TEI15_Test, 5GS_NR_LTE-UEConTest | O82: =SortKey(NRbandsTblID[[#This Row],[NR band / NR band CBW Extension (Note 1)]]) -> n074 | Q82: v1.0.0
B83: Rel-15 | C83: SDL FR1 | D83: 38.101-1:Table 5.3.5-1 | E83: n75 | F83: SCS15:5+10+15+20 SCS30:10+15+20 SCS60:10+15+20 | G83: Completed | H83: PC3 | I83: <=RAN5#93-e | J83: R5-216625 | K83: Legacy | L83: Ericsson (Leif Mattisson) | M83: <RAN5#93-e | N83: TEI15_Test, 5GS_NR_LTE-UEConTest | O83: =SortKey(NRbandsTblID[[#This Row],[NR band / NR band CBW Extension (Note 1)]]) -> n075 | Q83: v1.0.0
B84: Rel-16 | C84: SDL FR1 | D84: 38.101-1:Table 5.3.5-1 CBW | E84: n75 CBW (25,30,40,50) | F84: SCS15:+25+30+40+50 SCS30:+25+30+40+50 SCS60:+25+30+40+50 | G84: Ongoing (CBW) | H84: PC3 | K84: - | N84: NR_bands_BW_R16-UEConTest | O84: =SortKey(NRbandsTblID[[#This Row],[NR band / NR band CBW Extension (Note 1)]]) -> n075 CBW z25,30,40,50z | Q84: v1.0.0
B85: Rel-15 | C85: SDL FR1 | D85: 38.101-1:Table 5.3.5-1 | E85: n76 | F85: SCS15:5 SCS30:- SCS60:- | G85: Completed | H85: PC3 | I85: <=RAN5#93-e | J85: R5-216625 | K85: Legacy | L85: Ericsson (Leif Mattisson) | M85: <RAN5#93-e | N85: TEI15_Test, 5GS_NR_LTE-UEConTest | O85: =SortKey(NRbandsTblID[[#This Row],[NR band / NR band CBW Extension (Note 1)]]) -> n076 | Q85: v1.0.0
B86: Rel-15 | C86: TDD FR1 | D86: 38.101-1:Table 5.3.5-1 | E86: n77 | F86: SCS15:10+15+20+40+50 SCS30:10+15+20+40+50+60+80+90+100 SCS60:10+15+20+40+50+60+80+90+100 | G86: Completed | H86: PC3 | I86: <=RAN5#88-e | J86: R5-216625 | K86: Legacy | L86: Ericsson (Leif Mattisson) | M86: <RAN5#93-e | N86: TEI15_Test, 5GS_NR_LTE-UEConTest | O86: =SortKey(NRbandsTblID[[#This Row],[NR band / NR band CBW Extension (Note 1)]]) -> n077 | Q86: v1.0.0
B87: Rel-16 | C87: TDD FR1 | D87: 38.101-1:Table 5.3.5-1 CBW | E87: n77 CBW (25,30,70) | F87: SCS15:+25+30 SCS30:+25+30+70 SCS60:+25+30+70 | G87: Completed | H87: PC3 | I87: RAN5#95-e | J87: R5-223500 | K87: China Unicom | L87: China Unicom (Yu Shi) | M87: <RAN5#93-e | N87: NR_bands_BW_R16-UEConTest | O87: =SortKey(NRbandsTblID[[#This Row],[NR band / NR band CBW Extension (Note 1)]]) -> n077 CBW z25,30,70z | Q87: v1.0.0
B88: Rel-17 | C88: TDD FR1 | D88: 38.101-1:Table 5.3.5-1 | E88: n77 PC1.5 | G88: Completed | H88: PC1.5 | I88: RAN5#97 | J88: R5-227637 | K88: Verizon | L88: Verizon,Nokia (Jinwen Ma, Tuomo Saynajakangas) | M88: <RAN5#93-e | N88: TEI17_test, HPUE_PC1_5_n77_n78-UEConTest | O88: =SortKey(NRbandsTblID[[#This Row],[NR band / NR band CBW Extension (Note 1)]]) -> n077 PC001.005 | Q88: v1.0.0
B89: Rel-16 | C89: TDD FR1 | D89: 38.101-1:Table 5.3.5-1 | E89: n77 PC2 | G89: Completed | H89: PC2 | I89: RAN5#88 | J89: R5-203332 | K89: CMCC | L89: CMCC (Danni Song) | M89: <RAN5#93-e | N89: TEI_16Test, ENDC_UE_PC2_TDD_TDD-UEConTest | O89: =SortKey(NRbandsTblID[[#This Row],[NR band / NR band CBW Extension (Note 1)]]) -> n077 PC002 | Q89: v1.0.0
B90: Rel-15 | C90: TDD FR1 | D90: 38.101-1:Table 5.3.5-1 | E90: n78 | F90: SCS15:10+15+20+40+50 SCS30:10+15+20+40+50+60+80+90+100 SCS60:10+15+20+40+50+60+80+90+100 | G90: Completed | H90: PC3 | I90: <=RAN5#88-e | J90: R5-216625 | K90: CMCC | L90: CMCC (Danni Song) | M90: <RAN5#93-e | N90: TEI15_Test, 5GS_NR_LTE-UEConTest | O90: =SortKey(NRbandsTblID[[#This Row],[NR band / NR band CBW Extension (Note 1)]]) -> n078 | Q90: v1.0.0
B91: Rel-16 | C91: TDD FR1 | D91: 38.101-1:Table 5.3.5-1 CBW | E91: n78 CBW (25,30,70) | F91: SCS15:+25+30 SCS30:+25+30+70 SCS60:+25+30+70 | G91: Completed | H91: PC3 | I91: RAN5#95-e | J91: R5-223500 | K91: China Unicom | L91: China Unicom (Yu Shi) | M91: <RAN5#93-e | N91: NR_bands_BW_R16-UEConTest | O91: =SortKey(NRbandsTblID[[#This Row],[NR band / NR band CBW Extension (Note 1)]]) -> n078 CBW z25,30,70z | Q91: v1.0.0
B92: Rel-17 | C92: TDD FR1 | D92: 38.101-1:Table 5.3.5-1 | E92: n78 PC1.5 | G92: Completed | H92: PC1.5 | I92: RAN5#97 | J92: R5-227638 | K92: Verizon | L92: Verizon,Nokia (Jinwen Ma, Tuomo Saynajakangas) | M92: <RAN5#93-e | N92: TEI17_test, HPUE_PC1_5_n77_n78-UEConTest | O92: =SortKey(NRbandsTblID[[#This Row],[NR band / NR band CBW Extension (Note 1)]]) -> n078 PC001.005 | Q92: v1.0.0
B93: Rel-16 | C93: TDD FR1 | D93: 38.101-1:Table 5.3.5-1 | E93: n78 PC2 | G93: Completed | H93: PC2 | I93: RAN5#88 | J93: R5-203332 | K93: CMCC | L93: CMCC (Danni Song) | M93: <RAN5#93-e | N93: TEI_16Test, ENDC_UE_PC2_TDD_TDD-UEConTest | O93: =SortKey(NRbandsTblID[[#This Row],[NR band / NR band CBW Extension (Note 1)]]) -> n078 PC002 | Q93: v1.0.0
B94: Rel-15 | C94: TDD FR1 | D94: 38.101-1:Table 5.3.5-1 | E94: n79 | F94: SCS15:40+50 SCS30:40+50+60+80+100 SCS60:40+50+60+80+100 | G94: Completed | H94: PC3 | I94: <=RAN5#88-e | J94: R5-216625 | K94: CMCC | L94: CMCC (Danni Song) | M94: <RAN5#93-e | N94: TEI15_Test, 5GS_NR_LTE-UEConTest | O94: =SortKey(NRbandsTblID[[#This Row],[NR band / NR band CBW Extension (Note 1)]]) -> n079 | P94: n79 CBW 40 MHz is also used for V2X operation (see "V2X bands" worksheet for V2X status) | Q94: v1.0.0
B95: Rel-17 | C95: TDD FR1 | D95: 38.101-1:Table 5.3.5-1 CBW | E95: n79 CBW (10,20) | F95: SCS15:+10+20 SCS30:+10+20 SCS60:+10+20 | G95: Completed | H95: PC3 | I95: RAN5#97 | J95: R5-226867 | K95: - | L95: Huawei (Yuxin Hao) | M95: RAN5#97 | N95: NR_lic_bands_BW_R17-UEConTest | O95: =SortKey(NRbandsTblID[[#This Row],[NR band / NR band CBW Extension (Note 1)]]) -> n079 CBW z10,20z | P95: n79 CBWs 10 and 20 MHz are also used for V2X operation (see "V2X bands" worksheet for V2X status) | Q95: v1.0.0
B96: Rel-17 | C96: TDD FR1 | D96: 38.101-1:Table 5.3.5-1 CBW | E96: n79 CBW (30,70, 90) | F96: SCS15:+30 SCS30:+30+70+90 SCS60:+30+70+90 | G96: Ongoing (CBW) | H96: PC3 | K96: - | N96: NR_lic_bands_BW_R17-UEConTest | O96: =SortKey(NRbandsTblID[[#This Row],[NR band / NR band CBW Extension (Note 1)]]) -> n079 CBW z30,70, 90z | P96: n79 CBW 30 MHz is also used for V2X operation (see "V2X bands" worksheet for V2X status) | Q96: v1.0.0
B97: Rel-17 | C97: TDD FR1 | D97: 38.101-1:Table 5.3.5-1 | E97: n79 PC1.5 | G97: Completed | H97: PC1.5 | I97: RAN5#97 | J97: R5-227634 | K97: CMCC | L97: CMCC (Danni Song) | M97: <RAN5#93-e | N97: TEI17_Test, NR_UE_PC1_5_n79-UEConTest | O97: =SortKey(NRbandsTblID[[#This Row],[NR band / NR band CBW Extension (Note 1)]]) -> n079 PC001.005 | Q97: v1.0.0
B98: Rel-16 | C98: TDD FR1 | D98: 38.101-1:Table 5.3.5-1 | E98: n79 PC2 | G98: Completed | H98: PC2 | I98: RAN5#88 | J98: R5-203332 | K98: CMCC | L98: CMCC (Danni Song) | M98: <RAN5#93-e | N98: TEI_16Test, ENDC_UE_PC2_TDD_TDD-UEConTest | O98: =SortKey(NRbandsTblID[[#This Row],[NR band / NR band CBW Extension (Note 1)]]) -> n079 PC002 | Q98: v1.0.0
B99: Rel-15 | C99: SUL FR1 | D99: 38.101-1:Table 5.3.5-1 | E99: n80 | F99: SCS15:5+10+15+20+25+30 SCS30:10+15+20+25+30 SCS60:10+15+20+25+30 | G99: Completed | H99: PC3 | I99: <RAN5#94-e | J99: R5-217496 | K99: China Telecom | L99: Chinatelecom (Jing Zhao) | M99: <RAN5#94-e | N99: TEI15_Test, 5GS_NR_LTE-UEConTest | O99: =SortKey(NRbandsTblID[[#This Row],[NR band / NR band CBW Extension (Note 1)]]) -> n080 | Q99: v1.0.0
B100: Rel-17 | C100: FDD FR1 | D100: 38.101-1:Table 5.3.5-1 CBW | E100: n80 CBW (40) | F100: SCS15:+40 SCS30:+40 SCS60:+40 | G100: Ongoing (CBW) | H100: PC3 | K100: - | N100: NR_lic_bands_BW_R17-UEConTest | O100: =SortKey(NRbandsTblID[[#This Row],[NR band / NR band CBW Extension (Note 1)]]) -> n080 CBW z40z | Q100: v1.0.0
B101: Rel-15 | C101: SUL FR1 | D101: 38.101-1:Table 5.3.5-1 | E101: n81 | F101: SCS15:5+10+15+20 SCS30:10+15+20 SCS60:- | G101: Ongoing | H101: PC3 | K101: Legacy | L101: Huawei (Yuxin Hao) | M101: <RAN5#93-e | N101: TEI15_Test, 5GS_NR_LTE-UEConTest | O101: =SortKey(NRbandsTblID[[#This Row],[NR band / NR band CBW Extension (Note 1)]]) -> n081 | Q101: v1.0.0
B102: Rel-15 | C102: SUL FR1 | D102: 38.101-1:Table 5.3.5-1 | E102: n82 | F102: SCS15:5+10+15+20 SCS30:10+15+20 SCS60:- | G102: Completed | H102: PC3 | I102: <=RAN5#93-e | J102: R5-216625 | K102: Legacy | L102: Huawei (Yuxin Hao) | M102: <RAN5#93-e | N102: TEI15_Test, 5GS_NR_LTE-UEConTest | O102: =SortKey(NRbandsTblID[[#This Row],[NR band / NR band CBW Extension (Note 1)]]) -> n082 | Q102: v1.0.0
B103: Rel-15 | C103: SUL FR1 | D103: 38.101-1:Table 5.3.5-1 | E103: n83 | F103: SCS15:5+10+15+20 SCS30:10+15+20 SCS60:- | G103: Completed | H103: PC3 | I103: <RAN5#94-e | J103: R5-217496 | K103: CMCC, CBN | L103: Huawei (Chunying Gu) | M103: <RAN5#94-e | N103: TEI15_Test, 5GS_NR_LTE-UEConTest | O103: =SortKey(NRbandsTblID[[#This Row],[NR band / NR band CBW Extension (Note 1)]]) -> n083 | Q103: v1.0.0
B104: Rel-17 | C104: FDD FR1 | D104: 38.101-1:Table 5.3.5-1 | E104: n83 CBW (25) | F104: TBD (Not yet in 38.101-1) | G104: Ongoing (CBW) | H104: PC3 | K104: - | N104: NR_lic_bands_BW_R17-UEConTest | O104: =SortKey(NRbandsTblID[[#This Row],[NR band / NR band CBW Extension (Note 1)]]) -> n083 CBW z25z | Q104: v1.1.0
B105: Rel-17 | C105: FDD FR1 | D105: 38.101-1:Table 5.3.5-1 CBW | E105: n83 CBW (30) | F105: SCS15:+30 SCS30:+30 SCS60:- | G105: Completed | H105: PC3 | I105: <RAN5#93-e | J105: R5-217494 | K105: Legacy | L105: Huawei (Yuxin Hao) | M105: <RAN5#93-e | N105: NR_lic_bands_BW_R17-UEConTest | O105: =SortKey(NRbandsTblID[[#This Row],[NR band / NR band CBW Extension (Note 1)]]) -> n083 CBW z30z | Q105: v1.0.0
B106: Rel-15 | C106: SUL FR1 | D106: 38.101-1:Table 5.3.5-1 | E106: n84 | F106: SCS15:5+10+15+20 SCS30:10+15+20 SCS60:10+15+20 | G106: Completed | H106: PC3 | I106: <=RAN5#93-e | J106: R5-216625 | K106: Legacy | L106: Huawei (Yuxin Hao) | M106: <RAN5#93-e | N106: TEI15_Test, 5GS_NR_LTE-UEConTest | O106: =SortKey(NRbandsTblID[[#This Row],[NR band / NR band CBW Extension (Note 1)]]) -> n084 | Q106: v1.0.0
B107: Rel-17 | C107: FDD FR1 | D107: 38.101-1:Table 5.3.5-1 CBW | E107: n84 CBW (25,30,40,50) | F107: SCS15:+25+30+40+50 SCS30:+25+30+40+50 SCS60:+25+30+40+50 | G107: Completed | H107: PC3 | I107: <RAN5#93-e | J107: R5-217494 | K107: Legacy | L107: Huawei (Yuxin Hao) | M107: <RAN5#93-e | N107: NR_lic_bands_BW_R17-UEConTest | O107: =SortKey(NRbandsTblID[[#This Row],[NR band / NR band CBW Extension (Note 1)]]) -> n084 CBW z25,30,40,50z | Q107: v1.0.0
B108: Rel-17 | C108: FDD FR1 | D108: 38.101-1:Table 5.3.5-1 | E108: n85 | F108: SCS15:5+10+15 SCS30:10+15 | G108: Pending | H108: PC3 | N108: NR_lic_bands_BW_R17-UEConTest | O108: =SortKey(NRbandsTblID[[#This Row],[NR band / NR band CBW Extension (Note 1)]]) -> n085 | Q108: v1.3.0
B109: Rel-15 | C109: SUL FR1 | D109: 38.101-1:Table 5.3.5-1 | E109: n86 | F109: SCS15:5+10+15+20+40 SCS30:10+15+20+40 SCS60:10+15+20+40 | G109: Completed | H109: PC3 | I109: RAN5#97 | J109: R5-226275 | K109: Legacy | L109: CAICT (Yufeng Zhang) | N109: TEI15_Test, 5GS_NR_LTE-UEConTest | O109: =SortKey(NRbandsTblID[[#This Row],[NR band / NR band CBW Extension (Note 1)]]) -> n086 | Q109: v1.0.0
B110: Rel-16 | C110: SUL FR1 | D110: 38.101-1:Table 5.3.5-1 | E110: n89 | F110: SCS15:5+10+15+20 SCS30:10+15+20 SCS60:- | G110: Pending | H110: PC3 | N110: NR_bands_BW_R16-UEConTest | O110: =SortKey(NRbandsTblID[[#This Row],[NR band / NR band CBW Extension (Note 1)]]) -> n089 | Q110: v1.0.0
B111: Rel-16 | C111: NR FR1 | D111: 38.101-1:Table 5.3.5-1 | E111: n90 | F111: SCS15:10+15+20+30+40+50 SCS30:10+15+20+30+40+50+60+80+90+100 SCS60:10+15+20+30+40+50+60+80+90+100 | G111: Pending | H111: PC3 | N111: FFS | O111: =SortKey(NRbandsTblID[[#This Row],[NR band / NR band CBW Extension (Note 1)]]) -> n090 | P111: Currently not in scope of PRD21 but included for completeness (RAN4 WI; NR_n41_LTE_41_coex-Core not yet covered by any RAN5 WI) | Q111: v1.2.0
B112: Rel-16 | C112: NR FR1 | D112: 38.101-1:Table 5.3.5-1 | E112: n91 | F112: SCS15:5+10 | G112: Completed | H112: PC3 | I112: RAN5#97 | J112: R5-225951 | K112: Orange | L112: Nokia (Tuomo Saynajakangas) | M112: RAN5#96-e | N112: NR_bands_BW_R16-UEConTest | O112: =SortKey(NRbandsTblID[[#This Row],[NR band / NR band CBW Extension (Note 1)]]) -> n091 | Q112: v1.2.0
B113: Rel-16 | C113: NR FR1 | D113: 38.101-1:Table 5.3.5-1 | E113: n92 | F113: SCS15:5+10+15+10 SCS30:10+15+20 | G113: Completed | H113: PC3 | I113: RAN5#97 | J113: R5-225951 | K113: Orange | L113: Nokia (Tuomo Saynajakangas) | M113: RAN5#96-e | N113: NR_bands_BW_R16-UEConTest | O113: =SortKey(NRbandsTblID[[#This Row],[NR band / NR band CBW Extension (Note 1)]]) -> n092 | Q113: v1.2.0
B114: Rel-16 | C114: NR FR1 | D114: 38.101-1:Table 5.3.5-1 | E114: n93 | F114: SCS15:5+10 | G114: Completed | H114: PC3 | I114: RAN5#97 | J114: R5-225951 | K114: Orange | L114: Nokia (Tuomo Saynajakangas) | M114: RAN5#96-e | N114: NR_bands_BW_R16-UEConTest | O114: =SortKey(NRbandsTblID[[#This Row],[NR band / NR band CBW Extension (Note 1)]]) -> n093 | Q114: v1.2.0
B115: Rel-16 | C115: NR FR1 | D115: 38.101-1:Table 5.3.5-1 | E115: n94 | F115: SCS15:5+10+15+10 SCS30:10+15+20 | G115: Completed | H115: PC3 | I115: RAN5#97 | J115: R5-225951 | K115: Orange | L115: Nokia (Tuomo Saynajakangas) | M115: RAN5#96-e | N115: NR_bands_BW_R16-UEConTest | O115: =SortKey(NRbandsTblID[[#This Row],[NR band / NR band CBW Extension (Note 1)]]) -> n094 | Q115: v1.2.0
B116: Rel-16 | C116: SUL FR1 | D116: 38.101-1:Table 5.3.5-1 | E116: n95 | F116: SCS15:5+10+15 SCS30:10+15 SCS60:10+15 | G116: Completed | H116: PC3 | I116: RAN5#87 | J116: R5-216629 | K116: CMCC | L116: CMCC (Danni Song) | M116: <RAN5#93-e | N116: NR_bands_BW_R16-UEConTest | O116: =SortKey(NRbandsTblID[[#This Row],[NR band / NR band CBW Extension (Note 1)]]) -> n095 | Q116: v1.0.0
B117: Rel-16 | C117: TDD FR1 | D117: 38.101-1:Table 5.3.5-1 | E117: n96 | F117: SCS15:20+40 SCS30:20+40+60+80 SCS60:20+40+60+80 | G117: Ongoing | H117: PC3 | K117: Charter Communications | M117: RAN5#97 | N117: NR_unlic-UEConTest | O117: =SortKey(NRbandsTblID[[#This Row],[NR band / NR band CBW Extension (Note 1)]]) -> n096 | Q117: v1.1.0
B118: Rel-17 | C118: FDD FR1 | D118: 38.101-1:Table 5.3.5-1 CBW | E118: n96 CBW (100) | F118: TBD (Not yet in 38.101-1) | G118: Pending | H118: PC3 | N118: TEI17_Test, NR_lic_bands_BW_R17-UEConTest | O118: =SortKey(NRbandsTblID[[#This Row],[NR band / NR band CBW Extension (Note 1)]]) -> n096 CBW z100z | Q118: v1.0.0
B119: Rel-17 | C119: SUL FR1 | D119: 38.101-1:Table 5.3.5-1 | E119: n97 | F119: SCS15:5+10+15+20+25+30+40+50 SCS30:10+15+20+25+30+40+50+60+70+80+90+100 SCS60:10+15+20+25+30+40+50+60+70+80+90+100 | G119: Completed | H119: PC3 | I119: RAN5#94-e | J119: R5-221138 | K119: Legacy | L119: Huawei (Yuxin Hao) | M119: <RAN5#94-e | N119: TEI17_Test, NR_lic_bands_BW_R17-UEConTest | O119: =SortKey(NRbandsTblID[[#This Row],[NR band / NR band CBW Extension (Note 1)]]) -> n097 | Q119: v1.0.0
B120: Rel-17 | C120: SUL FR1 | D120: 38.101-1:Table 5.3.5-1 | E120: n98 | F120: SCS15:5+10+15+20+25+30+40 SCS30:10+15+20+25+30+40 SCS60:10+15+20+25+30+40 | G120: Pending | H120: PC3 | N120: TEI17_Test, NR_lic_bands_BW_R17-UEConTest | O120: =SortKey(NRbandsTblID[[#This Row],[NR band / NR band CBW Extension (Note 1)]]) -> n098 | Q120: v1.0.0
B121: Rel-17 | C121: SUL FR1 | D121: 38.101-1:Table 5.3.5-1 | E121: n99 | F121: SCS15:5+10 SCS30:10 SCS60:10 | G121: Completed | H121: PC3 | I121: RAN5#93-e | J121: R5-217494 | K121: Ligado Networks | L121: Ligado Networks (Ojas Choksi) | M121: <RAN5#93-e | N121: TEI17_Test, NR_lic_bands_BW_R17-UEConTest | O121: =SortKey(NRbandsTblID[[#This Row],[NR band / NR band CBW Extension (Note 1)]]) -> n099 | Q121: v1.0.0
B122: Rel-17 | C122: FDD FR1 | D122: 38.101-1:Table 5.3.5-1 | E122: n100 (railway band)) | F122: SCS 15: 5 | G122: Completed | H122: PC3 | I122: RAN5#98 | J122: R5-230064 | K122: UIC | L122: Nokia (Tuomo Säynäjäkangas) | M122: RAN5#97 | N122: TEI17_Test, NR_lic_bands_BW_R17-UEConTest | O122: =SortKey(NRbandsTblID[[#This Row],[NR band / NR band CBW Extension (Note 1)]]) -> n100 zrailway bandz) | P122: UIC (International Union of Railways) is interested deployer of the band. | Q122: v1.1.0
B123: Rel-17 | C123: TDD FR1 | D123: 38.101-1:Table 5.3.5-1 | E123: n101 (railway band)) | F123: SCS15:5+10 SCS30:10 | G123: Completed | H123: PC3 | I123: RAN5#98 | J123: R5-230064 | K123: UIC | L123: Nokia (Tuomo Säynäjäkangas) | M123: RAN5#97 | N123: TEI17_Test, NR_lic_bands_BW_R17-UEConTest | O123: =SortKey(NRbandsTblID[[#This Row],[NR band / NR band CBW Extension (Note 1)]]) -> n101 zrailway bandz) | P123: UIC (International Union of Railways) is interested deployer of the band. | Q123: v1.1.0
B124: Rel-17 | C124: TDD FR1 | D124: 38.101-1:Table 5.3.5-1 | E124: n104 | F124: SCS15:5+10 SCS30:10 | G124: Pending | H124: PC3 | K124: Orange | M124: RAN5#98 | N124: TEI17_Test, NR_lic_bands_BW_R17-UEConTest | O124: =SortKey(NRbandsTblID[[#This Row],[NR band / NR band CBW Extension (Note 1)]]) -> n104 | Q124: v1.3.0
B125: Rel-17 | C125: TDD FR2 | D125: 38.101-2:Table 5.3.5-1 | E125: n255 | G125: Ongoing | H125: PC3 | K125: CMCC | L125: CMCC (Danni Song) | M125: RAN5#98 | N125: NR_NTN_solutions_plus_CT-UEConTest, LTE_NBIOT_eMTC_NTN_plus_EPS-UEConTest | O125: =SortKey(NRbandsTblID[[#This Row],[NR band / NR band CBW Extension (Note 1)]]) -> n255 | Q125: v1.4.0
B126: Rel-17 | C126: TDD FR2 | D126: 38.101-2:Table 5.3.5-1 | E126: n255 PC5 | G126: Ongoing | H126: PC5 | K126: CMCC | L126: CMCC (Danni Song) | M126: RAN5#98 | N126: NR_NTN_solutions_plus_CT-UEConTest, LTE_NBIOT_eMTC_NTN_plus_EPS-UEConTest | O126: =SortKey(NRbandsTblID[[#This Row],[NR band / NR band CBW Extension (Note 1)]]) -> n255 PC005 | Q126: v1.4.0
B127: Rel-17 | C127: TDD FR2 | D127: 38.101-2:Table 5.3.5-1 | E127: n256 | G127: Ongoing | H127: PC3 | K127: CMCC | L127: CMCC (Danni Song) | M127: RAN5#98 | N127: NR_NTN_solutions_plus_CT-UEConTest, LTE_NBIOT_eMTC_NTN_plus_EPS-UEConTest | O127: =SortKey(NRbandsTblID[[#This Row],[NR band / NR band CBW Extension (Note 1)]]) -> n256 | Q127: v1.4.0
B128: Rel-17 | C128: TDD FR2 | D128: 38.101-2:Table 5.3.5-1 | E128: n256 PC5 | G128: Ongoing | H128: PC5 | K128: CMCC | L128: CMCC (Danni Song) | M128: RAN5#98 | N128: NR_NTN_solutions_plus_CT-UEConTest, LTE_NBIOT_eMTC_NTN_plus_EPS-UEConTest | O128: =SortKey(NRbandsTblID[[#This Row],[NR band / NR band CBW Extension (Note 1)]]) -> n256 PC005 | Q128: v1.4.0
B129: Rel-15 | C129: TDD FR2 | D129: 38.101-2:Table 5.3.5-1 | E129: n257 | F129: SCS60:50+100+200 SCS120:50+100+200+400 | G129: Completed | H129: PC3 | I129: <=RAN5#93-e | J129: R5-216625 | K129: NTT DOCOMO | L129: NTT DOCOMO (Takashi Akao) | M129: <RAN5#93-e | N129: TEI15_Test, 5GS_NR_LTE-UEConTest | O129: =SortKey(NRbandsTblID[[#This Row],[NR band / NR band CBW Extension (Note 1)]]) -> n257 | Q129: v1.0.0
B130: Rel-17 | C130: TDD FR2 | D130: 38.101-2:Table 5.3.5-1 | E130: n257 PC6 | G130: Ongoing | H130: PC6 | K130: China Unicom | M130: RAN5#98 | N130: NR_HST_FR2-UEConTest | O130: =SortKey(NRbandsTblID[[#This Row],[NR band / NR band CBW Extension (Note 1)]]) -> n257 PC006 | Q130: v1.3.0
B131: Rel-17 | C131: TDD FR2 | D131: 38.101-2:Table 5.3.5-1 | E131: n257 PC7 | G131: Ongoing | H131: PC7 | K131: China Unicom | L131: China Unicom (Yu Shi) | M131: RAN5#98 | N131: NR_redcap_plus_ARCH-UEConTest | O131: =SortKey(NRbandsTblID[[#This Row],[NR band / NR band CBW Extension (Note 1)]]) -> n257 PC007 | Q131: v1.4.0
B132: Rel-15 | C132: TDD FR2 | D132: 38.101-2:Table 5.3.5-1 | E132: n258 | F132: SCS60:50+100+200 SCS120:50+100+200+400 | G132: Ongoing | H132: PC3 | K132: U.S. Cellular | L132: Ericsson (Niclas Weiler) | M132: <RAN5#93-e | N132: TEI15_Test, 5GS_NR_LTE-UEConTest | O132: =SortKey(NRbandsTblID[[#This Row],[NR band / NR band CBW Extension (Note 1)]]) -> n258 | Q132: v1.0.0
B133: Rel-17 | C133: TDD FR2 | D133: 38.101-2:Table 5.3.5-1 | E133: n258 PC6 | G133: Ongoing | H133: PC6 | K133: China Unicom | L133: Samsung (Sunlin Zhu) | M133: RAN5#97 | N133: NR_HST_FR2-UEConTest | O133: =SortKey(NRbandsTblID[[#This Row],[NR band / NR band CBW Extension (Note 1)]]) -> n258 PC006 | Q133: v1.3.0
B134: Rel-17 | C134: TDD FR2 | D134: 38.101-2:Table 5.3.5-1 | E134: n258 PC7 | G134: Ongoing | H134: PC7 | K134: China Unicom | L134: China Unicom (Yu Shi) | M134: RAN5#98 | N134: NR_redcap_plus_ARCH-UEConTest | O134: =SortKey(NRbandsTblID[[#This Row],[NR band / NR band CBW Extension (Note 1)]]) -> n258 PC007 | Q134: v1.4.0
B135: Rel-16 | C135: TDD FR2 | D135: 38.101-2:Table 5.3.5-1 | E135: n259 | F135: SCS60:50+100+200 SCS120:50+100+200+400 | G135: Ongoing | H135: PC3 | K135: NTT DOCOMO | L135: NTT DOCOMO (Takashi Akao) | M135: <RAN5#93-e | N135: NR_bands_BW_R16-UEConTest | O135: =SortKey(NRbandsTblID[[#This Row],[NR band / NR band CBW Extension (Note 1)]]) -> n259 | Q135: v1.0.0
B136: Rel-17 | C136: TDD FR2 | D136: 38.101-2:Table 5.3.5-1 | E136: n259 PC2 | G136: Pending | H136: PC2 | N136: NR_RF_FR2_req_enh2-UEConTest | O136: =SortKey(NRbandsTblID[[#This Row],[NR band / NR band CBW Extension (Note 1)]]) -> n259 PC002 | Q136: v1.3.0
B137: Rel-15 | C137: TDD FR2 | D137: 38.101-2:Table 5.3.5-1 | E137: n260 | F137: SCS60:50+100+200 SCS120:50+100+200+400 | G137: Ongoing | H137: PC3 | K137: Legacy | L137: Bureau Veritas (Amy Tao) | M137: <RAN5#93-e | N137: TEI15_Test, 5GS_NR_LTE-UEConTest | O137: =SortKey(NRbandsTblID[[#This Row],[NR band / NR band CBW Extension (Note 1)]]) -> n260 | Q137: v1.0.0
B138: Rel-15 | C138: TDD FR2 | D138: 38.101-2:Table 5.3.5-1 | E138: n261 | F138: SCS60:50+100+200 SCS120:50+100+200+400 | G138: Ongoing | H138: PC3 | K138: Legacy | L138: Ericsson (Niclas Weiler) | M138: <RAN5#93-e | N138: TEI15_Test, 5GS_NR_LTE-UEConTest | O138: =SortKey(NRbandsTblID[[#This Row],[NR band / NR band CBW Extension (Note 1)]]) -> n261 | Q138: v1.0.0
B139: Rel-17 | C139: TDD FR2 | D139: 38.101-2:Table 5.3.5-1 | E139: n261 PC6 | G139: Ongoing | H139: PC6 | K139: Veri<on | M139: RAN5#98 | N139: NR_HST_FR2-UEConTest | O139: =SortKey(NRbandsTblID[[#This Row],[NR band / NR band CBW Extension (Note 1)]]) -> n261 PC006 | Q139: v1.3.0
B140: Rel-17 | C140: TDD FR2 | D140: 38.101-2:Table 5.3.5-1 | E140: n261 PC7 | G140: Ongoing | H140: PC7 | K140: China Unicom | L140: China Unicom (Yu Shi) | M140: RAN5#98 | N140: NR_redcap_plus_ARCH-UEConTest | O140: =SortKey(NRbandsTblID[[#This Row],[NR band / NR band CBW Extension (Note 1)]]) -> n261 PC007 | Q140: v1.4.0
B141: Rel-17 | C141: TDD FR2 | D141: 38.101-2:Table 5.3.5-1 | E141: n262 | F141: SCS60:50+100+200 SCS120:50+100+200+400 | G141: Ongoing | H141: PC3 | K141: Legacy | L141: Apple (Ashwin Mohan) | M141: <RAN5#93-e | N141: TEI17_Test, NR_lic_bands_BW_R17-UEConTest | O141: =SortKey(NRbandsTblID[[#This Row],[NR band / NR band CBW Extension (Note 1)]]) -> n262 | Q141: v1.0.0

Sheet 5G NR CADC Configurations
A1: =COUNTA(ConfigTblID[Marked config])&" configs marked" -> 0 configs marked | C1: 3GPP RAN WG5 status NR CA, NR-DC, NE-DC and EN-DC configurations | N1: =PRD21version -> PRD21 v1.5.0
C2: Based on: TS 38.101-1 v17.8.0, TS 38.101-2 v17.8.0 and TS 38.101-3 v17.8.0 (Dec 2022)
C4: Completed: Green row indicates that the 5G NR CADC configuration is complete in the RAN5 test specifications. Available for testing.
C5: Ongoing: Yellow row indicates that the 5G NR CADC configuration is assigned to at least one "Interested Deployer" or is a fallback to an ongoing configuration, and at least one "Responsible Company". CRs can be submitted to RAN5 test specifications.
C6: Ongoing: White row with black text indicates that the 5G NR CADC configuration is ongoing but not yet assigned to any "Responsible Company". No CRs shall be submitted to the RAN5 specifications unless the company volunteers to be assigned as "Responsible Company".
C7: Pending: White row with red text indicates that the 5G NR CADC configuration is is pending assignment to "Interested Deployer" for PC3. No CRs shall be submitted to the RAN5 specifications.
C8: Note 1: Power classes beyond PC3 are indicated by a "PCx" suffix in the "UL configuration" and "Power class" columns, where x is the power class e.g. "PC2" for power class 2. Power classes beyond PC3 are only indicated for the items without any "BCS" suffix but applies to all bandwidth combination sets of the UL configuration defined for the PC3 case. Note 2: The interested deployer column can be an interested mobile network operator (MNO) or any other interested deployers as defined in PRD21, clause 3.1. For the case the type of deployer is not an MNO the type of deployer is described in the comments column.
A9: Marked config | B9: Release introduced in TS 38.101-x | C9: Type of configuration | D9: TS and Source Table | E9: Configuration | F9: Uplink configuration (Note 1) | G9: Status | H9: Power Class (Note 1) | I9: RAN5 Completion Meeting | J9: Completion Reference | K9: Interested Deployer(Note 2) | L9: Responsible Company (contact) | M9: Assignment [RAN5 meeting] | N9: Applicable RAN5 WI code(s) for CRs | O9: DL Sort Key | P9: UL Sort Key | Q9: Comments | R9: Introduced in PRD version
B10: Rel-16 | C10: NR CA FR1 inter-band (2 bands) | D10: 38.101-1:Table 5.5A.3.1-1a | E10: CA_n1A-n3A | F10: - | G10: Ongoing | H10: PC3 | K10: Telefonica | L10: Huawei (Chunying Gu) | M10: <RAN5#94-e | N10: NR_CADC_NR_LTE_DC_R16-UEConTest | O10: CA_n001A_n003A | P10: _ | R10: v1.0.0
B11: Rel-16 | C11: NR CA FR1 inter-band (2 bands) | D11: 38.101-1:Table 5.5A.3.1-1a | E11: CA_n1A-n3A | F11: CA_n1A-n3A | G11: Ongoing | H11: PC3 | K11: China Unicom | L11: China Unicom (Yu Shi) | M11: <RAN5#94-e | N11: NR_CADC_NR_LTE_DC_R16-UEConTest | O11: CA_n001A_n003A | P11: CA_n001A_n003A | R11: v1.0.0
B12: Rel-17 | C12: NR CA FR1 inter-band (2 bands) | D12: 38.101-1:Table 5.5A.3.1-1a | E12: CA_n1A-n3A BCS1 | F12: - | G12: Ongoing | H12: PC3 | K12: China Unicom | L12: China Unicom (Yu Shi) | M12: <RAN5#94-e | N12: NR_CADC_NR_LTE_DC_R17-UEConTest | O12: CA_n001A_n003A BCS1 | P12: _ | R12: v1.0.0
B13: Rel-17 | C13: NR CA FR1 inter-band (2 bands) | D13: 38.101-1:Table 5.5A.3.1-1a | E13: CA_n1A-n3A BCS1 | F13: CA_n1A-n3A | G13: Ongoing | H13: PC3 | K13: China Unicom | L13: China Unicom (Yu Shi) | M13: <RAN5#94-e | N13: NR_CADC_NR_LTE_DC_R17-UEConTest | O13: CA_n001A_n003A BCS1 | P13: CA_n001A_n003A | R13: v1.0.0
B14: Rel-17 | C14: NR CA FR1 inter-band (3 bands) | D14: 38.101-1:Table 5.5A.3.2-1 | E14: CA_n1A-n3A-n5A | F14: - | G14: Pending | H14: PC3 | N14: NR_CADC_NR_LTE_DC_R17-UEConTest | O14: CA_n001A_n003A_n005A | P14: _ | R14: v1.0.0
B15: Rel-17 | C15: NR CA FR1 inter-band (3 bands) | D15: 38.101-1:Table 5.5A.3.2-1 | E15: CA_n1A-n3A-n5A | F15: CA_n1A-n3A | G15: Pending | H15: PC3 | N15: NR_CADC_NR_LTE_DC_R17-UEConTest | O15: CA_n001A_n003A_n005A | P15: CA_n001A_n003A | R15: v1.0.0
B16: Rel-17 | C16: NR CA FR1 inter-band (3 bands) | D16: 38.101-1:Table 5.5A.3.2-1 | E16: CA_n1A-n3A-n5A | F16: CA_n1A-n5A | G16: Pending | H16: PC3 | N16: NR_CADC_NR_LTE_DC_R17-UEConTest | O16: CA_n001A_n003A_n005A | P16: CA_n001A_n005A | R16: v1.0.0
B17: Rel-17 | C17: NR CA FR1 inter-band (3 bands) | D17: 38.101-1:Table 5.5A.3.2-1 | E17: CA_n1A-n3A-n5A | F17: CA_n3A-n5A | G17: Pending | H17: PC3 | N17: NR_CADC_NR_LTE_DC_R17-UEConTest | O17: CA_n001A_n003A_n005A | P17: CA_n003A_n005A | R17: v1.0.0
B18: Rel-17 | C18: NR CA FR1 inter-band (4 bands) | D18: 38.101-1:Table 5.5A.3.3-1 | E18: CA_n1A-n3A-n5A-n7A | F18: - | G18: Pending | H18: PC3 | N18: NR_CADC_NR_LTE_DC_R17-UEConTest | O18: CA_n001A_n003A_n005A_n007A | P18: _ | R18: v1.0.0
B19: Rel-17 | C19: NR CA FR1 inter-band (4 bands) | D19: 38.101-1:Table 5.5A.3.3-1 | E19: CA_n1A-n3A-n5A-n7A | F19: CA_n1A-n3A | G19: Pending | H19: PC3 | N19: NR_CADC_NR_LTE_DC_R17-UEConTest | O19: CA_n001A_n003A_n005A_n007A | P19: CA_n001A_n003A | R19: v1.0.0
B20: Rel-17 | C20: NR CA FR1 inter-band (4 bands) | D20: 38.101-1:Table 5.5A.3.3-1 | E20: CA_n1A-n3A-n5A-n7A | F20: CA_n1A-n5A | G20: Pending | H20: PC3 | N20: NR_CADC_NR_LTE_DC_R17-UEConTest | O20: CA_n001A_n003A_n005A_n007A | P20: CA_n001A_n005A | R20: v1.0.0
B21: Rel-17 | C21: NR CA FR1 inter-band (4 bands) | D21: 38.101-1:Table 5.5A.3.3-1 | E21: CA_n1A-n3A-n5A-n7A | F21: CA_n1A-n7A | G21: Pending | H21: PC3 | N21: NR_CADC_NR_LTE_DC_R17-UEConTest | O21: CA_n001A_n003A_n005A_n007A | P21: CA_n001A_n007A | R21: v1.0.0
B22: Rel-17 | C22: NR CA FR1 inter-band (4 bands) | D22: 38.101-1:Table 5.5A.3.3-1 | E22: CA_n1A-n3A-n5A-n7A | F22: CA_n3A-n5A | G22: Pending | H22: PC3 | N22: NR_CADC_NR_LTE_DC_R17-UEConTest | O22: CA_n001A_n003A_n005A_n007A | P22: CA_n003A_n005A | R22: v1.0.0
B23: Rel-17 | C23: NR CA FR1 inter-band (4 bands) | D23: 38.101-1:Table 5.5A.3.3-1 | E23: CA_n1A-n3A-n5A-n7A | F23: CA_n3A-n7A | G23: Pending | H23: PC3 | N23: NR_CADC_NR_LTE_DC_R17-UEConTest | O23: CA_n001A_n003A_n005A_n007A | P23: CA_n003A_n007A | R23: v1.0.0
B24: Rel-17 | C24: NR CA FR1 inter-band (4 bands) | D24: 38.101-1:Table 5.5A.3.3-1 | E24: CA_n1A-n3A-n5A-n7A | F24: CA_n5A-n7A | G24: Pending | H24: PC3 | N24: NR_CADC_NR_LTE_DC_R17-UEConTest | O24: CA_n001A_n003A_n005A_n007A | P24: CA_n005A_n007A | R24: v1.0.0
B25: Rel-17 | C25: NR CA FR1 inter-band (5 bands) | D25: 38.101-1:Table 5.5A.3.4-1 | E25: CA_n1A-n3A-n5A-n7A-n78A | F25: - | G25: Pending | H25: PC3 | N25: NR_CADC_NR_LTE_DC_R17-UEConTest | O25: CA_n001A_n003A_n005A_n007A_n078A | P25: _ | R25: v1.4.0
B26: Rel-17 | C26: NR CA FR1 inter-band (5 bands) | D26: 38.101-1:Table 5.5A.3.4-1 | E26: CA_n1A-n3A-n5A-n7A-n78A | F26: CA_n1A-n3A | G26: Pending | H26: PC3 | N26: NR_CADC_NR_LTE_DC_R17-UEConTest | O26: CA_n001A_n003A_n005A_n007A_n078A | P26: CA_n001A_n003A | R26: v1.1.0
B27: Rel-17 | C27: NR CA FR1 inter-band (5 bands) | D27: 38.101-1:Table 5.5A.3.4-1 | E27: CA_n1A-n3A-n5A-n7A-n78A | F27: CA_n1A-n5A | G27: Pending | H27: PC3 | N27: NR_CADC_NR_LTE_DC_R17-UEConTest | O27: CA_n001A_n003A_n005A_n007A_n078A | P27: CA_n001A_n005A | R27: v1.1.0
B28: Rel-17 | C28: NR CA FR1 inter-band (5 bands) | D28: 38.101-1:Table 5.5A.3.4-1 | E28: CA_n1A-n3A-n5A-n7A-n78A | F28: CA_n1A-n7A | G28: Pending | H28: PC3 | N28: NR_CADC_NR_LTE_DC_R17-UEConTest | O28: CA_n001A_n003A_n005A_n007A_n078A | P28: CA_n001A_n007A | R28: v1.1.0
B29: Rel-17 | C29: NR CA FR1 inter-band (5 bands) | D29: 38.101-1:Table 5.5A.3.4-1 | E29: CA_n1A-n3A-n5A-n7A-n78A | F29: CA_n1A-n78A | G29: Pending | H29: PC3 | N29: NR_CADC_NR_LTE_DC_R17-UEConTest | O29: CA_n001A_n003A_n005A_n007A_n078A | P29: CA_n001A_n078A | R29: v1.1.0
B30: Rel-17 | C30: NR CA FR1 inter-band (5 bands) | D30: 38.101-1:Table 5.5A.3.4-1 | E30: CA_n1A-n3A-n5A-n7A-n78A | F30: CA_n3A-n5A | G30: Pending | H30: PC3 | N30: NR_CADC_NR_LTE_DC_R17-UEConTest | O30: CA_n001A_n003A_n005A_n007A_n078A | P30: CA_n003A_n005A | R30: v1.1.0
B31: Rel-17 | C31: NR CA FR1 inter-band (5 bands) | D31: 38.101-1:Table 5.5A.3.4-1 | E31: CA_n1A-n3A-n5A-n7A-n78A | F31: CA_n3A-n7A | G31: Pending | H31: PC3 | N31: NR_CADC_NR_LTE_DC_R17-UEConTest | O31: CA_n001A_n003A_n005A_n007A_n078A | P31: CA_n003A_n007A | R31: v1.1.0
B32: Rel-17 | C32: NR CA FR1 inter-band (5 bands) | D32: 38.101-1:Table 5.5A.3.4-1 | E32: CA_n1A-n3A-n5A-n7A-n78A | F32: CA_n3A-n78A | G32: Pending | H32: PC3 | N32: NR_CADC_NR_LTE_DC_R17-UEConTest | O32: CA_n001A_n003A_n005A_n007A_n078A | P32: CA_n003A_n078A | R32: v1.1.0
B33: Rel-17 | C33: NR CA FR1 inter-band (5 bands) | D33: 38.101-1:Table 5.5A.3.4-1 | E33: CA_n1A-n3A-n5A-n7A-n78A | F33: CA_n5A-n7A | G33: Pending | H33: PC3 | N33: NR_CADC_NR_LTE_DC_R17-UEConTest | O33: CA_n001A_n003A_n005A_n007A_n078A | P33: CA_n005A_n007A | R33: v1.1.0
B34: Rel-17 | C34: NR CA FR1 inter-band (5 bands) | D34: 38.101-1:Table 5.5A.3.4-1 | E34: CA_n1A-n3A-n5A-n7A-n78A | F34: CA_n5A-n78A | G34: Pending | H34: PC3 | N34: NR_CADC_NR_LTE_DC_R17-UEConTest | O34: CA_n001A_n003A_n005A_n007A_n078A | P34: CA_n005A_n078A | R34: v1.1.0
B35: Rel-17 | C35: NR CA FR1 inter-band (5 bands) | D35: 38.101-1:Table 5.5A.3.4-1 | E35: CA_n1A-n3A-n5A-n7A-n78A | F35: CA_n7A-n78A | G35: Pending | H35: PC3 | N35: NR_CADC_NR_LTE_DC_R17-UEConTest | O35: CA_n001A_n003A_n005A_n007A_n078A | P35: CA_n007A_n078A | R35: v1.1.0
B36: Rel-17 | C36: NR CA FR1 inter-band (4 bands) | D36: 38.101-1:Table 5.5A.3.3-1 | E36: CA_n1A-n3A-n5A-n7B | F36: - | G36: Pending | H36: PC3 | N36: NR_CADC_NR_LTE_DC_R17-UEConTest | O36: CA_n001A_n003A_n005A_n007B | P36: _ | R36: v1.0.0
B37: Rel-17 | C37: NR CA FR1 inter-band (4 bands) | D37: 38.101-1:Table 5.5A.3.3-1 | E37: CA_n1A-n3A-n5A-n7B | F37: CA_n1A-n3A | G37: Pending | H37: PC3 | N37: NR_CADC_NR_LTE_DC_R17-UEConTest | O37: CA_n001A_n003A_n005A_n007B | P37: CA_n001A_n003A | R37: v1.0.0
B38: Rel-17 | C38: NR CA FR1 inter-band (4 bands) | D38: 38.101-1:Table 5.5A.3.3-1 | E38: CA_n1A-n3A-n5A-n7B | F38: CA_n1A-n5A | G38: Pending | H38: PC3 | N38: NR_CADC_NR_LTE_DC_R17-UEConTest | O38: CA_n001A_n003A_n005A_n007B | P38: CA_n001A_n005A | R38: v1.0.0
B39: Rel-17 | C39: NR CA FR1 inter-band (4 bands) | D39: 38.101-1:Table 5.5A.3.3-1 | E39: CA_n1A-n3A-n5A-n7B | F39: CA_n1A-n7A | G39: Pending | H39: PC3 | N39: NR_CADC_NR_LTE_DC_R17-UEConTest | O39: CA_n001A_n003A_n005A_n007B | P39: CA_n001A_n007A | R39: v1.0.0
B40: Rel-17 | C40: NR CA FR1 inter-band (4 bands) | D40: 38.101-1:Table 5.5A.3.3-1 | E40: CA_n1A-n3A-n5A-n7B | F40: CA_n3A-n5A | G40: Pending | H40: PC3 | N40: NR_CADC_NR_LTE_DC_R17-UEConTest | O40: CA_n001A_n003A_n005A_n007B | P40: CA_n003A_n005A | R40: v1.0.0
B41: Rel-17 | C41: NR CA FR1 inter-band (4 bands) | D41: 38.101-1:Table 5.5A.3.3-1 | E41: CA_n1A-n3A-n5A-n7B | F41: CA_n3A-n7A | G41: Pending | H41: PC3 | N41: NR_CADC_NR_LTE_DC_R17-UEConTest | O41: CA_n001A_n003A_n005A_n007B | P41: CA_n003A_n007A | R41: v1.0.0
B42: Rel-17 | C42: NR CA FR1 inter-band (4 bands) | D42: 38.101-1:Table 5.5A.3.3-1 | E42: CA_n1A-n3A-n5A-n7B | F42: CA_n5A-n7A | G42: Pending | H42: PC3 | N42: NR_CADC_NR_LTE_DC_R17-UEConTest | O42: CA_n001A_n003A_n005A_n007B | P42: CA_n005A_n007A | R42: v1.0.0
B43: Rel-17 | C43: NR CA FR1 inter-band (4 bands) | D43: 38.101-1:Table 5.5A.3.3-1 | E43: CA_n1A-n3A-n5A-n7B | F43: CA_n7B | G43: Pending | H43: PC3 | N43: NR_CADC_NR_LTE_DC_R17-UEConTest | O43: CA_n001A_n003A_n005A_n007B | P43: CA_n007B | R43: v1.0.0
B44: Rel-17 | C44: NR CA FR1 inter-band (5 bands) | D44: 38.101-1:Table 5.5A.3.4-1 | E44: CA_n1A-n3A-n5A-n7B-n78A | F44: - | G44: Pending | H44: PC3 | N44: NR_CADC_NR_LTE_DC_R17-UEConTest | O44: CA_n001A_n003A_n005A_n007B_n078A | P44: _ | R44: v1.4.0
B45: Rel-17 | C45: NR CA FR1 inter-band (5 bands) | D45: 38.101-1:Table 5.5A.3.4-1 | E45: CA_n1A-n3A-n5A-n7B-n78A | F45: CA_n1A-n3A | G45: Pending | H45: PC3 | N45: NR_CADC_NR_LTE_DC_R17-UEConTest | O45: CA_n001A_n003A_n005A_n007B_n078A | P45: CA_n001A_n003A | R45: v1.1.0
B46: Rel-17 | C46: NR CA FR1 inter-band (5 bands) | D46: 38.101-1:Table 5.5A.3.4-1 | E46: CA_n1A-n3A-n5A-n7B-n78A | F46: CA_n1A-n5A | G46: Pending | H46: PC3 | N46: NR_CADC_NR_LTE_DC_R17-UEConTest | O46: CA_n001A_n003A_n005A_n007B_n078A | P46: CA_n001A_n005A | R46: v1.1.0
B47: Rel-17 | C47: NR CA FR1 inter-band (5 bands) | D47: 38.101-1:Table 5.5A.3.4-1 | E47: CA_n1A-n3A-n5A-n7B-n78A | F47: CA_n1A-n7A | G47: Pending | H47: PC3 | N47: NR_CADC_NR_LTE_DC_R17-UEConTest | O47: CA_n001A_n003A_n005A_n007B_n078A | P47: CA_n001A_n007A | R47: v1.1.0
B48: Rel-17 | C48: NR CA FR1 inter-band (5 bands) | D48: 38.101-1:Table 5.5A.3.4-1 | E48: CA_n1A-n3A-n5A-n7B-n78A | F48: CA_n1A-n78A | G48: Pending | H48: PC3 | N48: NR_CADC_NR_LTE_DC_R17-UEConTest | O48: CA_n001A_n003A_n005A_n007B_n078A | P48: CA_n001A_n078A | R48: v1.1.0
B49: Rel-17 | C49: NR CA FR1 inter-band (5 bands) | D49: 38.101-1:Table 5.5A.3.4-1 | E49: CA_n1A-n3A-n5A-n7B-n78A | F49: CA_n3A-n5A | G49: Pending | H49: PC3 | N49: NR_CADC_NR_LTE_DC_R17-UEConTest | O49: CA_n001A_n003A_n005A_n007B_n078A | P49: CA_n003A_n005A | R49: v1.1.0
B50: Rel-17 | C50: NR CA FR1 inter-band (5 bands) | D50: 38.101-1:Table 5.5A.3.4-1 | E50: CA_n1A-n3A-n5A-n7B-n78A | F50: CA_n3A-n7A | G50: Pending | H50: PC3 | N50: NR_CADC_NR_LTE_DC_R17-UEConTest | O50: CA_n001A_n003A_n005A_n007B_n078A | P50: CA_n003A_n007A | R50: v1.1.0
B51: Rel-17 | C51: NR CA FR1 inter-band (5 bands) | D51: 38.101-1:Table 5.5A.3.4-1 | E51: CA_n1A-n3A-n5A-n7B-n78A | F51: CA_n3A-n78A | G51: Pending | H51: PC3 | N51: NR_CADC_NR_LTE_DC_R17-UEConTest | O51: CA_n001A_n003A_n005A_n007B_n078A | P51: CA_n003A_n078A | R51: v1.1.0
B52: Rel-17 | C52: NR CA FR1 inter-band (5 bands) | D52: 38.101-1:Table 5.5A.3.4-1 | E52: CA_n1A-n3A-n5A-n7B-n78A | F52: CA_n5A-n7A | G52: Pending | H52: PC3 | N52: NR_CADC_NR_LTE_DC_R17-UEConTest | O52: CA_n001A_n003A_n005A_n007B_n078A | P52: CA_n005A_n007A | R52: v1.1.0
B53: Rel-17 | C53: NR CA FR1 inter-band (5 bands) | D53: 38.101-1:Table 5.5A.3.4-1 | E53: CA_n1A-n3A-n5A-n7B-n78A | F53: CA_n5A-n78A | G53: Pending | H53: PC3 | N53: NR_CADC_NR_LTE_DC_R17-UEConTest | O53: CA_n001A_n003A_n005A_n007B_n078A | P53: CA_n005A_n078A | R53: v1.1.0
B54: Rel-17 | C54: NR CA FR1 inter-band (5 bands) | D54: 38.101-1:Table 5.5A.3.4-1 | E54: CA_n1A-n3A-n5A-n7B-n78A | F54: CA_n7A-n78A | G54: Pending | H54: PC3 | N54: NR_CADC_NR_LTE_DC_R17-UEConTest | O54: CA_n001A_n003A_n005A_n007B_n078A | P54: CA_n007A_n078A | R54: v1.1.0
B55: Rel-17 | C55: NR CA FR1 inter-band (5 bands) | D55: 38.101-1:Table 5.5A.3.4-1 | E55: CA_n1A-n3A-n5A-n7B-n78A | F55: CA_n7B | G55: Pending | H55: PC3 | N55: NR_CADC_NR_LTE_DC_R17-UEConTest | O55: CA_n001A_n003A_n005A_n007B_n078A | P55: CA_n007B | R55: v1.1.0
B56: Rel-17 | C56: NR CA FR1 inter-band (4 bands) | D56: 38.101-1:Table 5.5A.3.3-1 | E56: CA_n1A-n3A-n5A-n78A | F56: - | G56: Pending | H56: PC3 | N56: NR_CADC_NR_LTE_DC_R17-UEConTest | O56: CA_n001A_n003A_n005A_n078A | P56: _ | R56: v1.0.0
B57: Rel-17 | C57: NR CA FR1 inter-band (4 bands) | D57: 38.101-1:Table 5.5A.3.3-1 | E57: CA_n1A-n3A-n5A-n78A | F57: CA_n1A-n3A | G57: Pending | H57: PC3 | N57: NR_CADC_NR_LTE_DC_R17-UEConTest | O57: CA_n001A_n003A_n005A_n078A | P57: CA_n001A_n003A | R57: v1.0.0
B58: Rel-17 | C58: NR CA FR1 inter-band (4 bands) | D58: 38.101-1:Table 5.5A.3.3-1 | E58: CA_n1A-n3A-n5A-n78A | F58: CA_n1A-n5A | G58: Pending | H58: PC3 | N58: NR_CADC_NR_LTE_DC_R17-UEConTest | O58: CA_n001A_n003A_n005A_n078A | P58: CA_n001A_n005A | R58: v1.0.0
B59: Rel-17 | C59: NR CA FR1 inter-band (4 bands) | D59: 38.101-1:Table 5.5A.3.3-1 | E59: CA_n1A-n3A-n5A-n78A | F59: CA_n1A-n78A | G59: Pending | H59: PC3 | N59: NR_CADC_NR_LTE_DC_R17-UEConTest | O59: CA_n001A_n003A_n005A_n078A | P59: CA_n001A_n078A | R59: v1.0.0
B60: Rel-17 | C60: NR CA FR1 inter-band (4 bands) | D60: 38.101-1:Table 5.5A.3.3-1 | E60: CA_n1A-n3A-n5A-n78A | F60: CA_n3A-n5A | G60: Pending | H60: PC3 | N60: NR_CADC_NR_LTE_DC_R17-UEConTest | O60: CA_n001A_n003A_n005A_n078A | P60: CA_n003A_n005A | R60: v1.0.0
B61: Rel-17 | C61: NR CA FR1 inter-band (4 bands) | D61: 38.101-1:Table 5.5A.3.3-1 | E61: CA_n1A-n3A-n5A-n78A | F61: CA_n3A-n78A | G61: Pending | H61: PC3 | N61: NR_CADC_NR_LTE_DC_R17-UEConTest | O61: CA_n001A_n003A_n005A_n078A | P61: CA_n003A_n078A | R61: v1.0.0
B62: Rel-17 | C62: NR CA FR1 inter-band (4 bands) | D62: 38.101-1:Table 5.5A.3.3-1 | E62: CA_n1A-n3A-n5A-n78A | F62: CA_n5A-n78A | G62: Pending | H62: PC3 | N62: NR_CADC_NR_LTE_DC_R17-UEConTest | O62: CA_n001A_n003A_n005A_n078A | P62: CA_n005A_n078A | R62: v1.0.0
B63: Rel-16 | C63: NR CA FR1 inter-band (3 bands) | D63: 38.101-1:Table 5.5A.3.2-1 | E63: CA_n1A-n3A-n7A | F63: - | G63: Ongoing | H63: PC3 | K63: Orange | M63: RAN5#97 | N63: NR_CADC_NR_LTE_DC_R16-UEConTest | O63: CA_n001A_n003A_n007A | P63: _ | R63: v1.0.0
B64: Rel-17 | C64: NR CA FR1 inter-band (3 bands) | D64: 38.101-1:Table 5.5A.3.2-1 | E64: CA_n1A-n3A-n7A BCS1 | F64: - | G64: Pending | H64: PC3 | N64: NR_CADC_NR_LTE_DC_R17-UEConTest | O64: CA_n001A_n003A_n007A BCS1 | P64: _ | R64: v1.0.0
B65: Rel-17 | C65: NR CA FR1 inter-band (3 bands) | D65: 38.101-1:Table 5.5A.3.2-1 | E65: CA_n1A-n3A-n7A BCS1 | F65: CA_n1A-n3A | G65: Pending | H65: PC3 | N65: NR_CADC_NR_LTE_DC_R17-UEConTest | O65: CA_n001A_n003A_n007A BCS1 | P65: CA_n001A_n003A | R65: v1.0.0
B66: Rel-17 | C66: NR CA FR1 inter-band (3 bands) | D66: 38.101-1:Table 5.5A.3.2-1 | E66: CA_n1A-n3A-n7A BCS1 | F66: CA_n1A-n7A | G66: Pending | H66: PC3 | N66: NR_CADC_NR_LTE_DC_R17-UEConTest | O66: CA_n001A_n003A_n007A BCS1 | P66: CA_n001A_n007A | R66: v1.0.0
B67: Rel-17 | C67: NR CA FR1 inter-band (3 bands) | D67: 38.101-1:Table 5.5A.3.2-1 | E67: CA_n1A-n3A-n7A BCS1 | F67: CA_n3A-n7A | G67: Pending | H67: PC3 | N67: NR_CADC_NR_LTE_DC_R17-UEConTest | O67: CA_n001A_n003A_n007A BCS1 | P67: CA_n003A_n007A | R67: v1.0.0
B68: Rel-17 | C68: NR CA FR1 inter-band (3 bands) | D68: 38.101-1:Table 5.5A.3.2-1 | E68: CA_n1A-n3A-n7A BCS2 | F68: - | G68: Pending | H68: PC3 | N68: NR_CADC_NR_LTE_DC_R17-UEConTest | O68: CA_n001A_n003A_n007A BCS2 | P68: _ | R68: v1.0.0
B69: Rel-17 | C69: NR CA FR1 inter-band (3 bands) | D69: 38.101-1:Table 5.5A.3.2-1 | E69: CA_n1A-n3A-n7A BCS2 | F69: CA_n1A-n3A | G69: Pending | H69: PC3 | N69: NR_CADC_NR_LTE_DC_R17-UEConTest | O69: CA_n001A_n003A_n007A BCS2 | P69: CA_n001A_n003A | R69: v1.0.0
B70: Rel-17 | C70: NR CA FR1 inter-band (3 bands) | D70: 38.101-1:Table 5.5A.3.2-1 | E70: CA_n1A-n3A-n7A BCS2 | F70: CA_n1A-n7A | G70: Pending | H70: PC3 | N70: NR_CADC_NR_LTE_DC_R17-UEConTest | O70: CA_n001A_n003A_n007A BCS2 | P70: CA_n001A_n007A | R70: v1.0.0
B71: Rel-17 | C71: NR CA FR1 inter-band (3 bands) | D71: 38.101-1:Table 5.5A.3.2-1 | E71: CA_n1A-n3A-n7A BCS2 | F71: CA_n3A-n7A | G71: Pending | H71: PC3 | N71: NR_CADC_NR_LTE_DC_R17-UEConTest | O71: CA_n001A_n003A_n007A BCS2 | P71: CA_n003A_n007A | R71: v1.0.0
B72: Rel-16 | C72: NR CA FR1 inter-band (4 bands) | D72: 38.101-1:Table 5.5A.3.3-1 | E72: CA_n1A-n3A-n7A-n28A | F72: - | G72: Ongoing | H72: PC3 | K72: Orange | M72: RAN5#97 | N72: NR_CADC_NR_LTE_DC_R16-UEConTest | O72: CA_n001A_n003A_n007A_n028A | P72: _ | R72: v1.0.0
B73: Rel-17 | C73: NR CA FR1 inter-band (4 bands) | D73: 38.101-1:Table 5.5A.3.3-1 | E73: CA_n1A-n3A-n7A-n28A BCS1 | F73: - | G73: Pending | H73: PC3 | N73: NR_CADC_NR_LTE_DC_R17-UEConTest | O73: CA_n001A_n003A_n007A_n028A BCS1 | P73: _ | R73: v1.0.0
B74: Rel-17 | C74: NR CA FR1 inter-band (4 bands) | D74: 38.101-1:Table 5.5A.3.3-1 | E74: CA_n1A-n3A-n7A-n28A BCS1 | F74: CA_n1A-n3A | G74: Pending | H74: PC3 | N74: NR_CADC_NR_LTE_DC_R17-UEConTest | O74: CA_n001A_n003A_n007A_n028A BCS1 | P74: CA_n001A_n003A | R74: v1.0.0
B75: Rel-17 | C75: NR CA FR1 inter-band (4 bands) | D75: 38.101-1:Table 5.5A.3.3-1 | E75: CA_n1A-n3A-n7A-n28A BCS1 | F75: CA_n1A-n7A | G75: Pending | H75: PC3 | N75: NR_CADC_NR_LTE_DC_R17-UEConTest | O75: CA_n001A_n003A_n007A_n028A BCS1 | P75: CA_n001A_n007A | R75: v1.0.0
B76: Rel-17 | C76: NR CA FR1 inter-band (4 bands) | D76: 38.101-1:Table 5.5A.3.3-1 | E76: CA_n1A-n3A-n7A-n28A BCS1 | F76: CA_n1A-n28A | G76: Pending | H76: PC3 | N76: NR_CADC_NR_LTE_DC_R17-UEConTest | O76: CA_n001A_n003A_n007A_n028A BCS1 | P76: CA_n001A_n028A | R76: v1.0.0
B77: Rel-17 | C77: NR CA FR1 inter-band (4 bands) | D77: 38.101-1:Table 5.5A.3.3-1 | E77: CA_n1A-n3A-n7A-n28A BCS1 | F77: CA_n3A-n7A | G77: Pending | H77: PC3 | N77: NR_CADC_NR_LTE_DC_R17-UEConTest | O77: CA_n001A_n003A_n007A_n028A BCS1 | P77: CA_n003A_n007A | R77: v1.0.0
B78: Rel-17 | C78: NR CA FR1 inter-band (4 bands) | D78: 38.101-1:Table 5.5A.3.3-1 | E78: CA_n1A-n3A-n7A-n28A BCS1 | F78: CA_n3A-n28A | G78: Pending | H78: PC3 | N78: NR_CADC_NR_LTE_DC_R17-UEConTest | O78: CA_n001A_n003A_n007A_n028A BCS1 | P78: CA_n003A_n028A | R78: v1.0.0
B79: Rel-17 | C79: NR CA FR1 inter-band (4 bands) | D79: 38.101-1:Table 5.5A.3.3-1 | E79: CA_n1A-n3A-n7A-n28A BCS1 | F79: CA_n7A-n28A | G79: Pending | H79: PC3 | N79: NR_CADC_NR_LTE_DC_R17-UEConTest | O79: CA_n001A_n003A_n007A_n028A BCS1 | P79: CA_n007A_n028A | R79: v1.0.0
B80: Rel-17 | C80: NR CA FR1 inter-band (5 bands) | D80: 38.101-1:Table 5.5A.3.4-1 | E80: CA_n1A-n3A-n7A-n28A-n78A | F80: - | G80: Ongoing | H80: PC3 | K80: Orange | L80: Nokia (Tuomo Saynajakangas) | M80: RAN5#97,RAN5#98 | N80: NR_CADC_NR_LTE_DC_R17-UEConTest | O80: CA_n001A_n003A_n007A_n028A_n078A | P80: _ | R80: v1.1.0
B81: Rel-17 | C81: NR CA FR1 inter-band (5 bands) | D81: 38.101-1:Table 5.5A.3.4-1 | E81: CA_n1A-n3A-n7A-n28A-n78A BCS1 | F81: - | G81: Pending | H81: PC3 | N81: NR_CADC_NR_LTE_DC_R17-UEConTest | O81: CA_n001A_n003A_n007A_n028A_n078A BCS1 | P81: _ | R81: v1.4.0
B82: Rel-17 | C82: NR CA FR1 inter-band (5 bands) | D82: 38.101-1:Table 5.5A.3.4-1 | E82: CA_n1A-n3A-n7A-n28A-n78A BCS1 | F82: CA_n1A-n3A | G82: Pending | H82: PC3 | N82: NR_CADC_NR_LTE_DC_R17-UEConTest | O82: CA_n001A_n003A_n007A_n028A_n078A BCS1 | P82: CA_n001A_n003A | R82: v1.1.0
B83: Rel-17 | C83: NR CA FR1 inter-band (5 bands) | D83: 38.101-1:Table 5.5A.3.4-1 | E83: CA_n1A-n3A-n7A-n28A-n78A BCS1 | F83: CA_n1A-n7A | G83: Pending | H83: PC3 | N83: NR_CADC_NR_LTE_DC_R17-UEConTest | O83: CA_n001A_n003A_n007A_n028A_n078A BCS1 | P83: CA_n001A_n007A | R83: v1.1.0
B84: Rel-17 | C84: NR CA FR1 inter-band (5 bands) | D84: 38.101-1:Table 5.5A.3.4-1 | E84: CA_n1A-n3A-n7A-n28A-n78A BCS1 | F84: CA_n1A-n28A | G84: Pending | H84: PC3 | N84: NR_CADC_NR_LTE_DC_R17-UEConTest | O84: CA_n001A_n003A_n007A_n028A_n078A BCS1 | P84: CA_n001A_n028A | R84: v1.1.0
B85: Rel-17 | C85: NR CA FR1 inter-band (5 bands) | D85: 38.101-1:Table 5.5A.3.4-1 | E85: CA_n1A-n3A-n7A-n28A-n78A BCS1 | F85: CA_n1A-n78A | G85: Pending | H85: PC3 | N85: NR_CADC_NR_LTE_DC_R17-UEConTest | O85: CA_n001A_n003A_n007A_n028A_n078A BCS1 | P85: CA_n001A_n078A | R85: v1.1.0
B86: Rel-17 | C86: NR CA FR1 inter-band (5 bands) | D86: 38.101-1:Table 5.5A.3.4-1 | E86: CA_n1A-n3A-n7A-n28A-n78A BCS1 | F86: CA_n3A-n7A | G86: Pending | H86: PC3 | N86: NR_CADC_NR_LTE_DC_R17-UEConTest | O86: CA_n001A_n003A_n007A_n028A_n078A BCS1 | P86: CA_n003A_n007A | R86: v1.1.0
B87: Rel-17 | C87: NR CA FR1 inter-band (5 bands) | D87: 38.101-1:Table 5.5A.3.4-1 | E87: CA_n1A-n3A-n7A-n28A-n78A BCS1 | F87: CA_n3A-n28A | G87: Pending | H87: PC3 | N87: NR_CADC_NR_LTE_DC_R17-UEConTest | O87: CA_n001A_n003A_n007A_n028A_n078A BCS1 | P87: CA_n003A_n028A | R87: v1.1.0
B88: Rel-17 | C88: NR CA FR1 inter-band (5 bands) | D88: 38.101-1:Table 5.5A.3.4-1 | E88: CA_n1A-n3A-n7A-n28A-n78A BCS1 | F88: CA_n3A-n78A | G88: Pending | H88: PC3 | N88: NR_CADC_NR_LTE_DC_R17-UEConTest | O88: CA_n001A_n003A_n007A_n028A_n078A BCS1 | P88: CA_n003A_n078A | R88: v1.1.0
B89: Rel-17 | C89: NR CA FR1 inter-band (5 bands) | D89: 38.101-1:Table 5.5A.3.4-1 | E89: CA_n1A-n3A-n7A-n28A-n78A BCS1 | F89: CA_n7A-n28A | G89: Pending | H89: PC3 | N89: NR_CADC_NR_LTE_DC_R17-UEConTest | O89: CA_n001A_n003A_n007A_n028A_n078A BCS1 | P89: CA_n007A_n028A | R89: v1.1.0
B90: Rel-17 | C90: NR CA FR1 inter-band (5 bands) | D90: 38.101-1:Table 5.5A.3.4-1 | E90: CA_n1A-n3A-n7A-n28A-n78A BCS1 | F90: CA_n7A-n78A | G90: Pending | H90: PC3 | N90: NR_CADC_NR_LTE_DC_R17-UEConTest | O90: CA_n001A_n003A_n007A_n028A_n078A BCS1 | P90: CA_n007A_n078A | R90: v1.1.0
B91: Rel-17 | C91: NR CA FR1 inter-band (5 bands) | D91: 38.101-1:Table 5.5A.3.4-1 | E91: CA_n1A-n3A-n7A-n28A-n78A BCS1 | F91: CA_n28A-n78A | G91: Pending | H91: PC3 | N91: NR_CADC_NR_LTE_DC_R17-UEConTest | O91: CA_n001A_n003A_n007A_n028A_n078A BCS1 | P91: CA_n028A_n078A | R91: v1.1.0
B92: Rel-17 | C92: NR CA FR1 inter-band (5 bands) | D92: 38.101-1:Table 5.5A.3.4-1 | E92: CA_n1A-n3A-n7A-n28A-n78(2A) | F92: - | G92: Pending | H92: PC3 | N92: NR_CADC_NR_LTE_DC_R17-UEConTest | O92: CA_n001A_n003A_n007A_n028A_n078z2Az | P92: _ | R92: v1.4.0
B93: Rel-17 | C93: NR CA FR1 inter-band (5 bands) | D93: 38.101-1:Table 5.5A.3.4-1 | E93: CA_n1A-n3A-n7A-n28A-n78(2A) | F93: CA_n1A-n3A | G93: Pending | H93: PC3 | N93: NR_CADC_NR_LTE_DC_R17-UEConTest | O93: CA_n001A_n003A_n007A_n028A_n078z2Az | P93: CA_n001A_n003A | R93: v1.1.0
B94: Rel-17 | C94: NR CA FR1 inter-band (5 bands) | D94: 38.101-1:Table 5.5A.3.4-1 | E94: CA_n1A-n3A-n7A-n28A-n78(2A) | F94: CA_n1A-n7A | G94: Pending | H94: PC3 | N94: NR_CADC_NR_LTE_DC_R17-UEConTest | O94: CA_n001A_n003A_n007A_n028A_n078z2Az | P94: CA_n001A_n007A | R94: v1.1.0
B95: Rel-17 | C95: NR CA FR1 inter-band (5 bands) | D95: 38.101-1:Table 5.5A.3.4-1 | E95: CA_n1A-n3A-n7A-n28A-n78(2A) | F95: CA_n1A-n28A | G95: Pending | H95: PC3 | N95: NR_CADC_NR_LTE_DC_R17-UEConTest | O95: CA_n001A_n003A_n007A_n028A_n078z2Az | P95: CA_n001A_n028A | R95: v1.1.0
B96: Rel-17 | C96: NR CA FR1 inter-band (5 bands) | D96: 38.101-1:Table 5.5A.3.4-1 | E96: CA_n1A-n3A-n7A-n28A-n78(2A) | F96: CA_n1A-n78A | G96: Pending | H96: PC3 | N96: NR_CADC_NR_LTE_DC_R17-UEConTest | O96: CA_n001A_n003A_n007A_n028A_n078z2Az | P96: CA_n001A_n078A | R96: v1.1.0
B97: Rel-17 | C97: NR CA FR1 inter-band (5 bands) | D97: 38.101-1:Table 5.5A.3.4-1 | E97: CA_n1A-n3A-n7A-n28A-n78(2A) | F97: CA_n3A-n7A | G97: Pending | H97: PC3 | N97: NR_CADC_NR_LTE_DC_R17-UEConTest | O97: CA_n001A_n003A_n007A_n028A_n078z2Az | P97: CA_n003A_n007A | R97: v1.1.0
B98: Rel-17 | C98: NR CA FR1 inter-band (5 bands) | D98: 38.101-1:Table 5.5A.3.4-1 | E98: CA_n1A-n3A-n7A-n28A-n78(2A) | F98: CA_n3A-n28A | G98: Pending | H98: PC3 | N98: NR_CADC_NR_LTE_DC_R17-UEConTest | O98: CA_n001A_n003A_n007A_n028A_n078z2Az | P98: CA_n003A_n028A | R98: v1.1.0
B99: Rel-17 | C99: NR CA FR1 inter-band (5 bands) | D99: 38.101-1:Table 5.5A.3.4-1 | E99: CA_n1A-n3A-n7A-n28A-n78(2A) | F99: CA_n3A-n78A | G99: Pending | H99: PC3 | N99: NR_CADC_NR_LTE_DC_R17-UEConTest | O99: CA_n001A_n003A_n007A_n028A_n078z2Az | P99: CA_n003A_n078A | R99: v1.1.0
B100: Rel-17 | C100: NR CA FR1 inter-band (5 bands) | D100: 38.101-1:Table 5.5A.3.4-1 | E100: CA_n1A-n3A-n7A-n28A-n78(2A) | F100: CA_n7A-n28A | G100: Pending | H100: PC3 | N100: NR_CADC_NR_LTE_DC_R17-UEConTest | O100: CA_n001A_n003A_n007A_n028A_n078z2Az | P100: CA_n007A_n028A | R100: v1.1.0
B101: Rel-17 | C101: NR CA FR1 inter-band (5 bands) | D101: 38.101-1:Table 5.5A.3.4-1 | E101: CA_n1A-n3A-n7A-n28A-n78(2A) | F101: CA_n7A-n78A | G101: Pending | H101: PC3 | N101: NR_CADC_NR_LTE_DC_R17-UEConTest | O101: CA_n001A_n003A_n007A_n028A_n078z2Az | P101: CA_n007A_n078A | R101: v1.1.0
B102: Rel-17 | C102: NR CA FR1 inter-band (5 bands) | D102: 38.101-1:Table 5.5A.3.4-1 | E102: CA_n1A-n3A-n7A-n28A-n78(2A) | F102: CA_n28A-n78A | G102: Pending | H102: PC3 | N102: NR_CADC_NR_LTE_DC_R17-UEConTest | O102: CA_n001A_n003A_n007A_n028A_n078z2Az | P102: CA_n028A_n078A | R102: v1.1.0
B103: Rel-16 | C103: NR CA FR1 inter-band (4 bands) | D103: 38.101-1:Table 5.5A.3.3-1 | E103: CA_n1A-n3A-n7A-n78A | F103: - | G103: Ongoing | H103: PC3 | K103: Orange | M103: RAN5#97 | N103: NR_CADC_NR_LTE_DC_R16-UEConTest | O103: CA_n001A_n003A_n007A_n078A | P103: _ | R103: v1.0.0
B104: Rel-17 | C104: NR CA FR1 inter-band (4 bands) | D104: 38.101-1:Table 5.5A.3.3-1 | E104: CA_n1A-n3A-n7A-n78A BCS1 | F104: - | G104: Pending | H104: PC3 | N104: NR_CADC_NR_LTE_DC_R17-UEConTest | O104: CA_n001A_n003A_n007A_n078A BCS1 | P104: _ | R104: v1.0.0
B105: Rel-17 | C105: NR CA FR1 inter-band (4 bands) | D105: 38.101-1:Table 5.5A.3.3-1 | E105: CA_n1A-n3A-n7A-n78A BCS1 | F105: CA_n1A-n3A | G105: Pending | H105: PC3 | N105: NR_CADC_NR_LTE_DC_R17-UEConTest | O105: CA_n001A_n003A_n007A_n078A BCS1 | P105: CA_n001A_n003A | R105: v1.0.0
B106: Rel-17 | C106: NR CA FR1 inter-band (4 bands) | D106: 38.101-1:Table 5.5A.3.3-1 | E106: CA_n1A-n3A-n7A-n78A BCS1 | F106: CA_n1A-n7A | G106: Pending | H106: PC3 | N106: NR_CADC_NR_LTE_DC_R17-UEConTest | O106: CA_n001A_n003A_n007A_n078A BCS1 | P106: CA_n001A_n007A | R106: v1.0.0
B107: Rel-17 | C107: NR CA FR1 inter-band (4 bands) | D107: 38.101-1:Table 5.5A.3.3-1 | E107: CA_n1A-n3A-n7A-n78A BCS1 | F107: CA_n1A-n78A | G107: Pending | H107: PC3 | N107: NR_CADC_NR_LTE_DC_R17-UEConTest | O107: CA_n001A_n003A_n007A_n078A BCS1 | P107: CA_n001A_n078A | R107: v1.0.0
B108: Rel-17 | C108: NR CA FR1 inter-band (4 bands) | D108: 38.101-1:Table 5.5A.3.3-1 | E108: CA_n1A-n3A-n7A-n78A BCS1 | F108: CA_n3A-n7A | G108: Pending | H108: PC3 | N108: NR_CADC_NR_LTE_DC_R17-UEConTest | O108: CA_n001A_n003A_n007A_n078A BCS1 | P108: CA_n003A_n007A | R108: v1.0.0
B109: Rel-17 | C109: NR CA FR1 inter-band (4 bands) | D109: 38.101-1:Table 5.5A.3.3-1 | E109: CA_n1A-n3A-n7A-n78A BCS1 | F109: CA_n3A-n78A | G109: Pending | H109: PC3 | N109: NR_CADC_NR_LTE_DC_R17-UEConTest | O109: CA_n001A_n003A_n007A_n078A BCS1 | P109: CA_n003A_n078A | R109: v1.0.0
B110: Rel-17 | C110: NR CA FR1 inter-band (4 bands) | D110: 38.101-1:Table 5.5A.3.3-1 | E110: CA_n1A-n3A-n7A-n78A BCS1 | F110: CA_n7A-n78A | G110: Pending | H110: PC3 | N110: NR_CADC_NR_LTE_DC_R17-UEConTest | O110: CA_n001A_n003A_n007A_n078A BCS1 | P110: CA_n007A_n078A | R110: v1.0.0
B111: Rel-17 | C111: NR CA FR1 inter-band (4 bands) | D111: 38.101-1:Table 5.5A.3.3-1 | E111: CA_n1A-n3A-n7A-n78A BCS2 | F111: - | G111: Pending | H111: PC3 | N111: NR_CADC_NR_LTE_DC_R17-UEConTest | O111: CA_n001A_n003A_n007A_n078A BCS2 | P111: _ | R111: v1.0.0
B112: Rel-17 | C112: NR CA FR1 inter-band (4 bands) | D112: 38.101-1:Table 5.5A.3.3-1 | E112: CA_n1A-n3A-n7A-n78A BCS2 | F112: CA_n1A-n3A | G112: Pending | H112: PC3 | N112: NR_CADC_NR_LTE_DC_R17-UEConTest | O112: CA_n001A_n003A_n007A_n078A BCS2 | P112: CA_n001A_n003A | R112: v1.0.0
B113: Rel-17 | C113: NR CA FR1 inter-band (4 bands) | D113: 38.101-1:Table 5.5A.3.3-1 | E113: CA_n1A-n3A-n7A-n78A BCS2 | F113: CA_n1A-n7A | G113: Pending | H113: PC3 | N113: NR_CADC_NR_LTE_DC_R17-UEConTest | O113: CA_n001A_n003A_n007A_n078A BCS2 | P113: CA_n001A_n007A | R113: v1.0.0
B114: Rel-17 | C114: NR CA FR1 inter-band (4 bands) | D114: 38.101-1:Table 5.5A.3.3-1 | E114: CA_n1A-n3A-n7A-n78A BCS2 | F114: CA_n1A-n78A | G114: Pending | H114: PC3 | N114: NR_CADC_NR_LTE_DC_R17-UEConTest | O114: CA_n001A_n003A_n007A_n078A BCS2 | P114: CA_n001A_n078A | R114: v1.0.0
B115: Rel-17 | C115: NR CA FR1 inter-band (4 bands) | D115: 38.101-1:Table 5.5A.3.3-1 | E115: CA_n1A-n3A-n7A-n78A BCS2 | F115: CA_n3A-n7A | G115: Pending | H115: PC3 | N115: NR_CADC_NR_LTE_DC_R17-UEConTest | O115: CA_n001A_n003A_n007A_n078A BCS2 | P115: CA_n003A_n007A | R115: v1.0.0
B116: Rel-17 | C116: NR CA FR1 inter-band (4 bands) | D116: 38.101-1:Table 5.5A.3.3-1 | E116: CA_n1A-n3A-n7A-n78A BCS2 | F116: CA_n3A-n78A | G116: Pending | H116: PC3 | N116: NR_CADC_NR_LTE_DC_R17-UEConTest | O116: CA_n001A_n003A_n007A_n078A BCS2 | P116: CA_n003A_n078A | R116: v1.0.0
B117: Rel-17 | C117: NR CA FR1 inter-band (4 bands) | D117: 38.101-1:Table 5.5A.3.3-1 | E117: CA_n1A-n3A-n7A-n78A BCS2 | F117: CA_n7A-n78A | G117: Pending | H117: PC3 | N117: NR_CADC_NR_LTE_DC_R17-UEConTest | O117: CA_n001A_n003A_n007A_n078A BCS2 | P117: CA_n007A_n078A | R117: v1.0.0
B118: Rel-17 | C118: NR CA FR1 inter-band (4 bands) | D118: 38.101-1:Table 5.5A.3.3-1 | E118: CA_n1A-n3A-n7A-n78(2A) | F118: - | G118: Pending | H118: PC3 | N118: NR_CADC_NR_LTE_DC_R17-UEConTest | O118: CA_n001A_n003A_n007A_n078z2Az | P118: _ | R118: v1.0.0
B119: Rel-17 | C119: NR CA FR1 inter-band (4 bands) | D119: 38.101-1:Table 5.5A.3.3-1 | E119: CA_n1A-n3A-n7A-n78(2A) | F119: CA_n1A-n3A | G119: Pending | H119: PC3 | N119: NR_CADC_NR_LTE_DC_R17-UEConTest | O119: CA_n001A_n003A_n007A_n078z2Az | P119: CA_n001A_n003A | R119: v1.0.0
B120: Rel-17 | C120: NR CA FR1 inter-band (4 bands) | D120: 38.101-1:Table 5.5A.3.3-1 | E120: CA_n1A-n3A-n7A-n78(2A) | F120: CA_n1A-n7A | G120: Pending | H120: PC3 | N120: NR_CADC_NR_LTE_DC_R17-UEConTest | O120: CA_n001A_n003A_n007A_n078z2Az | P120: CA_n001A_n007A | R120: v1.0.0
B121: Rel-17 | C121: NR CA FR1 inter-band (4 bands) | D121: 38.101-1:Table 5.5A.3.3-1 | E121: CA_n1A-n3A-n7A-n78(2A) | F121: CA_n1A-n78A | G121: Pending | H121: PC3 | N121: NR_CADC_NR_LTE_DC_R17-UEConTest | O121: CA_n001A_n003A_n007A_n078z2Az | P121: CA_n001A_n078A | R121: v1.0.0
B122: Rel-17 | C122: NR CA FR1 inter-band (4 bands) | D122: 38.101-1:Table 5.5A.3.3-1 | E122: CA_n1A-n3A-n7A-n78(2A) | F122: CA_n3A-n7A | G122: Pending | H122: PC3 | N122: NR_CADC_NR_LTE_DC_R17-UEConTest | O122: CA_n001A_n003A_n007A_n078z2Az | P122: CA_n003A_n007A | R122: v1.0.0
B123: Rel-17 | C123: NR CA FR1 inter-band (4 bands) | D123: 38.101-1:Table 5.5A.3.3-1 | E123: CA_n1A-n3A-n7A-n78(2A) | F123: CA_n3A-n78A | G123: Pending | H123: PC3 | N123: NR_CADC_NR_LTE_DC_R17-UEConTest | O123: CA_n001A_n003A_n007A_n078z2Az | P123: CA_n003A_n078A | R123: v1.0.0
B124: Rel-17 | C124: NR CA FR1 inter-band (4 bands) | D124: 38.101-1:Table 5.5A.3.3-1 | E124: CA_n1A-n3A-n7A-n78(2A) | F124: CA_n7A-n78A | G124: Pending | H124: PC3 | N124: NR_CADC_NR_LTE_DC_R17-UEConTest | O124: CA_n001A_n003A_n007A_n078z2Az | P124: CA_n007A_n078A | R124: v1.0.0
B125: Rel-16 | C125: NR CA FR1 inter-band (3 bands) | D125: 38.101-1:Table 5.5A.3.2-1 | E125: CA_n1A-n3A-n7B | F125: - | G125: Ongoing | H125: PC3 | K125: Orange | M125: RAN5#97 | N125: NR_CADC_NR_LTE_DC_R16-UEConTest | O125: CA_n001A_n003A_n007B | P125: _ | R125: v1.0.0
B126: Rel-17 | C126: NR CA FR1 inter-band (3 bands) | D126: 38.101-1:Table 5.5A.3.2-1 | E126: CA_n1A-n3A-n7B BCS1 | F126: - | G126: Pending | H126: PC3 | N126: NR_CADC_NR_LTE_DC_R17-UEConTest | O126: CA_n001A_n003A_n007B BCS1 | P126: _ | R126: v1.0.0
B127: Rel-17 | C127: NR CA FR1 inter-band (3 bands) | D127: 38.101-1:Table 5.5A.3.2-1 | E127: CA_n1A-n3A-n7B BCS1 | F127: CA_n1A-n3A | G127: Pending | H127: PC3 | N127: NR_CADC_NR_LTE_DC_R17-UEConTest | O127: CA_n001A_n003A_n007B BCS1 | P127: CA_n001A_n003A | R127: v1.0.0
B128: Rel-17 | C128: NR CA FR1 inter-band (3 bands) | D128: 38.101-1:Table 5.5A.3.2-1 | E128: CA_n1A-n3A-n7B BCS1 | F128: CA_n1A-n7A | G128: Pending | H128: PC3 | N128: NR_CADC_NR_LTE_DC_R17-UEConTest | O128: CA_n001A_n003A_n007B BCS1 | P128: CA_n001A_n007A | R128: v1.0.0
B129: Rel-17 | C129: NR CA FR1 inter-band (3 bands) | D129: 38.101-1:Table 5.5A.3.2-1 | E129: CA_n1A-n3A-n7B BCS1 | F129: CA_n3A-n7A | G129: Pending | H129: PC3 | N129: NR_CADC_NR_LTE_DC_R17-UEConTest | O129: CA_n001A_n003A_n007B BCS1 | P129: CA_n003A_n007A | R129: v1.0.0
B130: Rel-17 | C130: NR CA FR1 inter-band (3 bands) | D130: 38.101-1:Table 5.5A.3.2-1 | E130: CA_n1A-n3A-n7B BCS1 | F130: CA_n7B | G130: Pending | H130: PC3 | N130: NR_CADC_NR_LTE_DC_R17-UEConTest | O130: CA_n001A_n003A_n007B BCS1 | P130: CA_n007B | R130: v1.0.0
B131: Rel-16 | C131: NR CA FR1 inter-band (4 bands) | D131: 38.101-1:Table 5.5A.3.3-1 | E131: CA_n1A-n3A-n7B-n28A | F131: - | G131: Pending | H131: PC3 | N131: NR_CADC_NR_LTE_DC_R16-UEConTest | O131: CA_n001A_n003A_n007B_n028A | P131: _ | R131: v1.0.0
B132: Rel-17 | C132: NR CA FR1 inter-band (4 bands) | D132: 38.101-1:Table 5.5A.3.3-1 | E132: CA_n1A-n3A-n7B-n28A BCS1 | F132: - | G132: Pending | H132: PC3 | N132: NR_CADC_NR_LTE_DC_R17-UEConTest | O132: CA_n001A_n003A_n007B_n028A BCS1 | P132: _ | R132: v1.1.0
B133: Rel-17 | C133: NR CA FR1 inter-band (4 bands) | D133: 38.101-1:Table 5.5A.3.3-1 | E133: CA_n1A-n3A-n7B-n28A BCS1 | F133: CA_n1A-n3A | G133: Pending | H133: PC3 | N133: NR_CADC_NR_LTE_DC_R17-UEConTest | O133: CA_n001A_n003A_n007B_n028A BCS1 | P133: CA_n001A_n003A | R133: v1.1.0
B134: Rel-17 | C134: NR CA FR1 inter-band (4 bands) | D134: 38.101-1:Table 5.5A.3.3-1 | E134: CA_n1A-n3A-n7B-n28A BCS1 | F134: CA_n1A-n7A | G134: Pending | H134: PC3 | N134: NR_CADC_NR_LTE_DC_R17-UEConTest | O134: CA_n001A_n003A_n007B_n028A BCS1 | P134: CA_n001A_n007A | R134: v1.1.0
B135: Rel-17 | C135: NR CA FR1 inter-band (4 bands) | D135: 38.101-1:Table 5.5A.3.3-1 | E135: CA_n1A-n3A-n7B-n28A BCS1 | F135: CA_n1A-n28A | G135: Pending | H135: PC3 | N135: NR_CADC_NR_LTE_DC_R17-UEConTest | O135: CA_n001A_n003A_n007B_n028A BCS1 | P135: CA_n001A_n028A | R135: v1.1.0
B136: Rel-17 | C136: NR CA FR1 inter-band (4 bands) | D136: 38.101-1:Table 5.5A.3.3-1 | E136: CA_n1A-n3A-n7B-n28A BCS1 | F136: CA_n3A-n7A | G136: Pending | H136: PC3 | N136: NR_CADC_NR_LTE_DC_R17-UEConTest | O136: CA_n001A_n003A_n007B_n028A BCS1 | P136: CA_n003A_n007A | R136: v1.1.0
B137: Rel-17 | C137: NR CA FR1 inter-band (4 bands) | D137: 38.101-1:Table 5.5A.3.3-1 | E137: CA_n1A-n3A-n7B-n28A BCS1 | F137: CA_n3A-n28A | G137: Pending | H137: PC3 | N137: NR_CADC_NR_LTE_DC_R17-UEConTest | O137: CA_n001A_n003A_n007B_n028A BCS1 | P137: CA_n003A_n028A | R137: v1.1.0
B138: Rel-17 | C138: NR CA FR1 inter-band (4 bands) | D138: 38.101-1:Table 5.5A.3.3-1 | E138: CA_n1A-n3A-n7B-n28A BCS1 | F138: CA_n7A-n28A | G138: Pending | H138: PC3 | N138: NR_CADC_NR_LTE_DC_R17-UEConTest | O138: CA_n001A_n003A_n007B_n028A BCS1 | P138: CA_n007A_n028A | R138: v1.1.0
B139: Rel-17 | C139: NR CA FR1 inter-band (4 bands) | D139: 38.101-1:Table 5.5A.3.3-1 | E139: CA_n1A-n3A-n7B-n28A BCS1 | F139: CA_n7B | G139: Pending | H139: PC3 | N139: NR_CADC_NR_LTE_DC_R17-UEConTest | O139: CA_n001A_n003A_n007B_n028A BCS1 | P139: CA_n007B | R139: v1.1.0
B140: Rel-17 | C140: NR CA FR1 inter-band (5 bands) | D140: 38.101-1:Table 5.5A.3.4-1 | E140: CA_n1A-n3A-n7B-n28A-n78A | F140: - | G140: Pending | H140: PC3 | N140: NR_CADC_NR_LTE_DC_R17-UEConTest | O140: CA_n001A_n003A_n007B_n028A_n078A | P140: _ | R140: v1.4.0
B141: Rel-17 | C141: NR CA FR1 inter-band (5 bands) | D141: 38.101-1:Table 5.5A.3.4-1 | E141: CA_n1A-n3A-n7B-n28A-n78A | F141: CA_n1A-n3A | G141: Pending | H141: PC3 | N141: NR_CADC_NR_LTE_DC_R17-UEConTest | O141: CA_n001A_n003A_n007B_n028A_n078A | P141: CA_n001A_n003A | R141: v1.1.0
B142: Rel-17 | C142: NR CA FR1 inter-band (5 bands) | D142: 38.101-1:Table 5.5A.3.4-1 | E142: CA_n1A-n3A-n7B-n28A-n78A | F142: CA_n1A-n7A | G142: Pending | H142: PC3 | N142: NR_CADC_NR_LTE_DC_R17-UEConTest | O142: CA_n001A_n003A_n007B_n028A_n078A | P142: CA_n001A_n007A | R142: v1.1.0
B143: Rel-17 | C143: NR CA FR1 inter-band (5 bands) | D143: 38.101-1:Table 5.5A.3.4-1 | E143: CA_n1A-n3A-n7B-n28A-n78A | F143: CA_n1A-n28A | G143: Pending | H143: PC3 | N143: NR_CADC_NR_LTE_DC_R17-UEConTest | O143: CA_n001A_n003A_n007B_n028A_n078A | P143: CA_n001A_n028A | R143: v1.1.0
B144: Rel-17 | C144: NR CA FR1 inter-band (5 bands) | D144: 38.101-1:Table 5.5A.3.4-1 | E144: CA_n1A-n3A-n7B-n28A-n78A | F144: CA_n1A-n78A | G144: Pending | H144: PC3 | N144: NR_CADC_NR_LTE_DC_R17-UEConTest | O144: CA_n001A_n003A_n007B_n028A_n078A | P144: CA_n001A_n078A | R144: v1.1.0
B145: Rel-17 | C145: NR CA FR1 inter-band (5 bands) | D145: 38.101-1:Table 5.5A.3.4-1 | E145: CA_n1A-n3A-n7B-n28A-n78A | F145: CA_n3A-n7A | G145: Pending | H145: PC3 | N145: NR_CADC_NR_LTE_DC_R17-UEConTest | O145: CA_n001A_n003A_n007B_n028A_n078A | P145: CA_n003A_n007A | R145: v1.1.0
B146: Rel-17 | C146: NR CA FR1 inter-band (5 bands) | D146: 38.101-1:Table 5.5A.3.4-1 | E146: CA_n1A-n3A-n7B-n28A-n78A | F146: CA_n3A-n28A | G146: Pending | H146: PC3 | N146: NR_CADC_NR_LTE_DC_R17-UEConTest | O146: CA_n001A_n003A_n007B_n028A_n078A | P146: CA_n003A_n028A | R146: v1.1.0
B147: Rel-17 | C147: NR CA FR1 inter-band (5 bands) | D147: 38.101-1:Table 5.5A.3.4-1 | E147: CA_n1A-n3A-n7B-n28A-n78A | F147: CA_n3A-n78A | G147: Pending | H147: PC3 | N147: NR_CADC_NR_LTE_DC_R17-UEConTest | O147: CA_n001A_n003A_n007B_n028A_n078A | P147: CA_n003A_n078A | R147: v1.1.0
B148: Rel-17 | C148: NR CA FR1 inter-band (5 bands) | D148: 38.101-1:Table 5.5A.3.4-1 | E148: CA_n1A-n3A-n7B-n28A-n78A | F148: CA_n7A-n28A | G148: Pending | H148: PC3 | N148: NR_CADC_NR_LTE_DC_R17-UEConTest | O148: CA_n001A_n003A_n007B_n028A_n078A | P148: CA_n007A_n028A | R148: v1.1.0
B149: Rel-17 | C149: NR CA FR1 inter-band (5 bands) | D149: 38.101-1:Table 5.5A.3.4-1 | E149: CA_n1A-n3A-n7B-n28A-n78A | F149: CA_n7A-n78A | G149: Pending | H149: PC3 | N149: NR_CADC_NR_LTE_DC_R17-UEConTest | O149: CA_n001A_n003A_n007B_n028A_n078A | P149: CA_n007A_n078A | R149: v1.1.0
B150: Rel-17 | C150: NR CA FR1 inter-band (5 bands) | D150: 38.101-1:Table 5.5A.3.4-1 | E150: CA_n1A-n3A-n7B-n28A-n78A | F150: CA_n7B | G150: Pending | H150: PC3 | N150: NR_CADC_NR_LTE_DC_R17-UEConTest | O150: CA_n001A_n003A_n007B_n028A_n078A | P150: CA_n007B | R150: v1.1.0
B151: Rel-17 | C151: NR CA FR1 inter-band (5 bands) | D151: 38.101-1:Table 5.5A.3.4-1 | E151: CA_n1A-n3A-n7B-n28A-n78A | F151: CA_n28A-n78A | G151: Pending | H151: PC3 | N151: NR_CADC_NR_LTE_DC_R17-UEConTest | O151: CA_n001A_n003A_n007B_n028A_n078A | P151: CA_n028A_n078A | R151: v1.1.0
B152: Rel-16 | C152: NR CA FR1 inter-band (4 bands) | D152: 38.101-1:Table 5.5A.3.3-1 | E152: CA_n1A-n3A-n7B-n78A | F152: - | G152: Ongoing | H152: PC3 | K152: Orange | M152: RAN5#97 | N152: NR_CADC_NR_LTE_DC_R16-UEConTest | O152: CA_n001A_n003A_n007B_n078A | P152: _ | R152: v1.0.0
B153: Rel-17 | C153: NR CA FR1 inter-band (4 bands) | D153: 38.101-1:Table 5.5A.3.3-1 | E153: CA_n1A-n3A-n7B-n78A BCS1 | F153: - | G153: Pending | H153: PC3 | N153: NR_CADC_NR_LTE_DC_R17-UEConTest | O153: CA_n001A_n003A_n007B_n078A BCS1 | P153: _ | R153: v1.0.0
B154: Rel-17 | C154: NR CA FR1 inter-band (4 bands) | D154: 38.101-1:Table 5.5A.3.3-1 | E154: CA_n1A-n3A-n7B-n78A BCS1 | F154: CA_n1A-n3A | G154: Pending | H154: PC3 | N154: NR_CADC_NR_LTE_DC_R17-UEConTest | O154: CA_n001A_n003A_n007B_n078A BCS1 | P154: CA_n001A_n003A | R154: v1.0.0
B155: Rel-17 | C155: NR CA FR1 inter-band (4 bands) | D155: 38.101-1:Table 5.5A.3.3-1 | E155: CA_n1A-n3A-n7B-n78A BCS1 | F155: CA_n1A-n7A | G155: Pending | H155: PC3 | N155: NR_CADC_NR_LTE_DC_R17-UEConTest | O155: CA_n001A_n003A_n007B_n078A BCS1 | P155: CA_n001A_n007A | R155: v1.0.0
B156: Rel-17 | C156: NR CA FR1 inter-band (4 bands) | D156: 38.101-1:Table 5.5A.3.3-1 | E156: CA_n1A-n3A-n7B-n78A BCS1 | F156: CA_n1A-n78A | G156: Pending | H156: PC3 | N156: NR_CADC_NR_LTE_DC_R17-UEConTest | O156: CA_n001A_n003A_n007B_n078A BCS1 | P156: CA_n001A_n078A | R156: v1.0.0
B157: Rel-17 | C157: NR CA FR1 inter-band (4 bands) | D157: 38.101-1:Table 5.5A.3.3-1 | E157: CA_n1A-n3A-n7B-n78A BCS1 | F157: CA_n3A-n7A | G157: Pending | H157: PC3 | N157: NR_CADC_NR_LTE_DC_R17-UEConTest | O157: CA_n001A_n003A_n007B_n078A BCS1 | P157: CA_n003A_n007A | R157: v1.0.0
B158: Rel-17 | C158: NR CA FR1 inter-band (4 bands) | D158: 38.101-1:Table 5.5A.3.3-1 | E158: CA_n1A-n3A-n7B-n78A BCS1 | F158: CA_n3A-n78A | G158: Pending | H158: PC3 | N158: NR_CADC_NR_LTE_DC_R17-UEConTest | O158: CA_n001A_n003A_n007B_n078A BCS1 | P158: CA_n003A_n078A | R158: v1.0.0
B159: Rel-17 | C159: NR CA FR1 inter-band (4 bands) | D159: 38.101-1:Table 5.5A.3.3-1 | E159: CA_n1A-n3A-n7B-n78A BCS1 | F159: CA_n7A-n78A | G159: Pending | H159: PC3 | N159: NR_CADC_NR_LTE_DC_R17-UEConTest | O159: CA_n001A_n003A_n007B_n078A BCS1 | P159: CA_n007A_n078A | R159: v1.0.0
B160: Rel-17 | C160: NR CA FR1 inter-band (4 bands) | D160: 38.101-1:Table 5.5A.3.3-1 | E160: CA_n1A-n3A-n7B-n78A BCS1 | F160: CA_n7B | G160: Pending | H160: PC3 | N160: NR_CADC_NR_LTE_DC_R17-UEConTest | O160: CA_n001A_n003A_n007B_n078A BCS1 | P160: CA_n007B | R160: v1.0.0
B161: Rel-16 | C161: NR CA FR1 inter-band (3 bands) | D161: 38.101-1:Table 5.5A.3.2-1 | E161: CA_n1A-n3A-n8A | F161: - | G161: Pending | H161: PC3 | N161: NR_CADC_NR_LTE_DC_R16-UEConTest | O161: CA_n001A_n003A_n008A | P161: _ | R161: v1.0.0
B162: Rel-17 | C162: NR CA FR1 inter-band (4 bands) | D162: 38.101-1:Table 5.5A.3.3-1 | E162: CA_n1A-n3A-n8A-n77A | F162: - | G162: Pending | H162: PC3 | N162: NR_CADC_NR_LTE_DC_R17-UEConTest | O162: CA_n001A_n003A_n008A_n077A | P162: _ | R162: v1.0.0
B163: Rel-17 | C163: NR CA FR1+FR2 inter-band (5 bands) | D163: 38.101-3:Table 5.5A.1-4 | E163: CA_n1A-n3A-n8A-n77A-n257A | F163: - | G163: Pending | H163: PC3 | N163: NR_CADC_NR_LTE_DC_R17-UEConTest | O163: CA_n001A_n003A_n008A_n077A_n257A | P163: _ | R163: v1.0.0
B164: Rel-17 | C164: NR CA FR1+FR2 inter-band (5 bands) | D164: 38.101-3:Table 5.5A.1-4 | E164: CA_n1A-n3A-n8A-n77A-n257G | F164: - | G164: Pending | H164: PC3 | N164: NR_CADC_NR_LTE_DC_R17-UEConTest | O164: CA_n001A_n003A_n008A_n077A_n257G | P164: _ | R164: v1.0.0
B165: Rel-17 | C165: NR CA FR1+FR2 inter-band (5 bands) | D165: 38.101-3:Table 5.5A.1-4 | E165: CA_n1A-n3A-n8A-n77A-n257H | F165: - | G165: Pending | H165: PC3 | N165: NR_CADC_NR_LTE_DC_R17-UEConTest | O165: CA_n001A_n003A_n008A_n077A_n257H | P165: _ | R165: v1.0.0
B166: Rel-17 | C166: NR CA FR1+FR2 inter-band (5 bands) | D166: 38.101-3:Table 5.5A.1-4 | E166: CA_n1A-n3A-n8A-n77A-n257I | F166: - | G166: Pending | H166: PC3 | N166: NR_CADC_NR_LTE_DC_R17-UEConTest | O166: CA_n001A_n003A_n008A_n077A_n257I | P166: _ | R166: v1.0.0
B167: Rel-17 | C167: NR CA FR1+FR2 inter-band (5 bands) | D167: 38.101-3:Table 5.5A.1-4 | E167: CA_n1A-n3A-n8A-n77A-n257J | F167: - | G167: Pending | H167: PC3 | N167: NR_CADC_NR_LTE_DC_R17-UEConTest | O167: CA_n001A_n003A_n008A_n077A_n257J | P167: _ | R167: v1.0.0
B168: Rel-17 | C168: NR CA FR1+FR2 inter-band (5 bands) | D168: 38.101-3:Table 5.5A.1-4 | E168: CA_n1A-n3A-n8A-n77A-n257K | F168: - | G168: Pending | H168: PC3 | N168: NR_CADC_NR_LTE_DC_R17-UEConTest | O168: CA_n001A_n003A_n008A_n077A_n257K | P168: _ | R168: v1.0.0
B169: Rel-17 | C169: NR CA FR1+FR2 inter-band (5 bands) | D169: 38.101-3:Table 5.5A.1-4 | E169: CA_n1A-n3A-n8A-n77A-n257L | F169: - | G169: Pending | H169: PC3 | N169: NR_CADC_NR_LTE_DC_R17-UEConTest | O169: CA_n001A_n003A_n008A_n077A_n257L | P169: _ | R169: v1.0.0
B170: Rel-17 | C170: NR CA FR1+FR2 inter-band (5 bands) | D170: 38.101-3:Table 5.5A.1-4 | E170: CA_n1A-n3A-n8A-n77A-n257M | F170: - | G170: Pending | H170: PC3 | N170: NR_CADC_NR_LTE_DC_R17-UEConTest | O170: CA_n001A_n003A_n008A_n077A_n257M | P170: _ | R170: v1.0.0
B171: Rel-17 | C171: NR CA FR1 inter-band (4 bands) | D171: 38.101-1:Table 5.5A.3.3-1 | E171: CA_n1A-n3A-n8A-n77(2A) | F171: - | G171: Pending | H171: PC3 | N171: NR_CADC_NR_LTE_DC_R17-UEConTest | O171: CA_n001A_n003A_n008A_n077z2Az | P171: _ | R171: v1.0.0
B172: Rel-17 | C172: NR CA FR1+FR2 inter-band (5 bands) | D172: 38.101-3:Table 5.5A.1-4 | E172: CA_n1A-n3A-n8A-n77(2A)-n257A | F172: - | G172: Pending | H172: PC3 | N172: NR_CADC_NR_LTE_DC_R17-UEConTest | O172: CA_n001A_n003A_n008A_n077z2Az_n257A | P172: _ | R172: v1.0.0
B173: Rel-17 | C173: NR CA FR1+FR2 inter-band (5 bands) | D173: 38.101-3:Table 5.5A.1-4 | E173: CA_n1A-n3A-n8A-n77(2A)-n257G | F173: - | G173: Pending | H173: PC3 | N173: NR_CADC_NR_LTE_DC_R17-UEConTest | O173: CA_n001A_n003A_n008A_n077z2Az_n257G | P173: _ | R173: v1.0.0
B174: Rel-17 | C174: NR CA FR1+FR2 inter-band (5 bands) | D174: 38.101-3:Table 5.5A.1-4 | E174: CA_n1A-n3A-n8A-n77(2A)-n257H | F174: - | G174: Pending | H174: PC3 | N174: NR_CADC_NR_LTE_DC_R17-UEConTest | O174: CA_n001A_n003A_n008A_n077z2Az_n257H | P174: _ | R174: v1.0.0
B175: Rel-17 | C175: NR CA FR1+FR2 inter-band (5 bands) | D175: 38.101-3:Table 5.5A.1-4 | E175: CA_n1A-n3A-n8A-n77(2A)-n257I | F175: - | G175: Pending | H175: PC3 | N175: NR_CADC_NR_LTE_DC_R17-UEConTest | O175: CA_n001A_n003A_n008A_n077z2Az_n257I | P175: _ | R175: v1.0.0
B176: Rel-17 | C176: NR CA FR1+FR2 inter-band (5 bands) | D176: 38.101-3:Table 5.5A.1-4 | E176: CA_n1A-n3A-n8A-n77(2A)-n257J | F176: - | G176: Pending | H176: PC3 | N176: NR_CADC_NR_LTE_DC_R17-UEConTest | O176: CA_n001A_n003A_n008A_n077z2Az_n257J | P176: _ | R176: v1.0.0
B177: Rel-17 | C177: NR CA FR1+FR2 inter-band (5 bands) | D177: 38.101-3:Table 5.5A.1-4 | E177: CA_n1A-n3A-n8A-n77(2A)-n257K | F177: - | G177: Pending | H177: PC3 | N177: NR_CADC_NR_LTE_DC_R17-UEConTest | O177: CA_n001A_n003A_n008A_n077z2Az_n257K | P177: _ | R177: v1.0.0
B178: Rel-17 | C178: NR CA FR1+FR2 inter-band (5 bands) | D178: 38.101-3:Table 5.5A.1-4 | E178: CA_n1A-n3A-n8A-n77(2A)-n257L | F178: - | G178: Pending | H178: PC3 | N178: NR_CADC_NR_LTE_DC_R17-UEConTest | O178: CA_n001A_n003A_n008A_n077z2Az_n257L | P178: _ | R178: v1.0.0
B179: Rel-17 | C179: NR CA FR1+FR2 inter-band (5 bands) | D179: 38.101-3:Table 5.5A.1-4 | E179: CA_n1A-n3A-n8A-n77(2A)-n257M | F179: - | G179: Pending | H179: PC3 | N179: NR_CADC_NR_LTE_DC_R17-UEConTest | O179: CA_n001A_n003A_n008A_n077z2Az_n257M | P179: _ | R179: v1.0.0
B180: Rel-16 | C180: NR CA FR1 inter-band (4 bands) | D180: 38.101-1:Table 5.5A.3.3-1 | E180: CA_n1A-n3A-n8A-n78A | F180: - | G180: Pending | H180: PC3 | N180: NR_CADC_NR_LTE_DC_R16-UEConTest | O180: CA_n001A_n003A_n008A_n078A | P180: _ | R180: v1.0.0
B181: Rel-17 | C181: NR CA FR1+FR2 inter-band (4 bands) | D181: 38.101-3:Table 5.5A.1-3 | E181: CA_n1A-n3A-n8A-n257A | F181: - | G181: Pending | H181: PC3 | N181: NR_CADC_NR_LTE_DC_R17-UEConTest | O181: CA_n001A_n003A_n008A_n257A | P181: _ | R181: v1.0.0
B182: Rel-17 | C182: NR CA FR1+FR2 inter-band (4 bands) | D182: 38.101-3:Table 5.5A.1-3 | E182: CA_n1A-n3A-n8A-n257G | F182: - | G182: Pending | H182: PC3 | N182: NR_CADC_NR_LTE_DC_R17-UEConTest | O182: CA_n001A_n003A_n008A_n257G | P182: _ | R182: v1.0.0
B183: Rel-17 | C183: NR CA FR1+FR2 inter-band (4 bands) | D183: 38.101-3:Table 5.5A.1-3 | E183: CA_n1A-n3A-n8A-n257H | F183: - | G183: Pending | H183: PC3 | N183: NR_CADC_NR_LTE_DC_R17-UEConTest | O183: CA_n001A_n003A_n008A_n257H | P183: _ | R183: v1.0.0
B184: Rel-17 | C184: NR CA FR1+FR2 inter-band (4 bands) | D184: 38.101-3:Table 5.5A.1-3 | E184: CA_n1A-n3A-n8A-n257I | F184: - | G184: Pending | H184: PC3 | N184: NR_CADC_NR_LTE_DC_R17-UEConTest | O184: CA_n001A_n003A_n008A_n257I | P184: _ | R184: v1.0.0
B185: Rel-17 | C185: NR CA FR1+FR2 inter-band (4 bands) | D185: 38.101-3:Table 5.5A.1-3 | E185: CA_n1A-n3A-n8A-n257J | F185: - | G185: Pending | H185: PC3 | N185: NR_CADC_NR_LTE_DC_R17-UEConTest | O185: CA_n001A_n003A_n008A_n257J | P185: _ | R185: v1.0.0
B186: Rel-17 | C186: NR CA FR1+FR2 inter-band (4 bands) | D186: 38.101-3:Table 5.5A.1-3 | E186: CA_n1A-n3A-n8A-n257K | F186: - | G186: Pending | H186: PC3 | N186: NR_CADC_NR_LTE_DC_R17-UEConTest | O186: CA_n001A_n003A_n008A_n257K | P186: _ | R186: v1.0.0
B187: Rel-17 | C187: NR CA FR1+FR2 inter-band (4 bands) | D187: 38.101-3:Table 5.5A.1-3 | E187: CA_n1A-n3A-n8A-n257L | F187: - | G187: Pending | H187: PC3 | N187: NR_CADC_NR_LTE_DC_R17-UEConTest | O187: CA_n001A_n003A_n008A_n257L | P187: _ | R187: v1.0.0
B188: Rel-17 | C188: NR CA FR1+FR2 inter-band (4 bands) | D188: 38.101-3:Table 5.5A.1-3 | E188: CA_n1A-n3A-n8A-n257M | F188: - | G188: Pending | H188: PC3 | N188: NR_CADC_NR_LTE_DC_R17-UEConTest | O188: CA_n001A_n003A_n008A_n257M | P188: _ | R188: v1.0.0
B189: Rel-17 | C189: NR CA FR1 inter-band (3 bands) | D189: 38.101-1:Table 5.5A.3.2-1 | E189: CA_n1A-n3A-n18A | F189: - | G189: Pending | H189: PC3 | N189: NR_CADC_NR_LTE_DC_R17-UEConTest | O189: CA_n001A_n003A_n018A | P189: _ | R189: v1.1.0
B190: Rel-17 | C190: NR CA FR1 inter-band (3 bands) | D190: 38.101-1:Table 5.5A.3.2-1 | E190: CA_n1A-n3A-n18A | F190: CA_n1A-n3A | G190: Pending | H190: PC3 | N190: NR_CADC_NR_LTE_DC_R17-UEConTest | O190: CA_n001A_n003A_n018A | P190: CA_n001A_n003A | R190: v1.1.0
B191: Rel-17 | C191: NR CA FR1 inter-band (3 bands) | D191: 38.101-1:Table 5.5A.3.2-1 | E191: CA_n1A-n3A-n18A | F191: CA_n1A-n18A | G191: Pending | H191: PC3 | N191: NR_CADC_NR_LTE_DC_R17-UEConTest | O191: CA_n001A_n003A_n018A | P191: CA_n001A_n018A | R191: v1.1.0
B192: Rel-17 | C192: NR CA FR1 inter-band (3 bands) | D192: 38.101-1:Table 5.5A.3.2-1 | E192: CA_n1A-n3A-n18A | F192: CA_n3A-n18A | G192: Pending | H192: PC3 | N192: NR_CADC_NR_LTE_DC_R17-UEConTest | O192: CA_n001A_n003A_n018A | P192: CA_n003A_n018A | R192: v1.1.0
B193: Rel-17 | C193: NR CA FR1 inter-band (4 bands) | D193: 38.101-1:Table 5.5A.3.3-1 | E193: CA_n1A-n3A-n18A-n28A | F193: - | G193: Pending | H193: PC3 | N193: NR_CADC_NR_LTE_DC_R17-UEConTest | O193: CA_n001A_n003A_n018A_n028A | P193: _ | R193: v1.2.0
B194: Rel-17 | C194: NR CA FR1 inter-band (4 bands) | D194: 38.101-1:Table 5.5A.3.3-1 | E194: CA_n1A-n3A-n18A-n28A | F194: CA_n1A-n3A | G194: Pending | H194: PC3 | N194: NR_CADC_NR_LTE_DC_R17-UEConTest | O194: CA_n001A_n003A_n018A_n028A | P194: CA_n001A_n003A | R194: v1.2.0
B195: Rel-17 | C195: NR CA FR1 inter-band (4 bands) | D195: 38.101-1:Table 5.5A.3.3-1 | E195: CA_n1A-n3A-n18A-n28A | F195: CA_n1A-n18A | G195: Pending | H195: PC3 | N195: NR_CADC_NR_LTE_DC_R17-UEConTest | O195: CA_n001A_n003A_n018A_n028A | P195: CA_n001A_n018A | R195: v1.2.0
B196: Rel-17 | C196: NR CA FR1 inter-band (4 bands) | D196: 38.101-1:Table 5.5A.3.3-1 | E196: CA_n1A-n3A-n18A-n28A | F196: CA_n1A-n28A | G196: Pending | H196: PC3 | N196: NR_CADC_NR_LTE_DC_R17-UEConTest | O196: CA_n001A_n003A_n018A_n028A | P196: CA_n001A_n028A | R196: v1.2.0
B197: Rel-17 | C197: NR CA FR1 inter-band (4 bands) | D197: 38.101-1:Table 5.5A.3.3-1 | E197: CA_n1A-n3A-n18A-n28A | F197: CA_n3A-n18A | G197: Pending | H197: PC3 | N197: NR_CADC_NR_LTE_DC_R17-UEConTest | O197: CA_n001A_n003A_n018A_n028A | P197: CA_n003A_n018A | R197: v1.2.0
B198: Rel-17 | C198: NR CA FR1 inter-band (4 bands) | D198: 38.101-1:Table 5.5A.3.3-1 | E198: CA_n1A-n3A-n18A-n28A | F198: CA_n3A-n28A | G198: Pending | H198: PC3 | N198: NR_CADC_NR_LTE_DC_R17-UEConTest | O198: CA_n001A_n003A_n018A_n028A | P198: CA_n003A_n028A | R198: v1.2.0
B199: Rel-17 | C199: NR CA FR1 inter-band (4 bands) | D199: 38.101-1:Table 5.5A.3.3-1 | E199: CA_n1A-n3A-n18A-n41A | F199: - | G199: Pending | H199: PC3 | N199: NR_CADC_NR_LTE_DC_R17-UEConTest | O199: CA_n001A_n003A_n018A_n041A | P199: _ | R199: v1.2.0
B200: Rel-17 | C200: NR CA FR1 inter-band (4 bands) | D200: 38.101-1:Table 5.5A.3.3-1 | E200: CA_n1A-n3A-n18A-n41A | F200: CA_n1A-n3A | G200: Pending | H200: PC3 | N200: NR_CADC_NR_LTE_DC_R17-UEConTest | O200: CA_n001A_n003A_n018A_n041A | P200: CA_n001A_n003A | R200: v1.2.0
B201: Rel-17 | C201: NR CA FR1 inter-band (4 bands) | D201: 38.101-1:Table 5.5A.3.3-1 | E201: CA_n1A-n3A-n18A-n41A | F201: CA_n1A-n18A | G201: Pending | H201: PC3 | N201: NR_CADC_NR_LTE_DC_R17-UEConTest | O201: CA_n001A_n003A_n018A_n041A | P201: CA_n001A_n018A | R201: v1.2.0
... 4299 more rows

Sheet V2X bands
A1: =COUNTA(V2XbandsTblID[Marked config])&" band items marked" -> 0 band items marked | C1: 3GPP RAN WG5 status for 5G NR V2X bands | N1: =PRD21version -> PRD21 v1.5.0
C2: Based on: TS 38.101-1 v17.7.0 (Sep 2022)
C4: Completed: Green row indicates that the 5G NR V2X band is complete in the RAN5 test specifications. Available for testing.
C5: Ongoing: Yellow row indicates that the 5G NR V2X band for PC3 is ongoing and assigned to at least one "Interested Deployer" and at least one "Responsible Company assignment". CRs can be submitted to RAN5 test specifications.
C6: Ongoing: White row with black text indicates that the 5G NR V2X band is ongoing but pending assignment to a "Responsible Company". No CRs shall be submitted to the RAN5 specifications unless the company volunteers to be assigned as "Responsible Company".
C7: Pending: White row with red text indicates that the 5G NR V2X band is pending assignment to "Interested Company". No CRs shall be submitted to the RAN5 specifications.
C8: Note 1: Power classes beyond PC3 applies to all CBWs of the NR band and are indicated by a "PCx" suffix in the NR band column and in the power class column, where x is the power class e.g. "PC2" for power class 2.
A9: Marked config | B9: Release introduced in TS 38.101-x | C9: Type of band | D9: TS and Source Table | E9: NR V2X band | F9: CBWs SCS[kHz]:[MHz]+...+[MHz] | G9: PC3 Status | H9: Power Class (Note 1) | I9: RAN5 Completion Meeting (Note 1) | J9: RAN5 Completion Reference (Note 1) | K9: Interested Deployer | L9: Responsible Company (contact) | M9: Assignment [RAN5 meeting] | N9: Applicable RAN5 WI code(s) for CRs (Note 1) | O9: Band Sort Key | P9: Comments | Q9: Introduced in PRD version
B10: Rel-17 | C10: V2X FR1 | D10: 38.101-1:Table 5.2E.1-1 | E10: n14 | F10: SCS15:5+10 SCS30:10 | G10: Pending | H10: PC3 | N10: NR_SL_enh-UEConTest | O10: =SortKey(V2XbandsTblID[[#This Row],[NR V2X band]]) -> n014 | P10: n14 CBWs 5 and 10 MHz are also used for NR operation (see "NR bands" worksheet for NR status) | Q10: v1.2.0
B11: Rel-17 | C11: V2X FR1 | D11: 38.101-1:Table 5.2E.1-1 | E11: n14 PC1 | G11: Pending | H11: PC1 | N11: NR_SL_enh-UEConTest | O11: =SortKey(V2XbandsTblID[[#This Row],[NR V2X band]]) -> n014 PC001 | Q11: v1.2.0
B12: Rel-16 | C12: V2X FR1 | D12: 38.101-1:Table 5.2E.1-1 | E12: n38 | F12: SCS15:10+20+30+40 SCS30:10+20+30+40 SCS60:10+20+30+40 | G12: Pending | H12: PC3 | N12: 5G_V2X_NRSL_eV2XARC-UEConTest | O12: =SortKey(V2XbandsTblID[[#This Row],[NR V2X band]]) -> n038 | P12: n38 CBWs 10, 20, 30 and 40 MHz are also used for NR operation (see "NR bands" worksheet for NR status) | Q12: v1.2.0
B13: Rel-16 | C13: V2X FR1 | D13: 38.101-1:Table 5.2E.1-1 | E13: n47 | F13: SCS15:10+20+30+40 SCS30:10+20+30+40 SCS60:10+20+30+40 | G13: Pending | H13: PC3 | N13: 5G_V2X_NRSL_eV2XARC-UEConTest | O13: =SortKey(V2XbandsTblID[[#This Row],[NR V2X band]]) -> n047 | Q13: v1.2.0
B14: Rel-17 | C14: V2X FR1 | D14: 38.101-1:Table 5.2E.1-1 | E14: n47 PC2 | G14: Pending | H14: PC2 | N14: NR_SL_enh-UEConTest | O14: =SortKey(V2XbandsTblID[[#This Row],[NR V2X band]]) -> n047 PC002 | Q14: v1.2.0
B15: Rel-17 | C15: V2X FR1 | D15: 38.101-1:Table 5.2E.1-1 | E15: n79 | F15: SCS15:10+20+30+40 SCS30:10+20+30+40 SCS60:10+20+30+40 | G15: Pending | H15: PC3 | N15: NR_SL_enh-UEConTest | O15: =SortKey(V2XbandsTblID[[#This Row],[NR V2X band]]) -> n079 | P15: n79 CBWs 10, 20, 30 and 40 MHz are also used for NR operation (see "NR bands" worksheet for NR status) | Q15: v1.2.0

Sheet V2X Configurations
A1: =COUNTA(V2XconfigTblID[Marked config])&" configs marked" -> 0 configs marked | C1: 3GPP RAN WG5 status NR V2X configurations | N1: =PRD21version -> PRD21 v1.5.0
C2: Based on: TS 38.101-1 v17.7.0 and TS 38.101-3 v17.7.0 (Sep 2022)
C4: Completed: Green row indicates that the 5G NR V2X configuration is complete in the RAN5 test specifications. Available for testing.
C5: Ongoing: Yellow row indicates that the 5G NR V2X configuration is assigned to at least one "Interested Company" or is a fallback to an ongoing configuration, and at least one "Responsible Company". CRs can be submitted to RAN5 test specifications.
C6: Ongoing: White row with black text indicates that the 5G NR V2X configuration is ongoing but not yet assigned to any "Responsible Company". No CRs shall be submitted to the RAN5 specifications unless the company volunteers to be assigned as "Responsible Company".
C7: Pending: White row with red text indicates that the 5G NR V2X configuration is is pending assignment to "Interested Deployer". No CRs shall be submitted to the RAN5 specifications.
C8: Note 1: Power classes beyond PC3 are indicated by a "PCx" suffix in the "Configuration" and "Power class" columns, where x is the power class e.g. "PC2" for power class 2. Power classes beyond PC3 are only indicated for the items without any "BCS" suffix but applies to all bandwidth combination sets of the configuration (BCS1, BCS2 etc).
A9: Marked config | B9: Release introduced in TS 38.101-x | C9: Type of configuration | D9: TS and Source Table | E9: Configuration | F9: Working mode | G9: PC3 Status | H9: Power Class (Note 1) | I9: RAN5 Completion Meeting (Note 1) | J9: RAN5 Completion Reference (Note 1) | K9: Interested Deployer | L9: Responsible Company (contact) | M9: Assignment [RAN5 meeting] | N9: Applicable RAN5 WI code(s) for CRs (Note 1) | O9: DL Sort Key | P9: Comments | Q9: Introduced in PRD version
B10: Rel-16 | C10: NR V2X FR1 | D10: 38.101-3:Table 5.5E.2-1 | E10: V2X_(n)47AA | F10: PC5-PC5 | G10: Pending | H10: PC3 | N10: 5G_V2X_NRSL_eV2XARC-UEConTest | O10: =SortKey(V2XconfigTblID[[#This Row],[Configuration]]) -> V002X_znz047AA | Q10: v1.2.0
B11: Rel-16 | C11: NR V2X FR1 | D11: 38.101-3:Table 5.5E.4.1-1 | E11: V2X_20A-n38A | F11: Uu-PC5 | G11: Pending | H11: PC3 | N11: 5G_V2X_NRSL_eV2XARC-UEConTest | O11: =SortKey(V2XconfigTblID[[#This Row],[Configuration]]) -> V002X_020A_n038A | Q11: v1.2.0
B12: Rel-17 | C12: NR V2X FR1 | D12: 38.101-3:Table 5.5E.4.1-1 | E12: V2X_39A-n47A | F12: Uu-PC5 | G12: Pending | H12: PC3 | N12: NR_SL_enh-UEConTest | O12: =SortKey(V2XconfigTblID[[#This Row],[Configuration]]) -> V002X_039A_n047A | Q12: v1.2.0
B13: Rel-17 | C13: NR V2X FR1 | D13: 38.101-3:Table 5.5E.4.1-1 | E13: V2X_39A-n47A PC2 | F13: Uu-PC5 | G13: Pending | H13: PC2 | N13: NR_SL_enh-UEConTest | O13: =SortKey(V2XconfigTblID[[#This Row],[Configuration]]) -> V002X_039A_n047A PC002 | Q13: v1.2.0
B14: Rel-17 | C14: NR V2X FR1 | D14: 38.101-3:Table 5.5E.4.1-1 | E14: V2X_3A-n47A | F14: Uu-PC5 | G14: Pending | H14: PC3 | N14: NR_SL_enh-UEConTest | O14: =SortKey(V2XconfigTblID[[#This Row],[Configuration]]) -> V002X_003A_n047A | Q14: v1.2.0
B15: Rel-17 | C15: NR V2X FR1 | D15: 38.101-3:Table 5.5E.4.1-1 | E15: V2X_3A-n47A PC2 | F15: Uu-PC5 | G15: Pending | H15: PC2 | N15: NR_SL_enh-UEConTest | O15: =SortKey(V2XconfigTblID[[#This Row],[Configuration]]) -> V002X_003A_n047A PC002 | Q15: v1.2.0
B16: Rel-17 | C16: NR V2X FR1 | D16: 38.101-3:Table 5.5E.4.1-1 | E16: V2X_40A-n47A | F16: Uu-PC5 | G16: Pending | H16: PC3 | N16: NR_SL_enh-UEConTest | O16: =SortKey(V2XconfigTblID[[#This Row],[Configuration]]) -> V002X_040A_n047A | Q16: v1.2.0
B17: Rel-17 | C17: NR V2X FR1 | D17: 38.101-3:Table 5.5E.4.1-1 | E17: V2X_40A-n47A PC2 | F17: Uu-PC5 | G17: Pending | H17: PC2 | N17: NR_SL_enh-UEConTest | O17: =SortKey(V2XconfigTblID[[#This Row],[Configuration]]) -> V002X_040A_n047A PC002 | Q17: v1.2.0
B18: Rel-16 | C18: NR V2X FR1 | D18: 38.101-3:Table 5.5E.3-1 | E18: V2X_47A_n47A | F18: PC5-PC5 | G18: Pending | H18: PC3 | N18: 5G_V2X_NRSL_eV2XARC-UEConTest | O18: =SortKey(V2XconfigTblID[[#This Row],[Configuration]]) -> V002X_047A_n047A | Q18: v1.2.0
B19: Rel-17 | C19: NR V2X FR1 | D19: 38.101-1:Table 5.3E.2-1 | E19: V2X_n1A-n47A | F19: Uu-PC5 | G19: Pending | H19: PC3 | N19: NR_SL_enh-UEConTest | O19: =SortKey(V2XconfigTblID[[#This Row],[Configuration]]) -> V002X_n001A_n047A | Q19: v1.3.0
B20: Rel-17 | C20: NR V2X FR1 | D20: 38.101-3:Table 5.5E.4.1-1 | E20: V2X_n39A-47A | F20: Uu-PC5 | G20: Pending | H20: PC3 | N20: NR_SL_enh-UEConTest | O20: =SortKey(V2XconfigTblID[[#This Row],[Configuration]]) -> V002X_n039A_047A | Q20: v1.3.0
B21: Rel-17 | C21: NR V2X FR1 | D21: 38.101-3:Table 5.5E.4.1-1 | E21: V2X_n39A-47A PC2 | F21: Uu-PC5 | G21: Pending | H21: PC2 | N21: NR_SL_enh-UEConTest | O21: =SortKey(V2XconfigTblID[[#This Row],[Configuration]]) -> V002X_n039A_047A PC002 | Q21: v1.3.0
B22: Rel-17 | C22: NR V2X FR1 | D22: 38.101-1:Table 5.3E.2-1 | E22: V2X_n39A-n47A | F22: Uu-PC5 | G22: Pending | H22: PC3 | N22: NR_SL_enh-UEConTest | O22: =SortKey(V2XconfigTblID[[#This Row],[Configuration]]) -> V002X_n039A_n047A | Q22: v1.2.0
B23: Rel-17 | C23: NR V2X FR1 | D23: 38.101-3:Table 5.5E.4.1-1 | E23: V2X_n40A-47A | F23: Uu-PC5 | G23: Pending | H23: PC3 | N23: NR_SL_enh-UEConTest | O23: =SortKey(V2XconfigTblID[[#This Row],[Configuration]]) -> V002X_n040A_047A | Q23: v1.2.0
B24: Rel-17 | C24: NR V2X FR1 | D24: 38.101-3:Table 5.5E.4.1-1 | E24: V2X_n40A-47A PC2 | F24: Uu-PC5 | G24: Pending | H24: PC2 | N24: NR_SL_enh-UEConTest | O24: =SortKey(V2XconfigTblID[[#This Row],[Configuration]]) -> V002X_n040A_047A PC002 | Q24: v1.2.0
B25: Rel-17 | C25: NR V2X FR1 | D25: 38.101-1:Table 5.3E.2-1 | E25: V2X_n40A-n47A | F25: Uu-PC5 | G25: Pending | H25: PC3 | N25: NR_SL_enh-UEConTest | O25: =SortKey(V2XconfigTblID[[#This Row],[Configuration]]) -> V002X_n040A_n047A | Q25: v1.2.0
B26: Rel-17 | C26: NR V2X FR1 | D26: 38.101-1:Table 5.3E.2-1 | E26: V2X_n41A-n47A | F26: Uu-PC5 | G26: Pending | H26: PC3 | N26: NR_SL_enh-UEConTest | O26: =SortKey(V2XconfigTblID[[#This Row],[Configuration]]) -> V002X_n041A_n047A | Q26: v1.2.0
B27: Rel-17 | C27: NR V2X FR1 | D27: 38.101-1:Table 5.3E.2-1 | E27: V2X_n5A-n47A | F27: Uu-PC5 | G27: Pending | H27: PC3 | N27: NR_SL_enh-UEConTest | O27: =SortKey(V2XconfigTblID[[#This Row],[Configuration]]) -> V002X_n005A_n047A | Q27: v1.3.0
B28: Rel-16 | C28: NR V2X FR1 | D28: 38.101-3:Table 5.5E.4.1-1 | E28: V2X_n71A-47A | F28: Uu-PC5 | G28: Pending | H28: PC3 | N28: 5G_V2X_NRSL_eV2XARC-UEConTest | O28: =SortKey(V2XconfigTblID[[#This Row],[Configuration]]) -> V002X_n071A_047A | Q28: v1.2.0
B29: Rel-16 | C29: NR V2X FR1 | D29: 38.101-3:Table 5.5E.4.1-1 | E29: V2X_n71A-47A PC2 | F29: Uu-PC5 | G29: Pending | H29: PC2 | N29: 5G_V2X_NRSL_eV2XARC-UEConTest | O29: =SortKey(V2XconfigTblID[[#This Row],[Configuration]]) -> V002X_n071A_047A PC002 | Q29: v1.2.0
B30: Rel-16 | C30: NR V2X FR1 | D30: 38.101-1:Table 5.3E.2-1 | E30: V2X_n71A-n47A | F30: Uu-PC5 | G30: Pending | H30: PC3 | N30: 5G_V2X_NRSL_eV2XARC-UEConTest | O30: =SortKey(V2XconfigTblID[[#This Row],[Configuration]]) -> V002X_n071A_n047A | Q30: v1.2.0
B31: Rel-17 | C31: NR V2X FR1 | D31: 38.101-3:Table 5.5E.4.1-1 | E31: V2X_n78A-47A | F31: Uu-PC5 | G31: Pending | H31: PC3 | N31: NR_SL_enh-UEConTest | O31: =SortKey(V2XconfigTblID[[#This Row],[Configuration]]) -> V002X_n078A_047A | Q31: v1.2.0
B32: Rel-17 | C32: NR V2X FR1 | D32: 38.101-3:Table 5.5E.4.1-1 | E32: V2X_n78A-47A PC2 | F32: Uu-PC5 | G32: Pending | H32: PC2 | N32: NR_SL_enh-UEConTest | O32: =SortKey(V2XconfigTblID[[#This Row],[Configuration]]) -> V002X_n078A_047A PC002 | Q32: v1.2.0
B33: Rel-17 | C33: NR V2X FR1 | D33: 38.101-1:Table 5.3E.2-1 | E33: V2X_n78A-n47A | F33: Uu-PC5 | G33: Pending | H33: PC3 | N33: NR_SL_enh-UEConTest | O33: =SortKey(V2XconfigTblID[[#This Row],[Configuration]]) -> V002X_n078A_n047A | Q33: v1.2.0
B34: Rel-17 | C34: NR V2X FR1 | D34: 38.101-3:Table 5.5E.4.1-1 | E34: V2X_n79A-47A | F34: Uu-PC5 | G34: Pending | H34: PC3 | N34: NR_SL_enh-UEConTest | O34: =SortKey(V2XconfigTblID[[#This Row],[Configuration]]) -> V002X_n079A_047A | Q34: v1.2.0
B35: Rel-17 | C35: NR V2X FR1 | D35: 38.101-3:Table 5.5E.4.1-1 | E35: V2X_n79A-47A PC2 | F35: Uu-PC5 | G35: Pending | H35: PC2 | N35: NR_SL_enh-UEConTest | O35: =SortKey(V2XconfigTblID[[#This Row],[Configuration]]) -> V002X_n079A_047A PC002 | Q35: v1.2.0
B36: Rel-17 | C36: NR V2X FR1 | D36: 38.101-1:Table 5.3E.2-1 | E36: V2X_n79A-n47A | F36: Uu-PC5 | G36: Pending | H36: PC3 | N36: NR_SL_enh-UEConTest | O36: =SortKey(V2XconfigTblID[[#This Row],[Configuration]]) -> V002X_n079A_n047A | Q36: v1.2.0
B37: Rel-17 | C37: NR V2X FR1 | D37: 38.101-1:Table 5.3E.2-2 | E37: V2X_n79B | F37: Uu-PC5 | G37: Pending | H37: PC3 | N37: NR_SL_enh-UEConTest | O37: =SortKey(V2XconfigTblID[[#This Row],[Configuration]]) -> V002X_n079B | Q37: v1.2.0
B38: Rel-17 | C38: NR V2X FR1 | D38: 38.101-1:Table 5.3E.2-2 | E38: V2X_n79B PC2 | F38: Uu-PC5 | G38: Pending | H38: PC2 | N38: NR_SL_enh-UEConTest | O38: =SortKey(V2XconfigTblID[[#This Row],[Configuration]]) -> V002X_n079B PC002 | Q38: v1.2.0
B39: Rel-17 | C39: NR V2X FR1 | D39: 38.101-1:Table 5.3E.2-1 | E39: V2X_n8A-n47A | F39: Uu-PC5 | G39: Pending | H39: PC3 | N39: NR_SL_enh-UEConTest | O39: =SortKey(V2XconfigTblID[[#This Row],[Configuration]]) -> V002X_n008A_n047A | Q39: v1.3.0

Sheet Revision History
A1: RAN5 meeting | B1: Date | C1: PRD21 version | D1: Introduced changes | G1: PRD21 contacts: | I1: songdan@chinamobile.com
A2: RAN5#99 | B2: 2023-Mar | C2: v1.5.0 | D2: 1. 5G NR CADC Configuration worksheet: Added missing PC2 configurations for RAN5 WI ENDC_PC2_R17_xLTE_yNR-UEConTest (33 configurations) and removed configurations removed from the associated RAN4 work item when it was closed.
A5: RAN5#98 | B5: 2023-Mar | C5: v1.4.1 | D5: Removed unused Microsoft library to avoid error message "Compile error: Can't find find project or library" when the workbook is opened on a computer using older version of Microsoft Windows.
A6: RAN5#98 | B6: 2023-Mar | C6: v1.4.0 | D6: 1. Update of new NR bands introduced for RAN5 work items, and NR CA, NR-DC, NE-DC and EN-DC configurations introduced in TS 38.101-x v17.8.0 (Dec 2022)
D7: 2. 5G NR CADC Configurations worksheet: Moved the power class suffix "PC2","PC1.5" etc. from the configuration column to the UL configuration column. Note 1 updated to refer to the UL configuration.
D8: 3. Introduction worksheet: Corrected header text in all summary tables (removed "LTE CA")
D9: 4. 5G NR CADC Configurations worksheet: Corrected release for PC2 configurations currently indicated as Rel-15 to the release of the associated RAN5 work item introducing them.
D10: 5. Introduction worksheet: Text updated to also refer to V2X bands and configurations (R5-231281)
D11: 6. 5G NR CADC Configurations worksheet: Remove DL/UL configuration combinations for the case the DL and UL FR2 bandwidth class (BWC) belongs to different fallback groups as specified in TS 38.101-2 Table 5.3A.4-1. Example: Removed configurations CA_n3A-n77(2A)-n257G with UL configuration CA_n3A-n257D as FR2 BWC D belongs to fallback group 2 while BWC G belongs to fallback group 3.
D12: 7. Set status column for all EN-DC configurations with NR FR1+FR2 to N/A with comment column set to "This FR1+FR2 config is not testable".
D13: 8. Updated based on RAN5#97 submitted CDS documents: PC3 NR bands: R5-230064 CBW extensions: R5-230665 PC3 NR CA configurations: R5-230254,R5-230291,R5-230292,R5-230293,R5-230664,R5-231217,R5-231230 PC3 EN-DC: R5-230758,R5-230759,R5-230760,R5-230761,R5-231282,R5-231283,R5-230188, R5-230758,R5-230759,R5-230760,R5-231282,R5-231283 PC2 EN-DC: R5-230663
A14: RAN5#97 | B14: 2022-Sep | C14: v1.3.0 | D14: 1. Updated V2X bands and V2X configurations based on TS 38.101-x v17.7.0 (Sep 2022). Update of new configurations for NR bands, NR CADC configurations introduced in TS 38.101-x v17.7.0 (Sep 2022) has not been done as RAN5 endorsed proposal to limit 5G NR CADC configurations to the ones requested by interested deployer to include from RAN5#98 and forward (i.e. all pending configurations in current list will be removed from v1.4.0 of PRD21).
D15: 2. Updates based on interested operator/deployer and responsible company assignment requests up to and at RAN5#97. Filter on "RAN5#97" in column "Assignment [RAN5 meeting]" in NR band and CADC worksheets to show the new assignments.
D16: 3. 5G NR CADC worksheet: Updates of PC2 and PC1.5 configurations based on RAN5#97 work plans for PC2 and PC1.5 work items.
D17: 4. NR band worksheet: Split of n79 CBW(10,20,30.70.90) into 79 CBW(10,20) and n79 CBW(30.70.90) .
D18: 5. NR band bands and 5G NR CADC worksheets: Renamed "Interested operator" to "Interested deployer" and updated Note 2 for the case the interested deployer is not an MNO then then the type of deployer is described in the comments column. See the railway bands n100 and n101 as an example.
D19: 6. V2X bands and V2X Configurations worksheets: Renamed "Interested company" to "Interested deployer"
D20: 7. NR band worksheet: As agreed in proposal 1 in R5-224256 at RAN5#96-e the Rel-15 NR bands n50 and n86 is marked as interested operator = "Legacy" and add CAICT as responsible company.
D21: 8. 5G NR CADC worksheet: Correct completed power classes column adding PC2 for DC_2A_n77A, DC_5A_n77A, DC_13A_n77A, DC_66A_n77A (were completed as per change 15 below at RAN5#96-e).
D22: 9. V2X band and V2X configuration worksheets: Updated of working mode for V2X_(n)47AA and V2X_47A_n47A to PC5-PC5. Added PC2 WI code for V2X_n39A-47A.
D23: 10 . NR band worksheet: Add missing Rel-17 FDD band n85, SDL band n67 and TDD band n104 as new pending configurations (WI:NR_lic_bands_BW_R17-UEConTest).
D24: 11 . 5G NR CADC worksheet: Rel-16 EN-DC configuration DC_48A-(n)48AA moved from 38.101-3 Table 5.3B.1.3-1 to Table 5.3B.1.3-2 in 38.101-3 v16.13.0. The new Table 5.3B.1.3-2 added to the introduction worksheet.
D25: 12 . 5G NR CADC worksheet: Changed status from "Ongoing(FB)" to "Pending" (R5-227259) for NR CA configurations with intra-band non-contiguous UL CA that was incorrectly set to "Ongoing(FB)" with reference to NR CA configuration without UL CA. Impacted NR CA configurations are: CA_n41(2A) with UL:CA_n41(2A), CA_n66A-n77(2A) with UL:CA_n77(2A), CA_n66A-n77(2A) BCS1with UL:CA_n77(2A), CA_n66(2A)-n77(2A) with UL:CA_n77(2A), CA_n66(2A)-n77(2A) BCS1 with UL:CA_n77(2A), CA_n78(2A) with UL:CA_n78(2A), CA_n78(2A) BCS1 with UL:CA_n78(2A), CA_n78(2A) BCS2 with UL:CA_n78(2A).
D26: 13. NR bands and 5G NR CADC worksheets: Split into separate rows per power class, and adding new filtering selection for filtering by power classes.
D27: 14. V2X bands and V2X Configurations worksheets: Split into separate rows per power class.
D28: 15. 5G NR CADC worksheet: For configuration type "EN-DC FR1+FR2" set status to "N/A" and adding "This FR1+FR2 config is not testable" to the comments column.
D29: 16. Updated based on RAN5#97 submitted CDS documents: PC3 NR bands: R5-225951, R5-226274, R5-226275 PC2 NR bands: R5-227635, R5-227636 PC1.5 NR bands: R5-227633, R5-227634, R5-227637, R5-227638 CBW extensions: R5-226867,R5-226871,R5-227115 PC3 NR CA configurations: R5-226403,R5-226404,R5-226405,R5-227303,R5-227629
A30: RAN5#96-e | B30: 2022-Aug | C30: v1.2.0 | D30: 1. Updated based on TS 38.101-x v17.6.0 (June 2022) Updates based on interested operator and responsible company assignment requests up to and at RAN5#96-e.
D31: 2. Fixed configuration syntax for Rel-15 EN-DC configurations DC_2A-66A_(n)71AA, DC_2A_(n)71AA and DC_66A_(n)71AA to DC_2A-66A-(n)71AA, DC_2A-(n)71AA and DC_66A-(n)71AA and removed associated duplicates in Rel-16.
D32: 3. For legacy configurations started before the concept of "Interested operators" was introduced the column "Interested operator" is set to "Legacy".
D33: 4. Added TS 38.101-1 Table 5.5B.1-2 (NR-DC FR1, three bands) and Table 5.5B.1-3 (NR-DC FR1, four bands) to introduction worksheet.
D34: 5. Removed 36 5G NR CADC configurations to align with TS 38.101-x. See attached note for details.
D35: 6. Corrected 2 5G NR CADC configurations to align with TS 38.101-x. See attached note for details.
D36: 7. NR SUL bands n80 and n83 set to completed in NR bands worksheet as associated with completed NR CA SUL configurations including the SUL bands (Ref:R5-225269).
D37: 8. NR band worksheet: Added assignment date to the legacy Rel-15 NR bands not have any RAN5 meeting shown in PRD21 v1.1.0. Corrected Rel--17 NR bands and CBW extensions without any interested operator from "Ongoing" to "Pending"
D38: 9. NR band worksheet: Added new PC2 WI code NR_PC2_UE_FDD-UEConTest for NR bands n1 and n2.
D39: 10. NR band worksheet: Added NR bands n90, n91, n92, n93 and n94 (NR_bands_BW_R16-UEConTest) .
D40: 11. Added PC2 WI code "PC2: NR_RF_FR1_enh-UEConTest" to the following DL/UL configurations: CA_n41C/CA_n41C CA_n41C BCS1/CA_n41C CA_n41C BCS2/CA_n41C CA_n41C BCS4and5/CA_n41C CA_n41(2A)/CA_n41(2A) CA_n41(2A) BCS1/ CA_n41(2A) CA_n77C/CA_n77C CA_n77C BCS1/ CA_n77C CA_n78C/CA_n78C CA_n78C BCS1/CA_n78C CA_n78(2A)/CA_n78(2A) CA_n78(2A) BCS1/CA_n78(2A) CA_n78(2A) BCS2/CA_n78(2A)
D41: 12.Extended the scope to V2X bands and configurations adding new "V2X bands" and "V2X Configurations" worksheets. Updated "introduction" worksheet to show overview of V2X bands and configurations (Ref: R5-225269).
D42: 13.NR bands worksheet: Corrected covered CBWs for n65 initial item removing CBW 50 MHz as 50MHz is introduced as an separate CBW extension item "n65 CBW (50)".
D43: 14.NR bands worksheet: PC3 status of n40 CBW (90,100), n65 CBW (50) and n80 CBW (40) channel bandwidth extensions changed "Ongoing (CBW)" in accordance to R5-225269 due to introducing mandatory highest CBW.
D44: 15.Updated based on RAN5#96-e submitted CDS documents: CBW extensions: R5-224021, R5-224022 PC3 CADC configurations: R5-224147, R5-224148, R5-224230, R5-224616, R5-225447 PC2 CADC configurations: R5-224367, R5-224494
D45: 16.Corrected status of CA_n1A-n78A with UL CA for PC3 (BCS0 UL CA was completed together with the DL only case).
A46: RAN5#95-e | B46: 2022-May | C46: v1.1.0 | D46: Updated based on TS 38.101-x v17.5.0 (March 2022) Updates based on interested operator and responsible company assignment requests up to and at RAN5#95-e.
D47: 1. Removed 37 5G NR CADC configurations to align with TS 38.101-x. See attached note for details.
D48: 2. Table 5.5A.3.1-1 for two bands NR CA FR1 in TS 38.101-1 has been split into Tables 5.5A.3.1-1a to 5.5A.3.1-1n. In PRD21 are the configurations grouped by the reference to "Table 5.5A.3.1-1a-n"
D49: 3. Table 5.5A.1-1a for two bands NR CA between FR1 and FR2 in TS 38.101-3 has been split into Tables 5.5A.1-1a to 5.5A.1-1o. In PRD21 are those configurations grouped by the reference to "Table 5.5A.1-1a-o"
D50: 4. Added 8083 new 5G NR CADC configurations to align with TS 38.101-x. Filter on v1.0.0 in column "Introduced in PRD version" in "5G NR CADC Configurations" worksheet to see the list of the new configurations.
D51: 5. Added missing n96 (Rel-16) initial channel bandwidths to the "NR bands" worksheet (introduced in TS 38.101-1 Rel-16)
D52: 6. Added references to WI code "ENDC_PC2_R17_xLTE_yNR-UEConTest" for new PC2 EN_DC configurations introduced at RAN5#95-e.
D53: 7. Removed completion indication for DC_41A_n41A and DC_(n)41AA and PC2. Completion of WI ENDC_UE_PC2_TDD_TDD-UEConTest in WP R5-203332 did not complete those two configurations.
D54: 8. The marking of range of configurations updated to handle the case when range of rows selected is not contiguous due to a filter is applied. Only the contiguous configurations from the first selected row is marked.
D55: 9. Corrected PC3 status from "Pending" to "Ongoing(FB)" for fallback configurations to interested operator assigned configurations.
D56: 10. For the case Microsoft Outlook is not supported as email client then instructions and text to copy and paste to an email in the supported email client is provided.
D57: 11. For NR CADC configuration worksheet updated description for configuration highlighted in yellow to also include the case of fallback configurations with a responsible company assigned.
D58: 12. Updated based on RAN5#95-e submitted CDS documents to NR band and CBW list: R5-222357, R5-222358, R5-223500, R5-223501, R5-223502
D59: 13. Updated based on RAN5#95-e submitted CDS documents to CADC list: R5-222236, R5-222237, R5-222238, R5-222239, R5-222240, R5-222282, R5-223023, R5-223151, R5-223203, R5-223204, R5-223205, R5-223206, R5-223207, R5-223208, R5-223209, R5-223210, R5-223211
A60: RAN5#94-e | B60: 2022-Mar | C60: v1.0.0 | D60: Initial version

Sheet Assignment template (hidden)
A1: Band/Config | B1: UL config/CBW | C1: Interested Operator | D1: RAN5 responsible Company | E1: Contact
